Body Name,Invoice Date,Department Code,Department,Expense Area Code,Expense Area,Expense Type Code,Expense Type,Amt Paid (�'s),Supplier Name,Extended Description,Transaction Number,Period,"Grants to Voluntary, Community and Social Enterprise Organisations"
Rother District Council,21/10/2016,091HOUSING,Housing and Community Services,20200,Housing Needs - HB (Housing Benefit),D2514,Accommodation Costs,32.00,MB Hotels Ltd,Accommodation Costs,2004089,201806,
Rother District Council,04/11/2016,091HOUSING,Housing and Community Services,20200,Housing Needs - HB (Housing Benefit),D2514,Accommodation Costs,32.00,MB Hotels Ltd,Accommodation Costs,2003798,201806,
Rother District Council,14/04/2017,091HOUSING,Housing and Community Services,20200,Housing Needs - HB (Housing Benefit),D2514,Accommodation Costs,392.00,MB Hotels Ltd,Accommodation Costs,2003800,201806,
Rother District Council,28/04/2017,091HOUSING,Housing and Community Services,20203,Housing Needs - Universal Credit,D2514,Accommodation Costs,280.00,MB Hotels Ltd,Accommodation Costs,2003799,201806,
Rother District Council,03/05/2017,101RESOURCES,Resources,20239,Computer Services,D2632,Additional Computer Equipment,59.00,Misco,Additional Computer Equipment New PC/Computer,2002560,201804,
Rother District Council,06/10/2017,091HOUSING,Housing and Community Services,20203,Housing Needs - Universal Credit,D2514,Accommodation Costs,280.00,MB Hotels Ltd,Accommodation Costs,2003802,201806,
Rother District Council,22/12/2017,091HOUSING,Housing and Community Services,20203,Housing Needs - Universal Credit,D2514,Accommodation Costs,336.00,MB Hotels Ltd,Accommodation Costs,2003804,201806,
Rother District Council,05/01/2018,091HOUSING,Housing and Community Services,20203,Housing Needs - Universal Credit,D2514,Accommodation Costs,336.00,MB Hotels Ltd,Accommodation Costs,2003805,201806,
Rother District Council,05/01/2018,091HOUSING,Housing and Community Services,20203,Housing Needs - Universal Credit,D2514,Accommodation Costs,137.14,MB Hotels Ltd,Accommodation Costs,2003808,201806,
Rother District Council,29/01/2018,091HOUSING,Housing and Community Services,20203,Housing Needs - Universal Credit,D2514,Accommodation Costs,80.00,The Clevedon Court Hotel,Accommodation Costs,2002510,201804,
Rother District Council,29/01/2018,091HOUSING,Housing and Community Services,20203,Housing Needs - Universal Credit,D2514,Accommodation Costs,320.00,The Clevedon Court Hotel,Accommodation Costs,2002510,201804,
Rother District Council,30/01/2018,091HOUSING,Housing and Community Services,20206,Syrians,D2513,Hired and Contracted services,108.45,Sanctuary Housing Association,Syrian Resettlement Programme - Rent,2003711,201806,
Rother District Council,30/01/2018,101RESOURCES,Resources,20222,Accountancy,D2513,Hired and Contracted services,185.00,CIPFA Business Ltd,Hired and Contracted services,2002486,201804,
Rother District Council,02/02/2018,101RESOURCES,Resources,20242,Communications-Phones,D2621,Telephones,44.64,TalkTalk Communications Ltd T/A TalkTalk Business,Telephones Telephone Call Costs + Line Rental,2004417,201806,
Rother District Council,20/02/2018,091HOUSING,Housing and Community Services,20128,Public Conveniences,B2422,Sewerage,90.74,Scottish Water Business Stream Limited,Sewage Charges,2003989,201806,
Rother District Council,20/02/2018,091HOUSING,Housing and Community Services,20128,Public Conveniences,B2421,Water,53.77,Scottish Water Business Stream Limited,Water Charges,2003989,201806,
Rother District Council,28/02/2018,101RESOURCES,Resources,20212,Risk Management/Insurance,D2520,Insurance,"4,000.00",Zurich Management Services Ltd,Insurance risk management,2002895,201804,
Rother District Council,02/03/2018,091HOUSING,Housing and Community Services,20203,Housing Needs - Universal Credit,D2514,Accommodation Costs,240.00,MB Hotels Ltd,Accommodation Costs,2003806,201806,
Rother District Council,15/03/2018,071STRAT,Strategy and Planning,20255,Local Development Framework,D2513,Hired and Contracted services,151.00,Sedlescombe Village Hall,Hired and contracted services Hire of Meeting Room,2003129,201805,
Rother District Council,15/03/2018,071STRAT,Strategy and Planning,20255,Local Development Framework,D2513,Hired and Contracted services,151.00,Sedlescombe Village Hall,Hired and contracted services Hire of Meeting Room,2002685,201804,
Rother District Council,15/03/2018,091HOUSING,Housing and Community Services,20200,Housing Needs - HB (Housing Benefit),D2514,Accommodation Costs,60.00,The Clevedon Court Hotel,Accommodation Costs,2002511,201804,
Rother District Council,15/03/2018,091HOUSING,Housing and Community Services,20200,Housing Needs - HB (Housing Benefit),D2514,Accommodation Costs,240.00,The Clevedon Court Hotel,Accommodation Costs,2002511,201804,
Rother District Council,15/03/2018,091HOUSING,Housing and Community Services,20203,Housing Needs - Universal Credit,D2514,Accommodation Costs,66.00,The Clevedon Court Hotel,Accommodation Costs,2002512,201804,
Rother District Council,15/03/2018,091HOUSING,Housing and Community Services,20203,Housing Needs - Universal Credit,D2514,Accommodation Costs,264.00,The Clevedon Court Hotel,Accommodation Costs,2002512,201804,
Rother District Council,17/03/2018,101RESOURCES,Resources,20239,Computer Services,D2635,Computer Licences,630.00,NCC Services Ltd (T/A NCC Group Escrow Ltd),Computer Licences Advance Pay ESCROW Agreement,2003995,201806,
Rother District Council,19/03/2018,091HOUSING,Housing and Community Services,20200,Housing Needs - HB (Housing Benefit),D2514,Accommodation Costs,98.00,Solutions Accommodation Providers Ltd,Accommodation Costs,2004043,201806,
Rother District Council,19/03/2018,091HOUSING,Housing and Community Services,20200,Housing Needs - HB (Housing Benefit),D2514,Accommodation Costs,392.00,Solutions Accommodation Providers Ltd,Accommodation Costs,2004043,201806,
Rother District Council,22/03/2018,091HOUSING,Housing and Community Services,20133,Refuse Collection,E2302,Third party payment private contractors,349.91,Kier Services - Environmental,Third party payment private contractors Commercial Waste Collection Contract,2003234,201805,
Rother District Council,23/03/2018,091HOUSING,Housing and Community Services,20114,Bexhill Parks & Open Spaces,B1100,Repairs to Premises,100.00,Foxhills Tree Services Ltd,Repairs to Premises Parks- Tree Works,2002872,201804,
Rother District Council,23/03/2018,091HOUSING,Housing and Community Services,20200,Housing Needs - HB (Housing Benefit),D2514,Accommodation Costs,448.00,MB Hotels Ltd,Accommodation Costs,2003809,201806,
Rother District Council,27/03/2018,031RESOURCES,Executive Directors & Corporate Core,20162,Electoral Registration,D1203,Books And Publications,111.50,Thomson Reuters Ltd,Books And Publications Miscellaneous Legal Reference Books,2002277,201804,
Rother District Council,27/03/2018,031RESOURCES,Executive Directors & Corporate Core,20162,Electoral Registration,D1203,Books And Publications,111.50,Thomson Reuters Ltd,Books And Publications Miscellaneous Legal Reference Books,2002277,201804,
Rother District Council,01/04/2018,091HOUSING,Housing and Community Services,20108,Bexhill Promenade & Foreshore,D2623,Radios and licences,11.92,Radio Relay,Radios and licences Radio/Transmitter Licences,2002398,201804,
Rother District Council,04/04/2018,091HOUSING,Housing and Community Services,20114,Bexhill Parks & Open Spaces,B2422,Sewerage,305.00,CountyClean Environmental Services Ltd,Sewerage Parks- Emptying of Cesspit,2003193,201805,
Rother District Council,05/04/2018,091HOUSING,Housing and Community Services,20208,Care In The Community,D2513,Hired and Contracted services,185.00,Safe Partnership Ltd,Hired and contracted services Sanctuary DV Assistance Revenue,2002876,201804,
Rother District Council,05/04/2018,091HOUSING,Housing and Community Services,20200,Housing Needs - HB (Housing Benefit),D2514,Accommodation Costs,8.57,The Clevedon Court Hotel,Accommodation Costs,2002513,201804,
Rother District Council,05/04/2018,091HOUSING,Housing and Community Services,20200,Housing Needs - HB (Housing Benefit),D2514,Accommodation Costs,34.28,The Clevedon Court Hotel,Accommodation Costs,2002513,201804,
Rother District Council,05/04/2018,091HOUSING,Housing and Community Services,20200,Housing Needs - HB (Housing Benefit),D2514,Accommodation Costs,66.00,The Clevedon Court Hotel,Accommodation Costs,2002514,201804,
Rother District Council,05/04/2018,091HOUSING,Housing and Community Services,20200,Housing Needs - HB (Housing Benefit),D2514,Accommodation Costs,264.00,The Clevedon Court Hotel,Accommodation Costs,2002514,201804,
Rother District Council,06/04/2018,101RESOURCES,Resources,20212,Risk Management/Insurance,D2520,Insurance,"5,246.58",Zurich Insurance plc,Insurance Engineering Inspections,2002959,201804,
Rother District Council,06/04/2018,101RESOURCES,Resources,20212,Risk Management/Insurance,D2520,Insurance,"20,840.20",Zurich Insurance plc,Insurance Insurance - Fire/All Risks,2002965,201804,
Rother District Council,09/04/2018,081ACQUISIT,"Acquisitions, Transformation and Regeneration",20144,Property Management,D2518,Advertising,37.50,Lloyds Bank,Advertising Advertising in Newspapers/Magazine,2003128,201805,
Rother District Council,09/04/2018,081ACQUISIT,"Acquisitions, Transformation and Regeneration",20144,Property Management,D2518,Advertising,-37.50,Lloyds Bank,Advertising Advertising in Newspapers/Magazine,1000823,201805,
Rother District Council,09/04/2018,101RESOURCES,Resources,20239,Computer Services,D2635,Computer Licences,7.10,Lloyds Bank,Computer Licences Domain Name Renewal,2003128,201805,
Rother District Council,09/04/2018,101RESOURCES,Resources,20239,Computer Services,D2635,Computer Licences,0.20,Lloyds Bank,Computer Licences Domain Name Renewal,2003128,201805,
Rother District Council,09/04/2018,101RESOURCES,Resources,20239,Computer Services,D2635,Computer Licences,-7.10,Lloyds Bank,Computer Licences Domain Name Renewal,1000823,201805,
Rother District Council,09/04/2018,031RESOURCES,Executive Directors & Corporate Core,20160,Public Accountability C/Ex,D2420,General office supplies (Stationery purchased from ext suppliers),8.00,Lloyds Bank,Equipment & Materials Carriage/Handling Charge,2003128,201805,
Rother District Council,09/04/2018,101RESOURCES,Resources,20239,Computer Services,D2415,Printing by external suppliers,6.95,Lloyds Bank,Equipment & Materials Carriage/Handling Charge,2003128,201805,
Rother District Council,09/04/2018,101RESOURCES,Resources,20239,Computer Services,D1201,Equipment & Materials,-6.95,Lloyds Bank,Equipment & Materials Carriage/Handling Charge,1000823,201805,
Rother District Council,09/04/2018,031RESOURCES,Executive Directors & Corporate Core,20159,Corporate Policy Making,D1201,Equipment & Materials,34.49,Lloyds Bank,Equipment & Materials Flags,2003128,201805,
Rother District Council,09/04/2018,031RESOURCES,Executive Directors & Corporate Core,20159,Corporate Policy Making,D1201,Equipment & Materials,-34.49,Lloyds Bank,Equipment & Materials Flags,1000823,201805,
Rother District Council,09/04/2018,031RESOURCES,Executive Directors & Corporate Core,20160,Public Accountability C/Ex,D2420,General office supplies (Stationery purchased from ext suppliers),30.83,Lloyds Bank,Furniture & Fittings Purchase of office equipment,2003128,201805,
Rother District Council,09/04/2018,031RESOURCES,Executive Directors & Corporate Core,20160,Public Accountability C/Ex,D2420,General office supplies (Stationery purchased from ext suppliers),52.01,Lloyds Bank,Furniture & Fittings Purchase of office equipment,2003128,201805,
Rother District Council,09/04/2018,031RESOURCES,Executive Directors & Corporate Core,20160,Public Accountability C/Ex,D2420,General office supplies (Stationery purchased from ext suppliers),19.98,Lloyds Bank,Furniture & Fittings Purchase of office equipment,2003128,201805,
Rother District Council,09/04/2018,031RESOURCES,Executive Directors & Corporate Core,20160,Public Accountability C/Ex,D2420,General office supplies (Stationery purchased from ext suppliers),38.85,Lloyds Bank,Furniture & Fittings Purchase of office equipment,2003128,201805,
Rother District Council,09/04/2018,031RESOURCES,Executive Directors & Corporate Core,20160,Public Accountability C/Ex,D2420,General office supplies (Stationery purchased from ext suppliers),39.96,Lloyds Bank,Furniture & Fittings Purchase of office equipment,2003128,201805,
Rother District Council,09/04/2018,101RESOURCES,Resources,20239,Computer Services,D2622,Mobile Phones,97.20,Lloyds Bank,Mobile Phones Mobile Phone Battery & Charger,2003128,201805,
Rother District Council,09/04/2018,101RESOURCES,Resources,20239,Computer Services,D2415,Printing by external suppliers,529.70,Lloyds Bank,Printing Ink Cartridge purchased directly,2003128,201805,
Rother District Council,09/04/2018,101RESOURCES,Resources,20239,Computer Services,D2415,Printing by external suppliers,-529.70,Lloyds Bank,Printing Ink Cartridge purchased directly,1000823,201805,
Rother District Council,09/04/2018,101RESOURCES,Resources,20241,Stationery,D2416,Stationery ordered internally (Print Room),119.50,Lloyds Bank,Stationery (General office Supplies) (Stationery Services to buy ONLY),2003128,201805,
Rother District Council,09/04/2018,101RESOURCES,Resources,20241,Stationery,D2416,Stationery ordered internally (Print Room),33.24,Lloyds Bank,Stationery (General office Supplies) (Stationery Services to buy ONLY),2003128,201805,
Rother District Council,09/04/2018,101RESOURCES,Resources,20241,Stationery,D2416,Stationery ordered internally (Print Room),-33.24,Lloyds Bank,Stationery (General office Supplies) (Stationery Services to buy ONLY),1000823,201805,
Rother District Council,09/04/2018,101RESOURCES,Resources,20241,Stationery,D2416,Stationery ordered internally (Print Room),-119.50,Lloyds Bank,Stationery (General office Supplies) (Stationery Services to buy ONLY),1000823,201805,
Rother District Council,09/04/2018,101RESOURCES,Resources,20239,Computer Services,D2622,Mobile Phones,-97.20,Lloyds Bank,Mobile Phones,1000823,201805,
Rother District Council,18/04/2018,101RESOURCES,Resources,20229,Internal Drainage Boards,F1202,Drainage board levies,"61,718.50",Romney Marshes Area Internal Drainage Board,Drainage board levies Romney Marsh Area Internal Drainage,2003458,201805,
Rother District Council,20/04/2018,041ENVIRON,Environmental Services,32143,EH Licenses and Registration R + W Partnership,D2513,Hired and Contracted services,432.00,Heathfield Vets Ltd,Hired and contracted services EnvH-Veterinary Services for Licens,2002218,201804,
Rother District Council,23/04/2018,101RESOURCES,Resources,20239,Computer Services,D2632,Additional Computer Equipment,-29.50,Misco,Additional Computer Equipment New PC/Computer,2002559,201804,
Rother District Council,25/04/2018,101RESOURCES,Resources,20212,Risk Management/Insurance,D2520,Insurance,"3,920.00",Zurich Insurance plc,Insurance Fidelity Guarantee,2002963,201804,
Rother District Council,25/04/2018,101RESOURCES,Resources,20212,Risk Management/Insurance,D2520,Insurance,"5,645.71",Zurich Insurance plc,Insurance Insurance - Computer Equipment,2002964,201804,
Rother District Council,25/04/2018,101RESOURCES,Resources,20212,Risk Management/Insurance,D2520,Insurance,"117,587.44",Zurich Insurance plc,Insurance Insurance - Employers/Public/Produc,2002964,201804,
Rother District Council,25/04/2018,101RESOURCES,Resources,20212,Risk Management/Insurance,D2520,Insurance,"1,277.56",Zurich Insurance plc,Insurance Insurance - Engineering,2002964,201804,
Rother District Council,25/04/2018,101RESOURCES,Resources,20212,Risk Management/Insurance,D2520,Insurance,"48,730.59",Zurich Insurance plc,Insurance Insurance - Fire/All Risks,2002964,201804,
Rother District Council,25/04/2018,101RESOURCES,Resources,20212,Risk Management/Insurance,D2520,Insurance,"1,130.04",Zurich Insurance plc,Insurance Insurance - Personal Accident (Duty,2002964,201804,
Rother District Council,25/04/2018,101RESOURCES,Resources,20212,Risk Management/Insurance,D2520,Insurance,50.49,Zurich Insurance plc,Insurance Insurance of Civic Regalia,2002964,201804,
Rother District Council,25/04/2018,101RESOURCES,Resources,20212,Risk Management/Insurance,D2520,Insurance,"1,065.01",Zurich Insurance plc,Insurance Insurance of Money,2002964,201804,
Rother District Council,25/04/2018,101RESOURCES,Resources,20212,Risk Management/Insurance,D2520,Insurance,"4,903.23",Zurich Insurance plc,Insurance Land charges,2002964,201804,
Rother District Council,26/04/2018,041ENVIRON,Environmental Services,32140,EN Wealden Training (WEALDEN ONLY) R + W Partnership,D2513,Hired and Contracted services,65.00,Polegate Town Council,Hired and contracted services EnvH- Food Safety Contractor,2004440,201806,
Rother District Council,28/04/2018,091HOUSING,Housing and Community Services,20200,Housing Needs - HB (Housing Benefit),D2514,Accommodation Costs,392.00,MB Hotels Ltd,Accommodation Costs,2003801,201806,
Rother District Council,28/04/2018,091HOUSING,Housing and Community Services,20200,Housing Needs - HB (Housing Benefit),D2514,Accommodation Costs,336.00,MB Hotels Ltd,Accommodation Costs,2003807,201806,
Rother District Council,30/04/2018,101RESOURCES,Resources,20219,Support To Elect Bodies/Grant,D2513,Hired and Contracted services,"21,250.00",Rother District Citizens Advice Bureau,Hired and contracted services Bexhill and Rother CAB,2002323,201804,
Rother District Council,30/04/2018,101RESOURCES,Resources,20219,Support To Elect Bodies/Grant,D2513,Hired and Contracted services,"21,250.00",Rother District Citizens Advice Bureau,Hired and contracted services Bexhill and Rother CAB,2004447,201806,
Rother District Council,01/05/2018,091HOUSING,Housing and Community Services,20200,Housing Needs - HB (Housing Benefit),D2508,Removals and Storage,200.00,1066 Storage Services,Removals and Storage,2003423,201805,
Rother District Council,03/05/2018,091HOUSING,Housing and Community Services,20200,Housing Needs - HB (Housing Benefit),D2513,Hired and Contracted services,55.00,Wealden and Eastbourne Lifeline,Hired and Contracted services,2001096,201804,
Rother District Council,11/05/2018,101RESOURCES,Resources,20239,Computer Services,D2632,Additional Computer Equipment,886.35,PCM Technology Solutions UK Ltd,Additional Computer Equipment New PC/Computer,2002489,201804,
Rother District Council,11/05/2018,101RESOURCES,Resources,20239,Computer Services,D1201,Equipment & Materials,5.00,PCM Technology Solutions UK Ltd,Equipment & Materials Carriage/Handling Charge,2002489,201804,
Rother District Council,11/05/2018,081ACQUISIT,"Acquisitions, Transformation and Regeneration",20154,Committee Property Account,D1206,Furniture & Fittings,"15,739.00",OASIS,Furniture & Fittings Chair,2003270,201805,
Rother District Council,11/05/2018,091HOUSING,Housing and Community Services,20208,Care In The Community,D2513,Hired and Contracted services,260.00,Safe Partnership Ltd,Hired and contracted services Sanctuary DV Assistance Revenue,2002653,201804,
Rother District Council,11/05/2018,101RESOURCES,Resources,20209,Corporate management,D2513,Hired and Contracted services,"1,745.87",Valuation Office Agency,Hired and contracted services Valuation Services,2002107,201804,
Rother District Council,13/05/2018,091HOUSING,Housing and Community Services,20133,Refuse Collection,E2302,Third party payment private contractors,349.91,Kier Services - Environmental,Third party payment private contractors Commercial Waste Collection Contract,2003186,201805,
Rother District Council,13/05/2018,061ICT,ICT and Customer Services,20238,Service Manager ICT & Customer Services,D2622,Mobile Phones,10.00,O2 (UK) Ltd,Mobile Phones,2002824,201804,
Rother District Council,13/05/2018,061ICT,ICT and Customer Services,20238,Service Manager ICT & Customer Services,D2622,Mobile Phones,10.00,O2 (UK) Ltd,Mobile Phones,2002824,201804,
Rother District Council,13/05/2018,041ENVIRON,Environmental Services,20187,Pollution,D2622,Mobile Phones,10.00,O2 (UK) Ltd,Mobile Phones,2002819,201804,
Rother District Council,13/05/2018,041ENVIRON,Environmental Services,20187,Pollution,D2622,Mobile Phones,10.00,O2 (UK) Ltd,Mobile Phones,2002819,201804,
Rother District Council,13/05/2018,041ENVIRON,Environmental Services,20187,Pollution,D2622,Mobile Phones,10.00,O2 (UK) Ltd,Mobile Phones,2002819,201804,
Rother District Council,13/05/2018,041ENVIRON,Environmental Services,20187,Pollution,D2622,Mobile Phones,10.00,O2 (UK) Ltd,Mobile Phones,2002819,201804,
Rother District Council,13/05/2018,041ENVIRON,Environmental Services,20187,Pollution,D2622,Mobile Phones,10.00,O2 (UK) Ltd,Mobile Phones,2002819,201804,
Rother District Council,13/05/2018,041ENVIRON,Environmental Services,20187,Pollution,D2622,Mobile Phones,10.00,O2 (UK) Ltd,Mobile Phones,2002819,201804,
Rother District Council,13/05/2018,041ENVIRON,Environmental Services,20199,Food and Safety Team,D2622,Mobile Phones,10.33,O2 (UK) Ltd,Mobile Phones,2002819,201804,
Rother District Council,13/05/2018,041ENVIRON,Environmental Services,20199,Food and Safety Team,D2622,Mobile Phones,13.99,O2 (UK) Ltd,Mobile Phones,2002819,201804,
Rother District Council,13/05/2018,041ENVIRON,Environmental Services,20199,Food and Safety Team,D2622,Mobile Phones,10.00,O2 (UK) Ltd,Mobile Phones,2002819,201804,
Rother District Council,13/05/2018,041ENVIRON,Environmental Services,20199,Food and Safety Team,D2622,Mobile Phones,10.00,O2 (UK) Ltd,Mobile Phones,2002819,201804,
Rother District Council,13/05/2018,041ENVIRON,Environmental Services,20199,Food and Safety Team,D2622,Mobile Phones,10.00,O2 (UK) Ltd,Mobile Phones,2002819,201804,
Rother District Council,13/05/2018,041ENVIRON,Environmental Services,20199,Food and Safety Team,D2622,Mobile Phones,10.00,O2 (UK) Ltd,Mobile Phones,2002819,201804,
Rother District Council,13/05/2018,041ENVIRON,Environmental Services,20199,Food and Safety Team,D2622,Mobile Phones,10.00,O2 (UK) Ltd,Mobile Phones,2002819,201804,
Rother District Council,13/05/2018,041ENVIRON,Environmental Services,20199,Food and Safety Team,D2622,Mobile Phones,10.00,O2 (UK) Ltd,Mobile Phones,2002819,201804,
Rother District Council,13/05/2018,041ENVIRON,Environmental Services,20199,Food and Safety Team,D2622,Mobile Phones,10.00,O2 (UK) Ltd,Mobile Phones,2002819,201804,
Rother District Council,13/05/2018,041ENVIRON,Environmental Services,20199,Food and Safety Team,D2622,Mobile Phones,10.00,O2 (UK) Ltd,Mobile Phones,2002819,201804,
Rother District Council,13/05/2018,041ENVIRON,Environmental Services,20199,Food and Safety Team,D2622,Mobile Phones,10.00,O2 (UK) Ltd,Mobile Phones,2002819,201804,
Rother District Council,13/05/2018,041ENVIRON,Environmental Services,20199,Food and Safety Team,D2622,Mobile Phones,10.00,O2 (UK) Ltd,Mobile Phones,2002819,201804,
Rother District Council,13/05/2018,041ENVIRON,Environmental Services,20187,Pollution,D2622,Mobile Phones,10.00,O2 (UK) Ltd,Mobile Phones,2002819,201804,
Rother District Council,13/05/2018,041ENVIRON,Environmental Services,20187,Pollution,D2622,Mobile Phones,10.00,O2 (UK) Ltd,Mobile Phones,2002819,201804,
Rother District Council,13/05/2018,041ENVIRON,Environmental Services,20187,Pollution,D2622,Mobile Phones,10.00,O2 (UK) Ltd,Mobile Phones,2002819,201804,
Rother District Council,13/05/2018,041ENVIRON,Environmental Services,20187,Pollution,D2622,Mobile Phones,10.00,O2 (UK) Ltd,Mobile Phones,2002819,201804,
Rother District Council,13/05/2018,041ENVIRON,Environmental Services,20187,Pollution,D2622,Mobile Phones,10.00,O2 (UK) Ltd,Mobile Phones,2002819,201804,
Rother District Council,13/05/2018,041ENVIRON,Environmental Services,20187,Pollution,D2622,Mobile Phones,10.00,O2 (UK) Ltd,Mobile Phones,2002819,201804,
Rother District Council,13/05/2018,071STRAT,Strategy and Planning,20247,Service Manager Strategy and Planning,D2622,Mobile Phones,10.00,O2 (UK) Ltd,Mobile Phones,2002828,201804,
Rother District Council,13/05/2018,041ENVIRON,Environmental Services,20197,Service Manager Env Serv,D2622,Mobile Phones,10.00,O2 (UK) Ltd,Mobile Phones,2002819,201804,
Rother District Council,13/05/2018,041ENVIRON,Environmental Services,20198,Licensing Team,D2622,Mobile Phones,10.00,O2 (UK) Ltd,Mobile Phones,2002819,201804,
Rother District Council,13/05/2018,041ENVIRON,Environmental Services,20198,Licensing Team,D2622,Mobile Phones,10.00,O2 (UK) Ltd,Mobile Phones,2002819,201804,
Rother District Council,13/05/2018,041ENVIRON,Environmental Services,20198,Licensing Team,D2622,Mobile Phones,10.00,O2 (UK) Ltd,Mobile Phones,2002819,201804,
Rother District Council,13/05/2018,041ENVIRON,Environmental Services,20198,Licensing Team,D2622,Mobile Phones,10.00,O2 (UK) Ltd,Mobile Phones,2002819,201804,
Rother District Council,13/05/2018,041ENVIRON,Environmental Services,20198,Licensing Team,D2622,Mobile Phones,10.00,O2 (UK) Ltd,Mobile Phones,2002819,201804,
Rother District Council,13/05/2018,041ENVIRON,Environmental Services,20198,Licensing Team,D2622,Mobile Phones,10.00,O2 (UK) Ltd,Mobile Phones,2002819,201804,
Rother District Council,13/05/2018,041ENVIRON,Environmental Services,20198,Licensing Team,D2622,Mobile Phones,31.34,O2 (UK) Ltd,Mobile Phones,2002819,201804,
Rother District Council,13/05/2018,031RESOURCES,Executive Directors & Corporate Core,20179,Communications,D2622,Mobile Phones,10.00,O2 (UK) Ltd,Mobile Phones,2002811,201804,
Rother District Council,13/05/2018,031RESOURCES,Executive Directors & Corporate Core,20180,Emergency Planning,D2622,Mobile Phones,10.00,O2 (UK) Ltd,Mobile Phones,2002811,201804,
Rother District Council,13/05/2018,031RESOURCES,Executive Directors & Corporate Core,20185,Joint Waste procurement,D2622,Mobile Phones,10.00,O2 (UK) Ltd,Mobile Phones,2002826,201804,
Rother District Council,13/05/2018,031RESOURCES,Executive Directors & Corporate Core,32132,Joint Waste Contract Client Unit,D2622,Mobile Phones,10.00,O2 (UK) Ltd,Mobile Phones,2002826,201804,
Rother District Council,13/05/2018,031RESOURCES,Executive Directors & Corporate Core,32132,Joint Waste Contract Client Unit,D2622,Mobile Phones,10.00,O2 (UK) Ltd,Mobile Phones,2002826,201804,
Rother District Council,13/05/2018,031RESOURCES,Executive Directors & Corporate Core,32132,Joint Waste Contract Client Unit,D2622,Mobile Phones,10.00,O2 (UK) Ltd,Mobile Phones,2002826,201804,
Rother District Council,13/05/2018,031RESOURCES,Executive Directors & Corporate Core,20162,Electoral Registration,D2622,Mobile Phones,10.00,O2 (UK) Ltd,Mobile Phones,2002812,201804,
Rother District Council,13/05/2018,031RESOURCES,Executive Directors & Corporate Core,20183,Executive Directors,D2622,Mobile Phones,10.08,O2 (UK) Ltd,Mobile Phones,2002832,201804,
Rother District Council,13/05/2018,031RESOURCES,Executive Directors & Corporate Core,20183,Executive Directors,D2622,Mobile Phones,10.00,O2 (UK) Ltd,Mobile Phones,2002832,201804,
Rother District Council,13/05/2018,031RESOURCES,Executive Directors & Corporate Core,20180,Emergency Planning,D2622,Mobile Phones,10.00,O2 (UK) Ltd,Mobile Phones,2002829,201804,
Rother District Council,13/05/2018,031RESOURCES,Executive Directors & Corporate Core,20180,Emergency Planning,D2622,Mobile Phones,4.50,O2 (UK) Ltd,Mobile Phones,2002829,201804,
Rother District Council,13/05/2018,031RESOURCES,Executive Directors & Corporate Core,20158,Committee Service General Exp,D2622,Mobile Phones,10.00,O2 (UK) Ltd,Mobile Phones,2002812,201804,
Rother District Council,13/05/2018,031RESOURCES,Executive Directors & Corporate Core,20171,Human Resources,D2622,Mobile Phones,10.00,O2 (UK) Ltd,Mobile Phones,2002812,201804,
Rother District Council,13/05/2018,011COMMUNITY,Community and Economy,20119,"Service Manager, Community and Economy",D2622,Mobile Phones,10.00,O2 (UK) Ltd,Mobile Phones,2002829,201804,
Rother District Council,13/05/2018,081ACQUISIT,"Acquisitions, Transformation and Regeneration",20121,Programme and Policy Office,D2622,Mobile Phones,10.00,O2 (UK) Ltd,Mobile Phones,2002831,201805,
Rother District Council,13/05/2018,081ACQUISIT,"Acquisitions, Transformation and Regeneration",20243,Business Improvement,D2622,Mobile Phones,23.08,O2 (UK) Ltd,Mobile Phones,2002824,201804,
Rother District Council,13/05/2018,071STRAT,Strategy and Planning,20248,"Complaints,Compliance,Enforce",D2622,Mobile Phones,10.12,O2 (UK) Ltd,Mobile Phones,2002828,201804,
Rother District Council,13/05/2018,071STRAT,Strategy and Planning,20248,"Complaints,Compliance,Enforce",D2622,Mobile Phones,10.00,O2 (UK) Ltd,Mobile Phones,2002828,201804,
Rother District Council,13/05/2018,071STRAT,Strategy and Planning,20248,"Complaints,Compliance,Enforce",D2622,Mobile Phones,10.00,O2 (UK) Ltd,Mobile Phones,2002828,201804,
Rother District Council,13/05/2018,071STRAT,Strategy and Planning,20248,"Complaints,Compliance,Enforce",D2622,Mobile Phones,10.00,O2 (UK) Ltd,Mobile Phones,2002828,201804,
Rother District Council,13/05/2018,071STRAT,Strategy and Planning,20248,"Complaints,Compliance,Enforce",D2622,Mobile Phones,10.00,O2 (UK) Ltd,Mobile Phones,2002828,201804,
Rother District Council,13/05/2018,091HOUSING,Housing and Community Services,20109,Sports Development,D2622,Mobile Phones,10.00,O2 (UK) Ltd,Mobile Phones,2002829,201804,
Rother District Council,13/05/2018,081ACQUISIT,"Acquisitions, Transformation and Regeneration",20243,Business Improvement,D2622,Mobile Phones,10.00,O2 (UK) Ltd,Mobile Phones,2002824,201804,
Rother District Council,13/05/2018,091HOUSING,Housing and Community Services,20120,Neighbourhood Services,D2622,Mobile Phones,10.00,O2 (UK) Ltd,Mobile Phones,2002808,201804,
Rother District Council,13/05/2018,091HOUSING,Housing and Community Services,20120,Neighbourhood Services,D2622,Mobile Phones,10.00,O2 (UK) Ltd,Mobile Phones,2002808,201804,
Rother District Council,13/05/2018,091HOUSING,Housing and Community Services,20120,Neighbourhood Services,D2622,Mobile Phones,10.00,O2 (UK) Ltd,Mobile Phones,2002808,201804,
Rother District Council,13/05/2018,081ACQUISIT,"Acquisitions, Transformation and Regeneration",20122,Economic Development,D2622,Mobile Phones,10.00,O2 (UK) Ltd,Mobile Phones,2002808,201804,
Rother District Council,13/05/2018,081ACQUISIT,"Acquisitions, Transformation and Regeneration",20122,Economic Development,D2622,Mobile Phones,10.00,O2 (UK) Ltd,Mobile Phones,2002808,201804,
Rother District Council,13/05/2018,081ACQUISIT,"Acquisitions, Transformation and Regeneration",20122,Economic Development,D2622,Mobile Phones,10.00,O2 (UK) Ltd,Mobile Phones,2002808,201804,
Rother District Council,13/05/2018,081ACQUISIT,"Acquisitions, Transformation and Regeneration",20122,Economic Development,D2622,Mobile Phones,10.17,O2 (UK) Ltd,Mobile Phones,2002808,201804,
Rother District Council,13/05/2018,081ACQUISIT,"Acquisitions, Transformation and Regeneration",20122,Economic Development,D2622,Mobile Phones,10.00,O2 (UK) Ltd,Mobile Phones,2002808,201804,
Rother District Council,13/05/2018,081ACQUISIT,"Acquisitions, Transformation and Regeneration",20122,Economic Development,D2622,Mobile Phones,10.00,O2 (UK) Ltd,Mobile Phones,2002808,201804,
Rother District Council,13/05/2018,081ACQUISIT,"Acquisitions, Transformation and Regeneration",20122,Economic Development,D2622,Mobile Phones,10.00,O2 (UK) Ltd,Mobile Phones,2002808,201804,
Rother District Council,13/05/2018,091HOUSING,Housing and Community Services,20120,Neighbourhood Services,D2622,Mobile Phones,10.00,O2 (UK) Ltd,Mobile Phones,2002808,201804,
Rother District Council,13/05/2018,091HOUSING,Housing and Community Services,20120,Neighbourhood Services,D2622,Mobile Phones,10.00,O2 (UK) Ltd,Mobile Phones,2002808,201804,
Rother District Council,13/05/2018,091HOUSING,Housing and Community Services,20120,Neighbourhood Services,D2622,Mobile Phones,10.00,O2 (UK) Ltd,Mobile Phones,2002808,201804,
Rother District Council,13/05/2018,091HOUSING,Housing and Community Services,20120,Neighbourhood Services,D2622,Mobile Phones,10.00,O2 (UK) Ltd,Mobile Phones,2002808,201804,
Rother District Council,13/05/2018,091HOUSING,Housing and Community Services,20120,Neighbourhood Services,D2622,Mobile Phones,10.00,O2 (UK) Ltd,Mobile Phones,2002808,201804,
Rother District Council,13/05/2018,091HOUSING,Housing and Community Services,20120,Neighbourhood Services,D2622,Mobile Phones,10.00,O2 (UK) Ltd,Mobile Phones,2002808,201804,
Rother District Council,13/05/2018,091HOUSING,Housing and Community Services,20120,Neighbourhood Services,D2622,Mobile Phones,10.00,O2 (UK) Ltd,Mobile Phones,2002808,201804,
Rother District Council,13/05/2018,091HOUSING,Housing and Community Services,20120,Neighbourhood Services,D2622,Mobile Phones,10.00,O2 (UK) Ltd,Mobile Phones,2002808,201804,
Rother District Council,13/05/2018,091HOUSING,Housing and Community Services,20120,Neighbourhood Services,D2622,Mobile Phones,10.00,O2 (UK) Ltd,Mobile Phones,2002808,201804,
Rother District Council,13/05/2018,091HOUSING,Housing and Community Services,20120,Neighbourhood Services,D2622,Mobile Phones,13.99,O2 (UK) Ltd,Mobile Phones,2002808,201804,
Rother District Council,13/05/2018,091HOUSING,Housing and Community Services,20120,Neighbourhood Services,D2622,Mobile Phones,10.00,O2 (UK) Ltd,Mobile Phones,2002808,201804,
Rother District Council,13/05/2018,091HOUSING,Housing and Community Services,20120,Neighbourhood Services,D2622,Mobile Phones,10.00,O2 (UK) Ltd,Mobile Phones,2002808,201804,
Rother District Council,13/05/2018,091HOUSING,Housing and Community Services,20120,Neighbourhood Services,D2622,Mobile Phones,10.20,O2 (UK) Ltd,Mobile Phones,2002808,201804,
Rother District Council,13/05/2018,091HOUSING,Housing and Community Services,20120,Neighbourhood Services,D2622,Mobile Phones,10.00,O2 (UK) Ltd,Mobile Phones,2002808,201804,
Rother District Council,13/05/2018,091HOUSING,Housing and Community Services,20120,Neighbourhood Services,D2622,Mobile Phones,10.08,O2 (UK) Ltd,Mobile Phones,2002808,201804,
Rother District Council,13/05/2018,091HOUSING,Housing and Community Services,20120,Neighbourhood Services,D2622,Mobile Phones,10.08,O2 (UK) Ltd,Mobile Phones,2002808,201804,
Rother District Council,13/05/2018,091HOUSING,Housing and Community Services,20120,Neighbourhood Services,D2622,Mobile Phones,10.00,O2 (UK) Ltd,Mobile Phones,2002808,201804,
Rother District Council,13/05/2018,091HOUSING,Housing and Community Services,20120,Neighbourhood Services,D2622,Mobile Phones,10.00,O2 (UK) Ltd,Mobile Phones,2002808,201804,
Rother District Council,13/05/2018,091HOUSING,Housing and Community Services,20120,Neighbourhood Services,D2622,Mobile Phones,10.00,O2 (UK) Ltd,Mobile Phones,2002808,201804,
Rother District Council,13/05/2018,091HOUSING,Housing and Community Services,20120,Neighbourhood Services,D2622,Mobile Phones,10.00,O2 (UK) Ltd,Mobile Phones,2002808,201804,
Rother District Council,13/05/2018,081ACQUISIT,"Acquisitions, Transformation and Regeneration",20122,Economic Development,D2622,Mobile Phones,10.00,O2 (UK) Ltd,Mobile Phones,2002808,201804,
Rother District Council,13/05/2018,081ACQUISIT,"Acquisitions, Transformation and Regeneration",20122,Economic Development,D2622,Mobile Phones,10.00,O2 (UK) Ltd,Mobile Phones,2002808,201804,
Rother District Council,13/05/2018,081ACQUISIT,"Acquisitions, Transformation and Regeneration",20122,Economic Development,D2622,Mobile Phones,10.00,O2 (UK) Ltd,Mobile Phones,2002808,201804,
Rother District Council,13/05/2018,081ACQUISIT,"Acquisitions, Transformation and Regeneration",20122,Economic Development,D2622,Mobile Phones,10.00,O2 (UK) Ltd,Mobile Phones,2002808,201804,
Rother District Council,13/05/2018,091HOUSING,Housing and Community Services,20120,Neighbourhood Services,D2622,Mobile Phones,10.00,O2 (UK) Ltd,Mobile Phones,2002808,201804,
Rother District Council,13/05/2018,091HOUSING,Housing and Community Services,20120,Neighbourhood Services,D2622,Mobile Phones,10.00,O2 (UK) Ltd,Mobile Phones,2002808,201804,
Rother District Council,13/05/2018,091HOUSING,Housing and Community Services,20120,Neighbourhood Services,D2622,Mobile Phones,10.00,O2 (UK) Ltd,Mobile Phones,2002808,201804,
Rother District Council,13/05/2018,091HOUSING,Housing and Community Services,20120,Neighbourhood Services,D2622,Mobile Phones,10.00,O2 (UK) Ltd,Mobile Phones,2002808,201804,
Rother District Council,13/05/2018,081ACQUISIT,"Acquisitions, Transformation and Regeneration",20122,Economic Development,D2622,Mobile Phones,10.00,O2 (UK) Ltd,Mobile Phones,2002813,201804,
Rother District Council,13/05/2018,081ACQUISIT,"Acquisitions, Transformation and Regeneration",20122,Economic Development,D2622,Mobile Phones,10.00,O2 (UK) Ltd,Mobile Phones,2002813,201804,
Rother District Council,13/05/2018,081ACQUISIT,"Acquisitions, Transformation and Regeneration",20122,Economic Development,D2622,Mobile Phones,10.00,O2 (UK) Ltd,Mobile Phones,2002813,201804,
Rother District Council,13/05/2018,081ACQUISIT,"Acquisitions, Transformation and Regeneration",20122,Economic Development,D2622,Mobile Phones,10.00,O2 (UK) Ltd,Mobile Phones,2002813,201804,
Rother District Council,13/05/2018,081ACQUISIT,"Acquisitions, Transformation and Regeneration",20122,Economic Development,D2622,Mobile Phones,10.00,O2 (UK) Ltd,Mobile Phones,2002813,201804,
Rother District Council,13/05/2018,081ACQUISIT,"Acquisitions, Transformation and Regeneration",20122,Economic Development,D2622,Mobile Phones,10.00,O2 (UK) Ltd,Mobile Phones,2002813,201804,
Rother District Council,13/05/2018,081ACQUISIT,"Acquisitions, Transformation and Regeneration",20122,Economic Development,D2622,Mobile Phones,17.95,O2 (UK) Ltd,Mobile Phones,2002813,201804,
Rother District Council,13/05/2018,101RESOURCES,Resources,20226,Service Manager Finance and Welfare,D2622,Mobile Phones,10.36,O2 (UK) Ltd,Mobile Phones,2002832,201804,
Rother District Council,13/05/2018,091HOUSING,Housing and Community Services,20236,Customer Services and Development,D2622,Mobile Phones,10.00,O2 (UK) Ltd,Mobile Phones,2002812,201804,
Rother District Council,13/05/2018,091HOUSING,Housing and Community Services,20204,Housing Administration Account,D2622,Mobile Phones,10.00,O2 (UK) Ltd,Mobile Phones,2002820,201804,
Rother District Council,13/05/2018,091HOUSING,Housing and Community Services,20204,Housing Administration Account,D2622,Mobile Phones,10.00,O2 (UK) Ltd,Mobile Phones,2002820,201804,
Rother District Council,13/05/2018,091HOUSING,Housing and Community Services,20204,Housing Administration Account,D2622,Mobile Phones,10.47,O2 (UK) Ltd,Mobile Phones,2002820,201804,
Rother District Council,13/05/2018,091HOUSING,Housing and Community Services,20204,Housing Administration Account,D2622,Mobile Phones,10.00,O2 (UK) Ltd,Mobile Phones,2002820,201804,
Rother District Council,13/05/2018,091HOUSING,Housing and Community Services,20204,Housing Administration Account,D2622,Mobile Phones,10.00,O2 (UK) Ltd,Mobile Phones,2002820,201804,
Rother District Council,13/05/2018,091HOUSING,Housing and Community Services,20204,Housing Administration Account,D2622,Mobile Phones,10.00,O2 (UK) Ltd,Mobile Phones,2002820,201804,
Rother District Council,13/05/2018,091HOUSING,Housing and Community Services,20204,Housing Administration Account,D2622,Mobile Phones,13.30,O2 (UK) Ltd,Mobile Phones,2002820,201804,
Rother District Council,13/05/2018,091HOUSING,Housing and Community Services,20204,Housing Administration Account,D2622,Mobile Phones,10.00,O2 (UK) Ltd,Mobile Phones,2002820,201804,
Rother District Council,13/05/2018,101RESOURCES,Resources,20239,Computer Services,D2622,Mobile Phones,10.00,O2 (UK) Ltd,Mobile Phones,2002824,201804,
Rother District Council,13/05/2018,101RESOURCES,Resources,20239,Computer Services,D2622,Mobile Phones,10.00,O2 (UK) Ltd,Mobile Phones,2002824,201804,
Rother District Council,13/05/2018,101RESOURCES,Resources,20239,Computer Services,D2622,Mobile Phones,10.00,O2 (UK) Ltd,Mobile Phones,2002824,201804,
Rother District Council,13/05/2018,101RESOURCES,Resources,20239,Computer Services,D2622,Mobile Phones,10.00,O2 (UK) Ltd,Mobile Phones,2002824,201804,
Rother District Council,13/05/2018,101RESOURCES,Resources,20239,Computer Services,D2622,Mobile Phones,10.00,O2 (UK) Ltd,Mobile Phones,2002824,201804,
Rother District Council,13/05/2018,101RESOURCES,Resources,20239,Computer Services,D2622,Mobile Phones,10.00,O2 (UK) Ltd,Mobile Phones,2002824,201804,
Rother District Council,13/05/2018,101RESOURCES,Resources,20239,Computer Services,D2622,Mobile Phones,10.00,O2 (UK) Ltd,Mobile Phones,2002824,201804,
Rother District Council,13/05/2018,101RESOURCES,Resources,20239,Computer Services,D2622,Mobile Phones,10.00,O2 (UK) Ltd,Mobile Phones,2002824,201804,
Rother District Council,13/05/2018,101RESOURCES,Resources,20239,Computer Services,D2622,Mobile Phones,10.00,O2 (UK) Ltd,Mobile Phones,2002824,201804,
Rother District Council,13/05/2018,101RESOURCES,Resources,20215,Revenue and Benefits,D2622,Mobile Phones,10.00,O2 (UK) Ltd,Mobile Phones,2002812,201804,
Rother District Council,13/05/2018,101RESOURCES,Resources,20215,Revenue and Benefits,D2622,Mobile Phones,10.00,O2 (UK) Ltd,Mobile Phones,2002812,201804,
Rother District Council,13/05/2018,101RESOURCES,Resources,20215,Revenue and Benefits,D2622,Mobile Phones,10.00,O2 (UK) Ltd,Mobile Phones,2002812,201804,
Rother District Council,13/05/2018,101RESOURCES,Resources,20215,Revenue and Benefits,D2622,Mobile Phones,10.00,O2 (UK) Ltd,Mobile Phones,2002812,201804,
Rother District Council,13/05/2018,101RESOURCES,Resources,20215,Revenue and Benefits,D2622,Mobile Phones,10.00,O2 (UK) Ltd,Mobile Phones,2002812,201804,
Rother District Council,13/05/2018,101RESOURCES,Resources,20215,Revenue and Benefits,D2622,Mobile Phones,10.00,O2 (UK) Ltd,Mobile Phones,2002812,201804,
Rother District Council,13/05/2018,101RESOURCES,Resources,20215,Revenue and Benefits,D2622,Mobile Phones,10.00,O2 (UK) Ltd,Mobile Phones,2002812,201804,
Rother District Council,13/05/2018,101RESOURCES,Resources,20215,Revenue and Benefits,D2622,Mobile Phones,10.00,O2 (UK) Ltd,Mobile Phones,2002812,201804,
Rother District Council,14/05/2018,031RESOURCES,Executive Directors & Corporate Core,20162,Electoral Registration,D1203,Books And Publications,111.50,Thomson Reuters Ltd,Books And Publications Miscellaneous Legal Reference Books,2002278,201804,
Rother District Council,14/05/2018,031RESOURCES,Executive Directors & Corporate Core,20162,Electoral Registration,D1203,Books And Publications,111.50,Thomson Reuters Ltd,Books And Publications Miscellaneous Legal Reference Books,2002278,201804,
Rother District Council,16/05/2018,101RESOURCES,Resources,20240,Printing Services,D2417,Photocopy Paper by external suppliers,402.87,The Roman Group,Photocopy Paper Wide Format Consumables,2002367,201804,
Rother District Council,16/05/2018,101RESOURCES,Resources,20241,Stationery,D2416,Stationery ordered internally (Print Room),35.65,Office Depot UK Ltd,Stationery (General office Supplies) (Stationery Services to buy ONLY),2002947,201805,
Rother District Council,17/05/2018,101RESOURCES,Resources,20241,Stationery,D2416,Stationery ordered internally (Print Room),27.89,Office Depot UK Ltd,Stationery (General office Supplies) (Stationery Services to buy ONLY),2002948,201805,
Rother District Council,20/05/2018,091HOUSING,Housing and Community Services,20204,Housing Administration Account,D2922,Subscriptions,322.75,Hastings Borough Council,Contribution to Costs,2003377,201805,
Rother District Council,21/05/2018,101RESOURCES,Resources,20239,Computer Services,D2635,Computer Licences,"5,200.00",Chess Cybersecurity,Computer Licences Penetration Testing,2002325,201804,
Rother District Council,21/05/2018,091HOUSING,Housing and Community Services,20208,Care In The Community,D2513,Hired and Contracted services,250.00,Safe Partnership Ltd,Hired and contracted services Sanctuary DV Assistance Revenue,2002654,201804,
Rother District Council,21/05/2018,091HOUSING,Housing and Community Services,20208,Care In The Community,D2513,Hired and Contracted services,195.00,Safe Partnership Ltd,Hired and contracted services Sanctuary DV Assistance Revenue,2002655,201804,
Rother District Council,21/05/2018,091HOUSING,Housing and Community Services,20108,Bexhill Promenade & Foreshore,D2985,Professional Services - Other,27.45,The Fountain Workshop (Maintenance) Ltd,Third party payment private contractors Water Feature Maintenance,2002985,201805,
Rother District Council,21/05/2018,091HOUSING,Housing and Community Services,20108,Bexhill Promenade & Foreshore,E2302,Third party payment private contractors,"1,158.41",The Fountain Workshop (Maintenance) Ltd,Third party payment private contractors Water Feature Maintenance,2002979,201804,
Rother District Council,22/05/2018,101RESOURCES,Resources,20216,Cost Of Collection,D2513,Hired and Contracted services,69.00,H M Land Registry,Hired and contracted services Council Tax-Land Registry Enquiries,2001760,201806,
Rother District Council,22/05/2018,071STRAT,Strategy and Planning,32145,Building Control Applications R+H Partnership,D2513,Hired and Contracted services,3.00,H M Land Registry,Hired and contracted services Env H- Land Registry,2001760,201806,
Rother District Council,22/05/2018,091HOUSING,Housing and Community Services,20200,Housing Needs - HB (Housing Benefit),D2513,Hired and Contracted services,6.00,H M Land Registry,Hired and contracted services Housing- Land Registry,2001760,201806,
Rother District Council,22/05/2018,071STRAT,Strategy and Planning,20246,Planning Applications,D2513,Hired and Contracted services,24.00,H M Land Registry,Hired and contracted services Land Registry - Planning,2001760,201806,
Rother District Council,22/05/2018,041ENVIRON,Environmental Services,32138,EH Health and Safety and IDs R + W Partnership,D2513,Hired and Contracted services,975.00,CarnDu Ltd,Hired and contracted services Service fee paid,2003428,201805,
Rother District Council,22/05/2018,091HOUSING,Housing and Community Services,20128,Public Conveniences,B2421,Water,104.80,Scottish Water Business Stream Limited,Water Charges,2002291,201804,
Rother District Council,23/05/2018,091HOUSING,Housing and Community Services,20108,Bexhill Promenade & Foreshore,E2302,Third party payment private contractors,152.75,The Fountain Workshop (Maintenance) Ltd,Third party payment private contractors Water Feature Maintenance,2002983,201804,
Rother District Council,23/05/2018,091HOUSING,Housing and Community Services,20108,Bexhill Promenade & Foreshore,E2302,Third party payment private contractors,"1,696.41",The Fountain Workshop (Maintenance) Ltd,Third party payment private contractors Water Feature Maintenance,2002984,201804,
Rother District Council,24/05/2018,091HOUSING,Housing and Community Services,20200,Housing Needs - HB (Housing Benefit),D2514,Accommodation Costs,650.00,JFS Properties,Homelessness services Deposit for Landlords,2002319,201804,
Rother District Council,24/05/2018,091HOUSING,Housing and Community Services,20200,Housing Needs - HB (Housing Benefit),D2514,Accommodation Costs,650.00,JFS Properties,Homelessness services Rent in Advance for Homeless,2002319,201804,
Rother District Council,24/05/2018,091HOUSING,Housing and Community Services,20114,Bexhill Parks & Open Spaces,B2421,Water,174.12,South East Water Ltd,Water Charges,2002296,201804,
Rother District Council,24/05/2018,091HOUSING,Housing and Community Services,20128,Public Conveniences,B2421,Water,43.53,South East Water Ltd,Water Charges,2002296,201804,
Rother District Council,26/05/2018,091HOUSING,Housing and Community Services,20108,Bexhill Promenade & Foreshore,B2421,Water,15.86,South East Water Ltd,Water Charges,2002290,201804,
Rother District Council,29/05/2018,071STRAT,Strategy and Planning,20244,General Planning Expenses,D2513,Hired and Contracted services,156.96,Colyer Repropoint Ltd,Hired and Contracted services,2003403,201805,
Rother District Council,30/05/2018,999NOREPORT,"Acquisitions, Transformation and Regeneration",70721,Capital - Acquisition 14 Terminus Road,N1002,Land & Property fees,"3,660.00",Meridian Surveyors,Land & Property fees Capital-Land and Propty - Fees Etc.,2002804,201804,
Rother District Council,31/05/2018,091HOUSING,Housing and Community Services,20145,Maintenance Services,C1104,Derv,1.90,Allstar Business Solutions,Derv Fuel Service fee payable on fuel cards,2002921,201804,
Rother District Council,31/05/2018,091HOUSING,Housing and Community Services,20107,Camber Beach & Foreshore,C1104,Derv,1.90,Allstar Business Solutions,Derv Fuel Service fee payable on fuel cards,2002921,201804,
Rother District Council,31/05/2018,071STRAT,Strategy and Planning,20255,Local Development Framework,D2513,Hired and Contracted services,160.00,Robertsbridge Community Association,Hired and contracted services Hire of Meeting Room,2002684,201804,
Rother District Council,31/05/2018,041ENVIRON,Environmental Services,32142,EH Taxi and Private Hire Licenses R + W Partnership,D2513,Hired and Contracted services,572.00,DBS The Disclosure and Barring Service,Hired and contracted services Service fee paid,2002736,201804,
Rother District Council,31/05/2018,101RESOURCES,Resources,20239,Computer Services,D2513,Hired and Contracted services,"3,645.00",Chess Cybersecurity,Hired and contracted services Service fee paid,2002327,201804,
Rother District Council,31/05/2018,071STRAT,Strategy and Planning,20255,Local Development Framework,D2415,Printing by external suppliers,"1,966.36",Electoral Reform Services Ltd,Printing Printing (Not from RDC Print Room),2002477,201804,
Rother District Council,31/05/2018,091HOUSING,Housing and Community Services,20128,Public Conveniences,B2422,Sewerage,63.39,Scottish Water Business Stream Limited,Sewage Charges,2003988,201806,
Rother District Council,31/05/2018,091HOUSING,Housing and Community Services,20108,Bexhill Promenade & Foreshore,D2513,Hired and Contracted services,"1,158.41",The Fountain Workshop (Maintenance) Ltd,Third party payment private contractors Water Feature Maintenance,2003240,201805,
Rother District Council,31/05/2018,091HOUSING,Housing and Community Services,20128,Public Conveniences,B2421,Water,37.61,Scottish Water Business Stream Limited,Water Charges,2003988,201806,
Rother District Council,31/05/2018,091HOUSING,Housing and Community Services,20145,Maintenance Services,C1104,Derv,71.68,Allstar Business Solutions,Derv,2002921,201804,
Rother District Council,31/05/2018,091HOUSING,Housing and Community Services,20107,Camber Beach & Foreshore,C1104,Derv,21.06,Allstar Business Solutions,Derv,2002921,201804,
Rother District Council,01/06/2018,091HOUSING,Housing and Community Services,20113,Bexhill Leisure Pool,D2513,Hired and Contracted services,"7,000.00",Savills (UK) Ltd,Hired and contracted services Service Charge-Savills,2002309,201804,
Rother District Council,01/06/2018,071STRAT,Strategy and Planning,20246,Planning Applications,D2519,Statutory Advertising,915.00,Johnston Publishing Ltd,Statutory Advertising Planadv - Rye + Battle Observer,2002387,201804,
Rother District Council,02/06/2018,091HOUSING,Housing and Community Services,20128,Public Conveniences,B2422,Sewerage,184.70,Scottish Water Business Stream Limited,Sewage Charges,2002891,201804,
Rother District Council,04/06/2018,041ENVIRON,Environmental Services,20129,Community Safety,D2513,Hired and Contracted services,990.00,Mallard Consultancy Ltd,Hired and contracted services Service fee paid,2002272,201804,
Rother District Council,04/06/2018,081ACQUISIT,"Acquisitions, Transformation and Regeneration",20154,Committee Property Account,B1100,Repairs to Premises,26.46,Trade Paints Ltd,Repairs to Premises Purchase of Materials - Build Maint,2002683,201804,
Rother District Council,05/06/2018,081ACQUISIT,"Acquisitions, Transformation and Regeneration",20148,Misc Land & Buildings,B2201,Electricity,77.28,Polegrove Management Committee,Electricity Re-imbursement -Electricity Charges,2002310,201804,
Rother District Council,05/06/2018,091HOUSING,Housing and Community Services,20114,Bexhill Parks & Open Spaces,D2513,Hired and Contracted services,35.00,The Pelham,Hired and contracted services Hire of Meeting Room,2002735,201804,
Rother District Council,05/06/2018,101RESOURCES,Resources,20209,Corporate management,D2513,Hired and Contracted services,106.27,Lloyds Bank,Hired and Contracted services,2002800,201804,
Rother District Council,05/06/2018,101RESOURCES,Resources,20209,Corporate management,D2513,Hired and Contracted services,73.00,Lloyds Bank,Hired and Contracted services,2002802,201804,
Rother District Council,05/06/2018,041ENVIRON,Environmental Services,32142,EH Taxi and Private Hire Licenses R + W Partnership,E2302,Third party payment private contractors,88.00,uCheck,Third party payment private contractors,2002898,201805,
Rother District Council,05/06/2018,041ENVIRON,Environmental Services,32142,EH Taxi and Private Hire Licenses R + W Partnership,E2302,Third party payment private contractors,15.34,uCheck,Third party payment private contractors,2002898,201805,
Rother District Council,06/06/2018,101RESOURCES,Resources,20216,Cost Of Collection,D2513,Hired and Contracted services,24.00,H M Land Registry,Hired and contracted services Council Tax-Land Registry Enquiries,2002252,201804,
Rother District Council,06/06/2018,041ENVIRON,Environmental Services,32144,EH Environmental Services Admin R + W Partnership,D2513,Hired and Contracted services,6.00,H M Land Registry,Hired and contracted services Env H- Land Registry,2002252,201804,
Rother District Council,06/06/2018,041ENVIRON,Environmental Services,20141,Private Sector Housing,D2513,Hired and Contracted services,3.00,H M Land Registry,Hired and contracted services Housing- Land Registry,2002252,201804,
Rother District Council,06/06/2018,071STRAT,Strategy and Planning,20246,Planning Applications,D2513,Hired and Contracted services,18.00,H M Land Registry,Hired and contracted services Land Registry - Planning,2002252,201804,
Rother District Council,06/06/2018,031RESOURCES,Executive Directors & Corporate Core,20156,Representing Local Interest,D2732,Members Conference Expenses,395.00,GovNet Communications,Members Conference Expenses Members Conference Travel,2002629,201804,
Rother District Council,07/06/2018,071STRAT,Strategy and Planning,20246,Planning Applications,D2513,Hired and Contracted services,90.00,H M Land Registry,Hired and contracted services Land Registry - Planning,2002914,201804,
Rother District Council,07/06/2018,091HOUSING,Housing and Community Services,20128,Public Conveniences,B1100,Repairs to Premises,330.00,CountyClean Environmental Services Ltd,Sewerage - Sewage/Cesspool Emptying,2002573,201804,
Rother District Council,07/06/2018,081ACQUISIT,"Acquisitions, Transformation and Regeneration",20153,"Elva Business Centre, Bexhill",B1100,Repairs to Premises,300.00,CountyClean Environmental Services Ltd,Sewerage - Sewage/Cesspool Emptying,2002573,201804,
Rother District Council,07/06/2018,091HOUSING,Housing and Community Services,20128,Public Conveniences,B1100,Repairs to Premises,330.00,CountyClean Environmental Services Ltd,Sewerage - Sewage/Cesspool Emptying,2001833,201804,
Rother District Council,07/06/2018,081ACQUISIT,"Acquisitions, Transformation and Regeneration",20153,"Elva Business Centre, Bexhill",B1100,Repairs to Premises,300.00,CountyClean Environmental Services Ltd,Sewerage - Sewage/Cesspool Emptying,2001833,201804,
Rother District Council,07/06/2018,081ACQUISIT,"Acquisitions, Transformation and Regeneration",20153,"Elva Business Centre, Bexhill",B1100,Repairs to Premises,-300.00,CountyClean Environmental Services Ltd,Sewerage - Sewage/Cesspool Emptying,1000423,201804,
Rother District Council,07/06/2018,091HOUSING,Housing and Community Services,20128,Public Conveniences,B1100,Repairs to Premises,-330.00,CountyClean Environmental Services Ltd,Sewerage - Sewage/Cesspool Emptying,1000423,201804,
Rother District Council,08/06/2018,999NOREPORT,Environmental Services,70706,Capital - Disable Facilities Grant,N1012,Capital Advances,"4,153.00",Mr Mark Neale General Building and Plumbing Ltd,Capital Advances Disabled Facilities Grant,2003033,201804,
Rother District Council,08/06/2018,101RESOURCES,Resources,20216,Cost Of Collection,D2513,Hired and Contracted services,21.00,H M Land Registry,Hired and contracted services Council Tax-Land Registry Enquiries,2002913,201804,
Rother District Council,08/06/2018,999NOREPORT,Resources,90000,Balance sheet all accounts,P1086,HMRC National Insurance,804.82,HM Revenue and  Customs PAYE,HMRC National Insurance National Insurance Class 1 A (Cars),2003268,201805,
Rother District Council,09/06/2018,101RESOURCES,Resources,20242,Communications-Phones,D2621,Telephones,67.50,TalkTalk Communications Ltd T/A TalkTalk Business,Telephones Broadband Connection,2002834,201804,
Rother District Council,10/06/2018,999NOREPORT,Resources,90000,Balance sheet all accounts,P1099,Owed by - Colonnade Bexhill Ltd,85.00,Epos Now Ltd,Colonnade Restaurant Bexhill Ltd - purchases,2002848,201804,
Rother District Council,11/06/2018,999NOREPORT,Resources,90000,Balance sheet all accounts,P1099,Owed by - Colonnade Bexhill Ltd,500.00,Lloyds Bank,Colonnade Restaurant Bexhill Ltd - purchases,2002856,201804,
Rother District Council,11/06/2018,091HOUSING,Housing and Community Services,20137,Car Parks,D1201,Equipment & Materials,369.30,Lloyds Bank,Equipment & Materials Purchase of Signs,2002856,201804,
Rother District Council,11/06/2018,091HOUSING,Housing and Community Services,20137,Car Parks,D1201,Equipment & Materials,320.00,Lloyds Bank,Equipment & Materials Purchase of Signs,2002856,201804,
Rother District Council,11/06/2018,091HOUSING,Housing and Community Services,20133,Refuse Collection,D2513,Hired and Contracted services,29.17,Lloyds Bank,Hired and contracted services Delivery and/or Packaging of Equipm,2002852,201804,
Rother District Council,11/06/2018,031RESOURCES,Executive Directors & Corporate Core,20156,Representing Local Interest,D2312,Refreshments,155.50,Lloyds Bank,Refreshments Catering/Refreshments for Meetings,2002856,201804,
Rother District Council,11/06/2018,081ACQUISIT,"Acquisitions, Transformation and Regeneration",20154,Committee Property Account,B1100,Repairs to Premises,29.39,Jewson Limited,Repairs to Premises Purchase of Materials - Build Maint,2003990,201806,
Rother District Council,11/06/2018,091HOUSING,Housing and Community Services,20108,Bexhill Promenade & Foreshore,B1100,Repairs to Premises,58.12,Jewson Limited,Repairs to Premises Purchase of Materials - Build Maint,2002299,201804,
Rother District Council,11/06/2018,081ACQUISIT,"Acquisitions, Transformation and Regeneration",20154,Committee Property Account,B1100,Repairs to Premises,69.60,Howden Joinery Ltd,Repairs to Premises Purchase of Materials - Build Maint,2002355,201804,
Rother District Council,11/06/2018,081ACQUISIT,"Acquisitions, Transformation and Regeneration",20154,Committee Property Account,B1100,Repairs to Premises,-9.36,Howden Joinery Ltd,Repairs to Premises Purchase of Materials - Build Maint,2002354,201804,
Rother District Council,11/06/2018,031RESOURCES,Executive Directors & Corporate Core,20162,Electoral Registration,A2203,Training,85.00,Lloyds Bank,Training,2002852,201804,
Rother District Council,11/06/2018,101RESOURCES,Resources,20209,Corporate management,D2513,Hired and Contracted services,219.00,Lloyds Bank,Hired and Contracted services,2002801,201804,
Rother District Council,12/06/2018,091HOUSING,Housing and Community Services,20114,Bexhill Parks & Open Spaces,D2513,Hired and Contracted services,720.81,Xylem Water Solutions UK Ltd,Hired and contracted services Parks- Consultants Fees,2002382,201804,
Rother District Council,12/06/2018,081ACQUISIT,"Acquisitions, Transformation and Regeneration",20154,Committee Property Account,B1100,Repairs to Premises,"23,775.37",J H Payne and Sons Ltd,Repairs to Premises - Colonnade Water Proofing and repairs,2002603,201804,
Rother District Council,12/06/2018,091HOUSING,Housing and Community Services,20128,Public Conveniences,B2422,Sewerage,424.74,Scottish Water Business Stream Limited,Sewage Charges,2002268,201804,
Rother District Council,12/06/2018,091HOUSING,Housing and Community Services,20128,Public Conveniences,B2421,Water,267.54,Scottish Water Business Stream Limited,Water Charges,2002268,201804,
Rother District Council,13/06/2018,081ACQUISIT,"Acquisitions, Transformation and Regeneration",20154,Committee Property Account,D2513,Hired and Contracted services,"3,701.49",Mr R J Sheppard T/A E A R Sheppard,Hired and contracted services Consultancy Service per Contract,2002222,201804,
Rother District Council,13/06/2018,081ACQUISIT,"Acquisitions, Transformation and Regeneration",20154,Committee Property Account,B1100,Repairs to Premises,39.82,Jewson Limited,Repairs to Premises Purchase of Materials - Build Maint,2002303,201804,
Rother District Council,13/06/2018,061ICT,ICT and Customer Services,20238,Service Manager ICT & Customer Services,D2622,Mobile Phones,10.00,O2 (UK) Ltd,Mobile Phones,2002788,201804,
Rother District Council,13/06/2018,061ICT,ICT and Customer Services,20238,Service Manager ICT & Customer Services,D2622,Mobile Phones,10.00,O2 (UK) Ltd,Mobile Phones,2002788,201804,
Rother District Council,13/06/2018,041ENVIRON,Environmental Services,20187,Pollution,D2622,Mobile Phones,10.00,O2 (UK) Ltd,Mobile Phones,2002793,201804,
Rother District Council,13/06/2018,041ENVIRON,Environmental Services,20187,Pollution,D2622,Mobile Phones,10.00,O2 (UK) Ltd,Mobile Phones,2002793,201804,
Rother District Council,13/06/2018,041ENVIRON,Environmental Services,20187,Pollution,D2622,Mobile Phones,10.00,O2 (UK) Ltd,Mobile Phones,2002793,201804,
Rother District Council,13/06/2018,041ENVIRON,Environmental Services,20187,Pollution,D2622,Mobile Phones,10.00,O2 (UK) Ltd,Mobile Phones,2002793,201804,
Rother District Council,13/06/2018,041ENVIRON,Environmental Services,20187,Pollution,D2622,Mobile Phones,10.00,O2 (UK) Ltd,Mobile Phones,2002793,201804,
Rother District Council,13/06/2018,041ENVIRON,Environmental Services,20187,Pollution,D2622,Mobile Phones,10.00,O2 (UK) Ltd,Mobile Phones,2002793,201804,
Rother District Council,13/06/2018,041ENVIRON,Environmental Services,20199,Food and Safety Team,D2622,Mobile Phones,10.00,O2 (UK) Ltd,Mobile Phones,2002793,201804,
Rother District Council,13/06/2018,041ENVIRON,Environmental Services,20199,Food and Safety Team,D2622,Mobile Phones,22.04,O2 (UK) Ltd,Mobile Phones,2002793,201804,
Rother District Council,13/06/2018,041ENVIRON,Environmental Services,20199,Food and Safety Team,D2622,Mobile Phones,10.00,O2 (UK) Ltd,Mobile Phones,2002793,201804,
Rother District Council,13/06/2018,041ENVIRON,Environmental Services,20199,Food and Safety Team,D2622,Mobile Phones,10.00,O2 (UK) Ltd,Mobile Phones,2002793,201804,
Rother District Council,13/06/2018,041ENVIRON,Environmental Services,20199,Food and Safety Team,D2622,Mobile Phones,10.00,O2 (UK) Ltd,Mobile Phones,2002793,201804,
Rother District Council,13/06/2018,041ENVIRON,Environmental Services,20199,Food and Safety Team,D2622,Mobile Phones,10.00,O2 (UK) Ltd,Mobile Phones,2002793,201804,
Rother District Council,13/06/2018,041ENVIRON,Environmental Services,20199,Food and Safety Team,D2622,Mobile Phones,10.00,O2 (UK) Ltd,Mobile Phones,2002793,201804,
Rother District Council,13/06/2018,041ENVIRON,Environmental Services,20199,Food and Safety Team,D2622,Mobile Phones,10.00,O2 (UK) Ltd,Mobile Phones,2002793,201804,
Rother District Council,13/06/2018,041ENVIRON,Environmental Services,20199,Food and Safety Team,D2622,Mobile Phones,10.00,O2 (UK) Ltd,Mobile Phones,2002793,201804,
Rother District Council,13/06/2018,041ENVIRON,Environmental Services,20199,Food and Safety Team,D2622,Mobile Phones,10.00,O2 (UK) Ltd,Mobile Phones,2002793,201804,
Rother District Council,13/06/2018,041ENVIRON,Environmental Services,20199,Food and Safety Team,D2622,Mobile Phones,10.00,O2 (UK) Ltd,Mobile Phones,2002793,201804,
Rother District Council,13/06/2018,041ENVIRON,Environmental Services,20199,Food and Safety Team,D2622,Mobile Phones,10.00,O2 (UK) Ltd,Mobile Phones,2002793,201804,
Rother District Council,13/06/2018,041ENVIRON,Environmental Services,20187,Pollution,D2622,Mobile Phones,10.00,O2 (UK) Ltd,Mobile Phones,2002793,201804,
Rother District Council,13/06/2018,041ENVIRON,Environmental Services,20187,Pollution,D2622,Mobile Phones,10.00,O2 (UK) Ltd,Mobile Phones,2002793,201804,
Rother District Council,13/06/2018,041ENVIRON,Environmental Services,20187,Pollution,D2622,Mobile Phones,10.00,O2 (UK) Ltd,Mobile Phones,2002793,201804,
Rother District Council,13/06/2018,041ENVIRON,Environmental Services,20187,Pollution,D2622,Mobile Phones,10.00,O2 (UK) Ltd,Mobile Phones,2002793,201804,
Rother District Council,13/06/2018,041ENVIRON,Environmental Services,20187,Pollution,D2622,Mobile Phones,10.00,O2 (UK) Ltd,Mobile Phones,2002793,201804,
Rother District Council,13/06/2018,041ENVIRON,Environmental Services,20187,Pollution,D2622,Mobile Phones,10.00,O2 (UK) Ltd,Mobile Phones,2002793,201804,
Rother District Council,13/06/2018,071STRAT,Strategy and Planning,20247,Service Manager Strategy and Planning,D2622,Mobile Phones,10.00,O2 (UK) Ltd,Mobile Phones,2002784,201804,
Rother District Council,13/06/2018,041ENVIRON,Environmental Services,20197,Service Manager Env Serv,D2622,Mobile Phones,10.08,O2 (UK) Ltd,Mobile Phones,2002793,201804,
Rother District Council,13/06/2018,041ENVIRON,Environmental Services,20198,Licensing Team,D2622,Mobile Phones,10.00,O2 (UK) Ltd,Mobile Phones,2002793,201804,
Rother District Council,13/06/2018,041ENVIRON,Environmental Services,20198,Licensing Team,D2622,Mobile Phones,10.00,O2 (UK) Ltd,Mobile Phones,2002793,201804,
Rother District Council,13/06/2018,041ENVIRON,Environmental Services,20198,Licensing Team,D2622,Mobile Phones,10.00,O2 (UK) Ltd,Mobile Phones,2002793,201804,
Rother District Council,13/06/2018,041ENVIRON,Environmental Services,20198,Licensing Team,D2622,Mobile Phones,10.00,O2 (UK) Ltd,Mobile Phones,2002793,201804,
Rother District Council,13/06/2018,041ENVIRON,Environmental Services,20198,Licensing Team,D2622,Mobile Phones,10.00,O2 (UK) Ltd,Mobile Phones,2002793,201804,
Rother District Council,13/06/2018,041ENVIRON,Environmental Services,20198,Licensing Team,D2622,Mobile Phones,10.00,O2 (UK) Ltd,Mobile Phones,2002793,201804,
Rother District Council,13/06/2018,041ENVIRON,Environmental Services,20198,Licensing Team,D2622,Mobile Phones,13.72,O2 (UK) Ltd,Mobile Phones,2002793,201804,
Rother District Council,13/06/2018,031RESOURCES,Executive Directors & Corporate Core,20179,Communications,D2622,Mobile Phones,10.00,O2 (UK) Ltd,Mobile Phones,2002796,201804,
Rother District Council,13/06/2018,031RESOURCES,Executive Directors & Corporate Core,20180,Emergency Planning,D2622,Mobile Phones,10.00,O2 (UK) Ltd,Mobile Phones,2002796,201804,
Rother District Council,13/06/2018,031RESOURCES,Executive Directors & Corporate Core,20185,Joint Waste procurement,D2622,Mobile Phones,10.00,O2 (UK) Ltd,Mobile Phones,2002786,201804,
Rother District Council,13/06/2018,031RESOURCES,Executive Directors & Corporate Core,32132,Joint Waste Contract Client Unit,D2622,Mobile Phones,10.00,O2 (UK) Ltd,Mobile Phones,2002786,201804,
Rother District Council,13/06/2018,031RESOURCES,Executive Directors & Corporate Core,32132,Joint Waste Contract Client Unit,D2622,Mobile Phones,10.00,O2 (UK) Ltd,Mobile Phones,2002786,201804,
Rother District Council,13/06/2018,031RESOURCES,Executive Directors & Corporate Core,32132,Joint Waste Contract Client Unit,D2622,Mobile Phones,10.00,O2 (UK) Ltd,Mobile Phones,2002786,201804,
Rother District Council,13/06/2018,031RESOURCES,Executive Directors & Corporate Core,20162,Electoral Registration,D2622,Mobile Phones,10.00,O2 (UK) Ltd,Mobile Phones,2002795,201804,
Rother District Council,13/06/2018,031RESOURCES,Executive Directors & Corporate Core,20183,Executive Directors,D2622,Mobile Phones,10.10,O2 (UK) Ltd,Mobile Phones,2002778,201804,
Rother District Council,13/06/2018,031RESOURCES,Executive Directors & Corporate Core,20183,Executive Directors,D2622,Mobile Phones,10.00,O2 (UK) Ltd,Mobile Phones,2002778,201804,
Rother District Council,13/06/2018,031RESOURCES,Executive Directors & Corporate Core,20180,Emergency Planning,D2622,Mobile Phones,10.00,O2 (UK) Ltd,Mobile Phones,2002782,201804,
Rother District Council,13/06/2018,031RESOURCES,Executive Directors & Corporate Core,20180,Emergency Planning,D2622,Mobile Phones,4.50,O2 (UK) Ltd,Mobile Phones,2002782,201804,
Rother District Council,13/06/2018,031RESOURCES,Executive Directors & Corporate Core,20171,Human Resources,D2622,Mobile Phones,10.00,O2 (UK) Ltd,Mobile Phones,2002795,201804,
Rother District Council,13/06/2018,031RESOURCES,Executive Directors & Corporate Core,20158,Committee Service General Exp,D2622,Mobile Phones,10.00,O2 (UK) Ltd,Mobile Phones,2002795,201804,
Rother District Council,13/06/2018,011COMMUNITY,Community and Economy,20119,"Service Manager, Community and Economy",D2622,Mobile Phones,10.00,O2 (UK) Ltd,Mobile Phones,2002782,201804,
Rother District Council,13/06/2018,081ACQUISIT,"Acquisitions, Transformation and Regeneration",20121,Programme and Policy Office,D2622,Mobile Phones,10.00,O2 (UK) Ltd,Mobile Phones,2002780,201805,
Rother District Council,13/06/2018,091HOUSING,Housing and Community Services,20125,Coast Protection,D2622,Mobile Phones,10.00,O2 (UK) Ltd,Mobile Phones,2002795,201804,
Rother District Council,13/06/2018,071STRAT,Strategy and Planning,20248,"Complaints,Compliance,Enforce",D2622,Mobile Phones,10.00,O2 (UK) Ltd,Mobile Phones,2002784,201804,
Rother District Council,13/06/2018,071STRAT,Strategy and Planning,20248,"Complaints,Compliance,Enforce",D2622,Mobile Phones,10.00,O2 (UK) Ltd,Mobile Phones,2002784,201804,
Rother District Council,13/06/2018,071STRAT,Strategy and Planning,20248,"Complaints,Compliance,Enforce",D2622,Mobile Phones,10.00,O2 (UK) Ltd,Mobile Phones,2002784,201804,
Rother District Council,13/06/2018,071STRAT,Strategy and Planning,20248,"Complaints,Compliance,Enforce",D2622,Mobile Phones,10.00,O2 (UK) Ltd,Mobile Phones,2002784,201804,
Rother District Council,13/06/2018,071STRAT,Strategy and Planning,20248,"Complaints,Compliance,Enforce",D2622,Mobile Phones,10.00,O2 (UK) Ltd,Mobile Phones,2002784,201804,
Rother District Council,13/06/2018,081ACQUISIT,"Acquisitions, Transformation and Regeneration",20243,Business Improvement,D2622,Mobile Phones,10.00,O2 (UK) Ltd,Mobile Phones,2002788,201804,
Rother District Council,13/06/2018,081ACQUISIT,"Acquisitions, Transformation and Regeneration",20243,Business Improvement,D2622,Mobile Phones,150.20,O2 (UK) Ltd,Mobile Phones,2002788,201804,
Rother District Council,13/06/2018,091HOUSING,Housing and Community Services,20109,Sports Development,D2622,Mobile Phones,10.00,O2 (UK) Ltd,Mobile Phones,2002782,201804,
Rother District Council,13/06/2018,091HOUSING,Housing and Community Services,20120,Neighbourhood Services,D2622,Mobile Phones,10.00,O2 (UK) Ltd,Mobile Phones,2002799,201804,
Rother District Council,13/06/2018,081ACQUISIT,"Acquisitions, Transformation and Regeneration",20122,Economic Development,D2622,Mobile Phones,10.00,O2 (UK) Ltd,Mobile Phones,2002794,201804,
Rother District Council,13/06/2018,081ACQUISIT,"Acquisitions, Transformation and Regeneration",20122,Economic Development,D2622,Mobile Phones,10.00,O2 (UK) Ltd,Mobile Phones,2002794,201804,
Rother District Council,13/06/2018,081ACQUISIT,"Acquisitions, Transformation and Regeneration",20122,Economic Development,D2622,Mobile Phones,10.00,O2 (UK) Ltd,Mobile Phones,2002794,201804,
Rother District Council,13/06/2018,081ACQUISIT,"Acquisitions, Transformation and Regeneration",20122,Economic Development,D2622,Mobile Phones,10.00,O2 (UK) Ltd,Mobile Phones,2002794,201804,
Rother District Council,13/06/2018,081ACQUISIT,"Acquisitions, Transformation and Regeneration",20122,Economic Development,D2622,Mobile Phones,10.00,O2 (UK) Ltd,Mobile Phones,2002794,201804,
Rother District Council,13/06/2018,081ACQUISIT,"Acquisitions, Transformation and Regeneration",20122,Economic Development,D2622,Mobile Phones,10.00,O2 (UK) Ltd,Mobile Phones,2002794,201804,
Rother District Council,13/06/2018,081ACQUISIT,"Acquisitions, Transformation and Regeneration",20122,Economic Development,D2622,Mobile Phones,10.00,O2 (UK) Ltd,Mobile Phones,2002794,201804,
Rother District Council,13/06/2018,081ACQUISIT,"Acquisitions, Transformation and Regeneration",20122,Economic Development,D2622,Mobile Phones,7.50,O2 (UK) Ltd,Mobile Phones,2002794,201804,
Rother District Council,13/06/2018,081ACQUISIT,"Acquisitions, Transformation and Regeneration",20122,Economic Development,D2622,Mobile Phones,10.00,O2 (UK) Ltd,Mobile Phones,2002799,201804,
Rother District Council,13/06/2018,081ACQUISIT,"Acquisitions, Transformation and Regeneration",20122,Economic Development,D2622,Mobile Phones,10.00,O2 (UK) Ltd,Mobile Phones,2002799,201804,
Rother District Council,13/06/2018,081ACQUISIT,"Acquisitions, Transformation and Regeneration",20122,Economic Development,D2622,Mobile Phones,10.00,O2 (UK) Ltd,Mobile Phones,2002799,201804,
Rother District Council,13/06/2018,081ACQUISIT,"Acquisitions, Transformation and Regeneration",20122,Economic Development,D2622,Mobile Phones,10.00,O2 (UK) Ltd,Mobile Phones,2002799,201804,
Rother District Council,13/06/2018,091HOUSING,Housing and Community Services,20120,Neighbourhood Services,D2622,Mobile Phones,10.00,O2 (UK) Ltd,Mobile Phones,2002799,201804,
Rother District Council,13/06/2018,091HOUSING,Housing and Community Services,20120,Neighbourhood Services,D2622,Mobile Phones,10.00,O2 (UK) Ltd,Mobile Phones,2002799,201804,
Rother District Council,13/06/2018,091HOUSING,Housing and Community Services,20120,Neighbourhood Services,D2622,Mobile Phones,10.00,O2 (UK) Ltd,Mobile Phones,2002799,201804,
Rother District Council,13/06/2018,091HOUSING,Housing and Community Services,20120,Neighbourhood Services,D2622,Mobile Phones,10.00,O2 (UK) Ltd,Mobile Phones,2002799,201804,
Rother District Council,13/06/2018,091HOUSING,Housing and Community Services,20120,Neighbourhood Services,D2622,Mobile Phones,10.00,O2 (UK) Ltd,Mobile Phones,2002799,201804,
Rother District Council,13/06/2018,091HOUSING,Housing and Community Services,20120,Neighbourhood Services,D2622,Mobile Phones,10.00,O2 (UK) Ltd,Mobile Phones,2002799,201804,
Rother District Council,13/06/2018,091HOUSING,Housing and Community Services,20120,Neighbourhood Services,D2622,Mobile Phones,10.00,O2 (UK) Ltd,Mobile Phones,2002799,201804,
Rother District Council,13/06/2018,091HOUSING,Housing and Community Services,20120,Neighbourhood Services,D2622,Mobile Phones,10.00,O2 (UK) Ltd,Mobile Phones,2002799,201804,
Rother District Council,13/06/2018,091HOUSING,Housing and Community Services,20120,Neighbourhood Services,D2622,Mobile Phones,10.00,O2 (UK) Ltd,Mobile Phones,2002799,201804,
Rother District Council,13/06/2018,091HOUSING,Housing and Community Services,20120,Neighbourhood Services,D2622,Mobile Phones,10.00,O2 (UK) Ltd,Mobile Phones,2002799,201804,
Rother District Council,13/06/2018,091HOUSING,Housing and Community Services,20120,Neighbourhood Services,D2622,Mobile Phones,10.00,O2 (UK) Ltd,Mobile Phones,2002799,201804,
Rother District Council,13/06/2018,091HOUSING,Housing and Community Services,20120,Neighbourhood Services,D2622,Mobile Phones,16.27,O2 (UK) Ltd,Mobile Phones,2002799,201804,
Rother District Council,13/06/2018,091HOUSING,Housing and Community Services,20120,Neighbourhood Services,D2622,Mobile Phones,10.00,O2 (UK) Ltd,Mobile Phones,2002799,201804,
Rother District Council,13/06/2018,091HOUSING,Housing and Community Services,20120,Neighbourhood Services,D2622,Mobile Phones,10.00,O2 (UK) Ltd,Mobile Phones,2002799,201804,
Rother District Council,13/06/2018,091HOUSING,Housing and Community Services,20120,Neighbourhood Services,D2622,Mobile Phones,10.00,O2 (UK) Ltd,Mobile Phones,2002799,201804,
Rother District Council,13/06/2018,091HOUSING,Housing and Community Services,20120,Neighbourhood Services,D2622,Mobile Phones,10.00,O2 (UK) Ltd,Mobile Phones,2002799,201804,
Rother District Council,13/06/2018,091HOUSING,Housing and Community Services,20120,Neighbourhood Services,D2622,Mobile Phones,15.32,O2 (UK) Ltd,Mobile Phones,2002799,201804,
Rother District Council,13/06/2018,091HOUSING,Housing and Community Services,20120,Neighbourhood Services,D2622,Mobile Phones,10.00,O2 (UK) Ltd,Mobile Phones,2002799,201804,
Rother District Council,13/06/2018,091HOUSING,Housing and Community Services,20120,Neighbourhood Services,D2622,Mobile Phones,10.00,O2 (UK) Ltd,Mobile Phones,2002799,201804,
Rother District Council,13/06/2018,091HOUSING,Housing and Community Services,20120,Neighbourhood Services,D2622,Mobile Phones,10.00,O2 (UK) Ltd,Mobile Phones,2002799,201804,
Rother District Council,13/06/2018,081ACQUISIT,"Acquisitions, Transformation and Regeneration",20122,Economic Development,D2622,Mobile Phones,10.00,O2 (UK) Ltd,Mobile Phones,2002799,201804,
Rother District Council,13/06/2018,081ACQUISIT,"Acquisitions, Transformation and Regeneration",20122,Economic Development,D2622,Mobile Phones,10.00,O2 (UK) Ltd,Mobile Phones,2002799,201804,
Rother District Council,13/06/2018,081ACQUISIT,"Acquisitions, Transformation and Regeneration",20122,Economic Development,D2622,Mobile Phones,10.90,O2 (UK) Ltd,Mobile Phones,2002799,201804,
Rother District Council,13/06/2018,081ACQUISIT,"Acquisitions, Transformation and Regeneration",20122,Economic Development,D2622,Mobile Phones,10.00,O2 (UK) Ltd,Mobile Phones,2002799,201804,
Rother District Council,13/06/2018,081ACQUISIT,"Acquisitions, Transformation and Regeneration",20122,Economic Development,D2622,Mobile Phones,10.00,O2 (UK) Ltd,Mobile Phones,2002799,201804,
Rother District Council,13/06/2018,091HOUSING,Housing and Community Services,20120,Neighbourhood Services,D2622,Mobile Phones,10.00,O2 (UK) Ltd,Mobile Phones,2002799,201804,
Rother District Council,13/06/2018,091HOUSING,Housing and Community Services,20120,Neighbourhood Services,D2622,Mobile Phones,10.00,O2 (UK) Ltd,Mobile Phones,2002799,201804,
Rother District Council,13/06/2018,091HOUSING,Housing and Community Services,20120,Neighbourhood Services,D2622,Mobile Phones,10.12,O2 (UK) Ltd,Mobile Phones,2002799,201804,
Rother District Council,13/06/2018,091HOUSING,Housing and Community Services,20120,Neighbourhood Services,D2622,Mobile Phones,10.00,O2 (UK) Ltd,Mobile Phones,2002799,201804,
Rother District Council,13/06/2018,091HOUSING,Housing and Community Services,20120,Neighbourhood Services,D2622,Mobile Phones,10.12,O2 (UK) Ltd,Mobile Phones,2002799,201804,
Rother District Council,13/06/2018,091HOUSING,Housing and Community Services,20120,Neighbourhood Services,D2622,Mobile Phones,10.00,O2 (UK) Ltd,Mobile Phones,2002799,201804,
Rother District Council,13/06/2018,081ACQUISIT,"Acquisitions, Transformation and Regeneration",20122,Economic Development,D2622,Mobile Phones,10.00,O2 (UK) Ltd,Mobile Phones,2002799,201804,
Rother District Council,13/06/2018,081ACQUISIT,"Acquisitions, Transformation and Regeneration",20122,Economic Development,D2622,Mobile Phones,10.00,O2 (UK) Ltd,Mobile Phones,2002799,201804,
Rother District Council,13/06/2018,091HOUSING,Housing and Community Services,20236,Customer Services and Development,D2622,Mobile Phones,10.00,O2 (UK) Ltd,Mobile Phones,2002795,201804,
Rother District Council,13/06/2018,091HOUSING,Housing and Community Services,20204,Housing Administration Account,D2622,Mobile Phones,10.00,O2 (UK) Ltd,Mobile Phones,2002791,201804,
Rother District Council,13/06/2018,091HOUSING,Housing and Community Services,20204,Housing Administration Account,D2622,Mobile Phones,10.00,O2 (UK) Ltd,Mobile Phones,2002791,201804,
Rother District Council,13/06/2018,091HOUSING,Housing and Community Services,20204,Housing Administration Account,D2622,Mobile Phones,10.00,O2 (UK) Ltd,Mobile Phones,2002791,201804,
Rother District Council,13/06/2018,091HOUSING,Housing and Community Services,20204,Housing Administration Account,D2622,Mobile Phones,10.00,O2 (UK) Ltd,Mobile Phones,2002791,201804,
Rother District Council,13/06/2018,091HOUSING,Housing and Community Services,20204,Housing Administration Account,D2622,Mobile Phones,10.00,O2 (UK) Ltd,Mobile Phones,2002791,201804,
Rother District Council,13/06/2018,091HOUSING,Housing and Community Services,20204,Housing Administration Account,D2622,Mobile Phones,10.00,O2 (UK) Ltd,Mobile Phones,2002791,201804,
Rother District Council,13/06/2018,091HOUSING,Housing and Community Services,20204,Housing Administration Account,D2622,Mobile Phones,10.00,O2 (UK) Ltd,Mobile Phones,2002791,201804,
Rother District Council,13/06/2018,091HOUSING,Housing and Community Services,20204,Housing Administration Account,D2622,Mobile Phones,10.00,O2 (UK) Ltd,Mobile Phones,2002791,201804,
Rother District Council,13/06/2018,101RESOURCES,Resources,20226,Service Manager Finance and Welfare,D2622,Mobile Phones,10.00,O2 (UK) Ltd,Mobile Phones,2002778,201804,
Rother District Council,13/06/2018,101RESOURCES,Resources,20239,Computer Services,D2622,Mobile Phones,10.00,O2 (UK) Ltd,Mobile Phones,2002788,201804,
Rother District Council,13/06/2018,101RESOURCES,Resources,20239,Computer Services,D2622,Mobile Phones,10.00,O2 (UK) Ltd,Mobile Phones,2002788,201804,
Rother District Council,13/06/2018,101RESOURCES,Resources,20239,Computer Services,D2622,Mobile Phones,10.00,O2 (UK) Ltd,Mobile Phones,2002788,201804,
Rother District Council,13/06/2018,101RESOURCES,Resources,20239,Computer Services,D2622,Mobile Phones,10.00,O2 (UK) Ltd,Mobile Phones,2002788,201804,
Rother District Council,13/06/2018,101RESOURCES,Resources,20239,Computer Services,D2622,Mobile Phones,10.00,O2 (UK) Ltd,Mobile Phones,2002788,201804,
Rother District Council,13/06/2018,101RESOURCES,Resources,20239,Computer Services,D2622,Mobile Phones,10.00,O2 (UK) Ltd,Mobile Phones,2002788,201804,
Rother District Council,13/06/2018,101RESOURCES,Resources,20239,Computer Services,D2622,Mobile Phones,10.00,O2 (UK) Ltd,Mobile Phones,2002788,201804,
Rother District Council,13/06/2018,101RESOURCES,Resources,20239,Computer Services,D2622,Mobile Phones,10.00,O2 (UK) Ltd,Mobile Phones,2002788,201804,
Rother District Council,13/06/2018,101RESOURCES,Resources,20239,Computer Services,D2622,Mobile Phones,10.00,O2 (UK) Ltd,Mobile Phones,2002788,201804,
Rother District Council,13/06/2018,101RESOURCES,Resources,20215,Revenue and Benefits,D2622,Mobile Phones,10.00,O2 (UK) Ltd,Mobile Phones,2002795,201804,
Rother District Council,13/06/2018,101RESOURCES,Resources,20215,Revenue and Benefits,D2622,Mobile Phones,10.00,O2 (UK) Ltd,Mobile Phones,2002795,201804,
Rother District Council,13/06/2018,101RESOURCES,Resources,20215,Revenue and Benefits,D2622,Mobile Phones,10.00,O2 (UK) Ltd,Mobile Phones,2002795,201804,
Rother District Council,13/06/2018,101RESOURCES,Resources,20215,Revenue and Benefits,D2622,Mobile Phones,10.00,O2 (UK) Ltd,Mobile Phones,2002795,201804,
Rother District Council,13/06/2018,101RESOURCES,Resources,20215,Revenue and Benefits,D2622,Mobile Phones,10.00,O2 (UK) Ltd,Mobile Phones,2002795,201804,
Rother District Council,13/06/2018,101RESOURCES,Resources,20215,Revenue and Benefits,D2622,Mobile Phones,10.00,O2 (UK) Ltd,Mobile Phones,2002795,201804,
Rother District Council,13/06/2018,101RESOURCES,Resources,20215,Revenue and Benefits,D2622,Mobile Phones,10.00,O2 (UK) Ltd,Mobile Phones,2002795,201804,
Rother District Council,14/06/2018,999NOREPORT,Environmental Services,70706,Capital - Disable Facilities Grant,N1012,Capital Advances,"14,935.00",Underpin & Makegood (Contracting) Ltd,Capital Advances Disabled Facilities Grant,2002403,201804,
Rother District Council,14/06/2018,091HOUSING,Housing and Community Services,20132,Street & Beach Cleansing,D2513,Hired and Contracted services,60.00,East Sussex and Romney Marsh Hunt,Hired and contracted services Incineration of dead animals,2002129,201804,
Rother District Council,14/06/2018,091HOUSING,Housing and Community Services,20108,Bexhill Promenade & Foreshore,B1100,Repairs to Premises,27.26,Jewson Limited,Repairs to Premises Purchase of Materials - Build Maint,2002300,201804,
Rother District Council,14/06/2018,091HOUSING,Housing and Community Services,20108,Bexhill Promenade & Foreshore,B1100,Repairs to Premises,3.38,Jewson Limited,Repairs to Premises Purchase of Materials - Build Maint,2002301,201804,
Rother District Council,14/06/2018,091HOUSING,Housing and Community Services,20102,Rother Museum Services,B1100,Repairs to Premises,789.24,Alfa Electric Ltd,Repairs to Premises Repairs - Roofing Works,2002611,201804,
Rother District Council,15/06/2018,091HOUSING,Housing and Community Services,20200,Housing Needs - HB (Housing Benefit),A1110,Agency Staff,737.50,Oyster Partnership,Agency Staff,2003019,201805,
Rother District Council,15/06/2018,091HOUSING,Housing and Community Services,20107,Camber Beach & Foreshore,C1104,Derv,3.80,Allstar Business Solutions,Derv Fuel Service fee payable on fuel cards,2003272,201805,
Rother District Council,15/06/2018,091HOUSING,Housing and Community Services,20145,Maintenance Services,C1104,Derv,1.90,Allstar Business Solutions,Derv Fuel Service fee payable on fuel cards,2003272,201805,
Rother District Council,15/06/2018,101RESOURCES,Resources,20216,Cost Of Collection,D2513,Hired and Contracted services,51.00,H M Land Registry,Hired and contracted services Council Tax-Land Registry Enquiries,2002915,201804,
Rother District Council,15/06/2018,091HOUSING,Housing and Community Services,20200,Housing Needs - HB (Housing Benefit),D2513,Hired and Contracted services,6.00,H M Land Registry,Hired and contracted services Housing- Land Registry,2002915,201804,
Rother District Council,15/06/2018,071STRAT,Strategy and Planning,20246,Planning Applications,D2513,Hired and Contracted services,15.00,H M Land Registry,Hired and contracted services Land Registry - Planning,2002915,201804,
Rother District Council,15/06/2018,081ACQUISIT,"Acquisitions, Transformation and Regeneration",20144,Property Management,D2513,Hired and Contracted services,-30.00,H M Land Registry,Hired and contracted services Land Registry - Property Management,2002915,201804,
Rother District Council,15/06/2018,071STRAT,Strategy and Planning,20246,Planning Applications,D2519,Statutory Advertising,"1,098.00",Johnston Publishing Ltd,Statutory Advertising Planadv - Rye + Battle Observer,2002383,201804,
Rother District Council,15/06/2018,091HOUSING,Housing and Community Services,20133,Refuse Collection,E2302,Third party payment private contractors,349.91,Kier Services - Environmental,Third party payment private contractors Commercial Waste Collection Contract,2003187,201805,
Rother District Council,15/06/2018,091HOUSING,Housing and Community Services,20200,Housing Needs - HB (Housing Benefit),D2514,Accommodation Costs,167.16,MB Hotels Ltd,Accommodation Costs,2002396,201804,
Rother District Council,15/06/2018,031RESOURCES,Executive Directors & Corporate Core,20170,Communications-Postages,C1104,Derv,23.79,Allstar Business Solutions,Derv,2003272,201805,
Rother District Council,15/06/2018,091HOUSING,Housing and Community Services,20107,Camber Beach & Foreshore,C1104,Derv,30.38,Allstar Business Solutions,Derv,2003272,201805,
Rother District Council,15/06/2018,091HOUSING,Housing and Community Services,20107,Camber Beach & Foreshore,C1104,Derv,34.97,Allstar Business Solutions,Derv,2003272,201805,
Rother District Council,15/06/2018,091HOUSING,Housing and Community Services,20145,Maintenance Services,C1104,Derv,66.67,Allstar Business Solutions,Derv,2003272,201805,
Rother District Council,15/06/2018,091HOUSING,Housing and Community Services,20145,Maintenance Services,C1104,Derv,74.17,Allstar Business Solutions,Derv,2003272,201805,
Rother District Council,15/06/2018,091HOUSING,Housing and Community Services,20145,Maintenance Services,C1104,Derv,33.34,Allstar Business Solutions,Derv,2003272,201805,
Rother District Council,15/06/2018,091HOUSING,Housing and Community Services,20145,Maintenance Services,C1103,Petrol,22.92,Allstar Business Solutions,Petrol,2003272,201805,
Rother District Council,18/06/2018,091HOUSING,Housing and Community Services,20137,Car Parks,D2923,Grants made,"8,000.00",Salehurst and Robertsbridge Parish Council,Grants made - Devolvement Grant,2003675,201806,Yes
Rother District Council,18/06/2018,041ENVIRON,Environmental Services,32138,EH Health and Safety and IDs R + W Partnership,D2513,Hired and Contracted services,480.00,CarnDu Ltd,Hired and contracted services Service fee paid,2003429,201805,
Rother District Council,18/06/2018,091HOUSING,Housing and Community Services,20114,Bexhill Parks & Open Spaces,B1100,Repairs to Premises,728.35,Arun Pumps,Repairs to Premises Pumps Maintenance/ Repairs,2002415,201804,
Rother District Council,18/06/2018,091HOUSING,Housing and Community Services,20128,Public Conveniences,B1100,Repairs to Premises,67.50,Alfa Electric Ltd,Repairs to Premises Repairs - Electrical Works,2002541,201804,
Rother District Council,18/06/2018,081ACQUISIT,"Acquisitions, Transformation and Regeneration",20154,Committee Property Account,B1100,Repairs to Premises,86.29,Alfa Electric Ltd,Repairs to Premises Repairs - Electrical Works,2002542,201804,
Rother District Council,18/06/2018,101RESOURCES,Resources,20241,Stationery,D2416,Stationery ordered internally (Print Room),206.80,Response Envelopes Limited,Stationery (General office Supplies) (Stationery Services to buy ONLY),2002457,201804,
Rother District Council,19/06/2018,031RESOURCES,Executive Directors & Corporate Core,20171,Human Resources,D2513,Hired and Contracted services,"1,592.00",HM Revenue and  Customs PAYE,Apprenticeship Levy,2002925,201804,
Rother District Council,19/06/2018,999NOREPORT,Environmental Services,70706,Capital - Disable Facilities Grant,N1012,Capital Advances,"5,400.75",Alfa Electric Ltd,Capital Advances Disabled Facilities Grant,2002409,201804,
Rother District Council,19/06/2018,091HOUSING,Housing and Community Services,20261,"41 Jameson Mews, Bexhill on Sea",B2201,Electricity,176.23,E.ON,Electricity Charges,2002289,201804,
Rother District Council,19/06/2018,091HOUSING,Housing and Community Services,20145,Maintenance Services,D1201,Equipment & Materials,83.33,Trade UK Account (Screwfix),Equipment & Materials Purchase of Tools,2002340,201804,
Rother District Council,19/06/2018,999NOREPORT,Resources,90000,Balance sheet all accounts,P1086,HMRC National Insurance,-534.27,HM Revenue and  Customs PAYE,HMRC - Salary - SMP  Recovered,2002925,201804,
Rother District Council,19/06/2018,999NOREPORT,Resources,90000,Balance sheet all accounts,P1086,HMRC National Insurance,"-2,669.07",HM Revenue and  Customs PAYE,HMRC - Salary - SMP  Recovered,2002925,201804,
Rother District Council,19/06/2018,999NOREPORT,Resources,90000,Balance sheet all accounts,P1086,HMRC National Insurance,"43,090.23",HM Revenue and  Customs PAYE,HMRC National Insurance Salary - NI - Employees Deductions,2002925,201804,
Rother District Council,19/06/2018,999NOREPORT,Resources,90000,Balance sheet all accounts,P1086,HMRC National Insurance,"52,072.46",HM Revenue and  Customs PAYE,HMRC National Insurance Salary - NI - Employer's Deductions,2002925,201804,
Rother District Council,19/06/2018,999NOREPORT,Resources,90000,Balance sheet all accounts,P1086,HMRC National Insurance,"60,307.20",HM Revenue and  Customs PAYE,HMRC National Insurance Salary - Tax - Employees Deductions,2002925,201804,
Rother District Council,19/06/2018,999NOREPORT,Resources,90000,Balance sheet all accounts,P1086,HMRC National Insurance,934.00,HM Revenue and  Customs PAYE,HMRC Student Loan Deductions,2002925,201804,
Rother District Council,19/06/2018,031RESOURCES,Executive Directors & Corporate Core,20171,Human Resources,A2202,Recruitment expenses,"4,300.00",JGP Resourcing Ltd,Recruitment expenses Advertising Vacant Post,2003116,201805,
Rother District Council,19/06/2018,091HOUSING,Housing and Community Services,20128,Public Conveniences,B1100,Repairs to Premises,68.13,Graham,Repairs to Premises Purchase of Materials - Build Maint,2002302,201804,
Rother District Council,19/06/2018,101RESOURCES,Resources,20241,Stationery,D2416,Stationery ordered internally (Print Room),30.16,Office Depot UK Ltd,Stationery (General office Supplies) (Stationery Services to buy ONLY),2002194,201804,
Rother District Council,19/06/2018,101RESOURCES,Resources,20241,Stationery,D2416,Stationery ordered internally (Print Room),40.02,Office Depot UK Ltd,Stationery (General office Supplies) (Stationery Services to buy ONLY),2002193,201804,
Rother District Council,19/06/2018,101RESOURCES,Resources,20241,Stationery,D2416,Stationery ordered internally (Print Room),-17.68,Office Depot UK Ltd,Stationery (General office Supplies) (Stationery Services to buy ONLY),2002455,201804,
Rother District Council,19/06/2018,091HOUSING,Housing and Community Services,20108,Bexhill Promenade & Foreshore,A2203,Training,247.00,East Sussex County Council,Training,2002288,201804,
Rother District Council,19/06/2018,041ENVIRON,Environmental Services,32144,EH Environmental Services Admin R + W Partnership,A2203,Training,"1,020.00",Staffordshire University,Training,2002521,201804,
Rother District Council,20/06/2018,091HOUSING,Housing and Community Services,20200,Housing Needs - HB (Housing Benefit),A1110,Agency Staff,587.50,Oyster Partnership,Agency Staff,2003007,201805,
Rother District Council,20/06/2018,091HOUSING,Housing and Community Services,20200,Housing Needs - HB (Housing Benefit),A1110,Agency Staff,800.00,Prentis Solutions Limited,Agency Staff,2003991,201806,
Rother District Council,20/06/2018,101RESOURCES,Resources,20239,Computer Services,D2635,Computer Licences,630.00,NCC Services Ltd (T/A NCC Group Escrow Ltd),Computer Licences Advance Pay ESCROW Agreement,2002724,201804,
Rother District Council,20/06/2018,101RESOURCES,Resources,20239,Computer Services,D2635,Computer Licences,630.00,NCC Services Ltd (T/A NCC Group Escrow Ltd),Computer Licences Advance Pay ESCROW Agreement,2002725,201804,
Rother District Council,20/06/2018,101RESOURCES,Resources,20216,Cost Of Collection,D2513,Hired and Contracted services,36.00,H M Land Registry,Hired and contracted services Council Tax-Land Registry Enquiries,2002916,201804,
Rother District Council,20/06/2018,041ENVIRON,Environmental Services,32144,EH Environmental Services Admin R + W Partnership,D2513,Hired and Contracted services,21.00,H M Land Registry,Hired and contracted services Env H- Land Registry,2002916,201804,
Rother District Council,20/06/2018,041ENVIRON,Environmental Services,20141,Private Sector Housing,D2513,Hired and Contracted services,3.00,H M Land Registry,Hired and contracted services Housing- Land Registry,2002916,201804,
Rother District Council,20/06/2018,071STRAT,Strategy and Planning,20246,Planning Applications,D2513,Hired and Contracted services,21.00,H M Land Registry,Hired and contracted services Land Registry - Planning,2002916,201804,
Rother District Council,20/06/2018,031RESOURCES,Executive Directors & Corporate Core,20182,Legal Services,D2513,Hired and Contracted services,36.00,H M Land Registry,Hired and contracted services Legal - Land Registry Fees,2002916,201804,
Rother District Council,20/06/2018,041ENVIRON,Environmental Services,20129,Community Safety,D2513,Hired and Contracted services,"3,950.00",C S Crime Stopper Alarms & Security,Hired and contracted services Service fee paid,2002687,201804,
Rother District Council,20/06/2018,041ENVIRON,Environmental Services,32142,EH Taxi and Private Hire Licenses R + W Partnership,D2513,Hired and Contracted services,30.68,uCheck,Hired and contracted services Service fee paid,2002836,201804,
Rother District Council,20/06/2018,041ENVIRON,Environmental Services,32142,EH Taxi and Private Hire Licenses R + W Partnership,D2513,Hired and Contracted services,176.00,uCheck,Hired and contracted services Service fee paid,2002836,201804,
Rother District Council,20/06/2018,031RESOURCES,Executive Directors & Corporate Core,20156,Representing Local Interest,D2312,Refreshments,57.82,Booker Ltd,Refreshments Catering/Refreshments for Meetings,2002838,201804,
Rother District Council,20/06/2018,031RESOURCES,Executive Directors & Corporate Core,20156,Representing Local Interest,D2312,Refreshments,72.92,Booker Ltd,Refreshments Catering/Refreshments for Meetings,2002838,201804,
Rother District Council,20/06/2018,091HOUSING,Housing and Community Services,20110,Battle Sports Centre,B1100,Repairs to Premises,"6,000.00",East Sussex County Council,Repairs to Premises Repairs/Maintenance - various,2002574,201804,
Rother District Council,20/06/2018,091HOUSING,Housing and Community Services,20108,Bexhill Promenade & Foreshore,E2302,Third party payment private contractors,"2,062.85",The Fountain Workshop (Maintenance) Ltd,Third party payment private contractors Water Feature Maintenance,2004205,201806,
Rother District Council,21/06/2018,999NOREPORT,Environmental Services,70706,Capital - Disable Facilities Grant,N1012,Capital Advances,746.76,Peabody South East Ltd,Capital Advances Disabled Facilities Grant,2002412,201804,
Rother District Council,21/06/2018,091HOUSING,Housing and Community Services,20145,Maintenance Services,D1201,Equipment & Materials,25.08,Jewson Limited,Equipment & Materials Purchase of Tools,2002576,201804,
Rother District Council,21/06/2018,091HOUSING,Housing and Community Services,20145,Maintenance Services,D1201,Equipment & Materials,40.81,Trade UK Account (Screwfix),Equipment & Materials Purchase of Tools,2002343,201804,
Rother District Council,21/06/2018,071STRAT,Strategy and Planning,20246,Planning Applications,D1201,Equipment & Materials,104.00,D Cope-Stephens,Equipment & Materials Stakes,2002368,201804,
Rother District Council,21/06/2018,101RESOURCES,Resources,20207,Reliefs & Benefits-Housing Benefit,D2513,Hired and Contracted services,"15,000.00",Branch and Lee,Hired and contracted services Subsidy Consultancy,2002322,201804,
Rother District Council,21/06/2018,081ACQUISIT,"Acquisitions, Transformation and Regeneration",20101,Cultural Development,D2922,Subscriptions,90.00,Artswork Ltd,Marketing Arts Development Partnership,2002582,201804,
Rother District Council,21/06/2018,101RESOURCES,Resources,20240,Printing Services,D2417,Photocopy Paper by external suppliers,36.87,Antalis Ltd,Photocopy Paper Colour Copy Paper SRA3,2002420,201804,
Rother District Council,21/06/2018,081ACQUISIT,"Acquisitions, Transformation and Regeneration",20154,Committee Property Account,B1100,Repairs to Premises,"20,000.00",Johnson Bespoke Ltd,Repairs to Premises - Colonnade - repairs and fit out,2002321,201804,
Rother District Council,21/06/2018,091HOUSING,Housing and Community Services,20108,Bexhill Promenade & Foreshore,B1100,Repairs to Premises,66.60,Trade UK Account (Screwfix),Repairs to Premises Purchase of Materials - Build Maint,2002336,201804,
Rother District Council,21/06/2018,081ACQUISIT,"Acquisitions, Transformation and Regeneration",20154,Committee Property Account,B1100,Repairs to Premises,13.07,Trade UK Account (Screwfix),Repairs to Premises Purchase of Materials - Build Maint,2002345,201804,
Rother District Council,21/06/2018,031RESOURCES,Executive Directors & Corporate Core,20175,Administrative Offices - T.H. Annex (NOT CHP),B1100,Repairs to Premises,279.62,Alfa Electric Ltd,Repairs to Premises Repairs - Electrical Works,2002502,201804,
Rother District Council,21/06/2018,091HOUSING,Housing and Community Services,20108,Bexhill Promenade & Foreshore,B1100,Repairs to Premises,885.00,Alfa Electric Ltd,Repairs to Premises Repairs/Maintenance - various,2002273,201804,
Rother District Council,21/06/2018,091HOUSING,Housing and Community Services,20206,Syrians,D2513,Hired and Contracted services,73.56,Vandu Language Services Ltd,Syrian - Hired and contracted services- Translation Services,2002305,201804,
Rother District Council,21/06/2018,091HOUSING,Housing and Community Services,20206,Syrians,D2513,Hired and Contracted services,52.80,Vandu Language Services Ltd,Syrian - Hired and contracted services- Translation Services,2002306,201804,
Rother District Council,21/06/2018,091HOUSING,Housing and Community Services,20206,Syrians,D2513,Hired and Contracted services,109.56,Vandu Language Services Ltd,Syrian - Hired and contracted services- Translation Services,2002307,201804,
Rother District Council,21/06/2018,091HOUSING,Housing and Community Services,20206,Syrians,D2513,Hired and Contracted services,64.80,Vandu Language Services Ltd,Syrian - Hired and contracted services- Translation Services,2002308,201804,
Rother District Council,21/06/2018,031RESOURCES,Executive Directors & Corporate Core,32131,Sussex Training Partnership,D2513,Hired and Contracted services,450.00,Blue Response Ltd,Training Sussex Train Consor-Training Course,2002602,201804,
Rother District Council,22/06/2018,999NOREPORT,Environmental Services,70706,Capital - Disable Facilities Grant,N1012,Capital Advances,"1,723.00",Handicare Accessibility Ltd,Capital Advances Disabled Facilities Grant,2002313,201804,
Rother District Council,22/06/2018,999NOREPORT,Environmental Services,70706,Capital - Disable Facilities Grant,N1012,Capital Advances,258.44,Peabody South East Ltd,Capital Advances Disabled Facilities Grant,2002314,201804,
Rother District Council,22/06/2018,101RESOURCES,Resources,20216,Cost Of Collection,D2513,Hired and Contracted services,36.00,H M Land Registry,Hired and contracted services Council Tax-Land Registry Enquiries,2002912,201804,
Rother District Council,22/06/2018,041ENVIRON,Environmental Services,32143,EH Licenses and Registration R + W Partnership,D2513,Hired and Contracted services,400.00,Heathfield Vets Ltd,Hired and contracted services EnvH-Veterinary Services for Licens,2002219,201804,
Rother District Council,22/06/2018,071STRAT,Strategy and Planning,20246,Planning Applications,D2513,Hired and Contracted services,12.00,H M Land Registry,Hired and contracted services Land Registry - Planning,2002912,201804,
Rother District Council,22/06/2018,081ACQUISIT,"Acquisitions, Transformation and Regeneration",20144,Property Management,D2513,Hired and Contracted services,6.00,H M Land Registry,Hired and contracted services Land Registry - Property Management,2002912,201804,
Rother District Council,22/06/2018,031RESOURCES,Executive Directors & Corporate Core,20171,Human Resources,A2202,Recruitment expenses,697.41,Johnston Publishing Ltd,Recruitment expenses Advertising Vacant Post,2002298,201804,
Rother District Council,22/06/2018,091HOUSING,Housing and Community Services,20128,Public Conveniences,B1100,Repairs to Premises,85.90,Littlewood Fencing Ltd,Repairs to Premises Purchase of Materials - Build Maint,2002615,201804,
Rother District Council,22/06/2018,031RESOURCES,Executive Directors & Corporate Core,20173,Administrative Offices - Town Hall,B1100,Repairs to Premises,"2,489.00",MC Glass (East Sussex) Ltd,Repairs to Premises Specified Repairs and Works listed,2002424,201804,
Rother District Council,22/06/2018,071STRAT,Strategy and Planning,20246,Planning Applications,D2519,Statutory Advertising,854.00,Johnston Publishing Ltd,Statutory Advertising Planadv - Rye + Battle Observer,2002385,201804,
Rother District Council,23/06/2018,091HOUSING,Housing and Community Services,20128,Public Conveniences,B2422,Sewerage,946.35,Scottish Water Business Stream Limited,Sewage Charges,2002364,201804,
Rother District Council,23/06/2018,091HOUSING,Housing and Community Services,20137,Car Parks,B2421,Water,22.78,Scottish Water Business Stream Limited,Water Charges,2002491,201804,
Rother District Council,23/06/2018,091HOUSING,Housing and Community Services,20128,Public Conveniences,B2421,Water,578.57,Scottish Water Business Stream Limited,Water Charges,2002364,201804,
Rother District Council,24/06/2018,031RESOURCES,Executive Directors & Corporate Core,20179,Communications,E1101,Third party payment other LAs,"3,600.00",East Sussex County Council,Third party payment other LAs Communications - Officer costs,2002294,201804,
Rother District Council,25/06/2018,999NOREPORT,Housing and Community Services,70714,Capital - Grants Halls and Community Projects,N1011,Capital Grants,500.00,Activate Fairlight Youth Centre,Capital Grants Community Grants Scheme,2002363,201804,
Rother District Council,25/06/2018,101RESOURCES,Resources,20239,Computer Services,D2509,Consultants and Other Services,"1,800.00",Ideal Networks Ltd,Consultants and other services Consultants Fees,2002488,201804,
Rother District Council,25/06/2018,041ENVIRON,Environmental Services,32140,EN Wealden Training (WEALDEN ONLY) R + W Partnership,D1201,Equipment & Materials,8.00,Highfield Awarding Body for Compliance Ltd,Equipment & Materials Carriage/Handling Charge,2002732,201804,
Rother District Council,25/06/2018,031RESOURCES,Executive Directors & Corporate Core,20162,Electoral Registration,D1201,Equipment & Materials,358.78,Pitney Bowes Ltd,Equipment & Materials Machinery - Maintenance,2002410,201804,
Rother District Council,25/06/2018,091HOUSING,Housing and Community Services,20145,Maintenance Services,D1201,Equipment & Materials,20.82,Jewson Limited,Equipment & Materials Purchase of Tools,2002581,201804,
Rother District Council,25/06/2018,101RESOURCES,Resources,20216,Cost Of Collection,D2513,Hired and Contracted services,15.00,H M Land Registry,Hired and contracted services Council Tax-Land Registry Enquiries,2002909,201804,
Rother District Council,25/06/2018,071STRAT,Strategy and Planning,20246,Planning Applications,D2513,Hired and Contracted services,24.00,H M Land Registry,Hired and contracted services Land Registry - Planning,2002909,201804,
Rother District Council,25/06/2018,081ACQUISIT,"Acquisitions, Transformation and Regeneration",20144,Property Management,D2513,Hired and Contracted services,15.00,H M Land Registry,Hired and contracted services Land Registry - Property Management,2002909,201804,
Rother District Council,25/06/2018,041ENVIRON,Environmental Services,32140,EN Wealden Training (WEALDEN ONLY) R + W Partnership,D2513,Hired and Contracted services,67.50,Highfield Awarding Body for Compliance Ltd,Hired and contracted services Service fee paid,2002732,201804,
Rother District Council,25/06/2018,041ENVIRON,Environmental Services,32140,EN Wealden Training (WEALDEN ONLY) R + W Partnership,D2626,Postages,5.00,Highfield Awarding Body for Compliance Ltd,Postages Carriage of Supplies,2002732,201804,
Rother District Council,25/06/2018,031RESOURCES,Executive Directors & Corporate Core,20162,Electoral Registration,D2626,Postages,53.90,Royal Mail Group Ltd,Postages Response Service - Royal Mail Chg,2002641,201804,
Rother District Council,25/06/2018,071STRAT,Strategy and Planning,20255,Local Development Framework,D2626,Postages,78.24,Royal Mail Group Ltd,Postages Response Service - Royal Mail Chg,2002640,201804,
Rother District Council,25/06/2018,091HOUSING,Housing and Community Services,20128,Public Conveniences,B1100,Repairs to Premises,43.85,Jewson Limited,Repairs to Premises Purchase of Materials - Build Maint,2002575,201804,
Rother District Council,25/06/2018,091HOUSING,Housing and Community Services,20108,Bexhill Promenade & Foreshore,B1100,Repairs to Premises,"1,660.96",Alfa Electric Ltd,Repairs to Premises Repairs - Electrical Works,2002543,201804,
Rother District Council,25/06/2018,081ACQUISIT,"Acquisitions, Transformation and Regeneration",20153,"Elva Business Centre, Bexhill",B1100,Repairs to Premises,80.00,C-Thru Window Cleaning,Repairs to Premises Specified Repairs and Works listed,2002346,201804,
Rother District Council,25/06/2018,101RESOURCES,Resources,20241,Stationery,D2416,Stationery ordered internally (Print Room),17.68,Office Depot UK Ltd,Stationery (General office Supplies) (Stationery Services to buy ONLY),2002418,201804,
Rother District Council,25/06/2018,101RESOURCES,Resources,20240,Printing Services,E2302,Third party payment private contractors,23.40,IDL UK,Third party payment private contractors Work by Outside Contractors,2002416,201804,
Rother District Council,25/06/2018,091HOUSING,Housing and Community Services,20200,Housing Needs - HB (Housing Benefit),A2203,Training,"2,535.00",Mr M Prichard,Training,2002333,201804,
Rother District Council,25/06/2018,091HOUSING,Housing and Community Services,20114,Bexhill Parks & Open Spaces,B2421,Water,474.12,South East Water Ltd,Water Charges,2002295,201804,
Rother District Council,25/06/2018,091HOUSING,Housing and Community Services,20128,Public Conveniences,B2421,Water,118.53,South East Water Ltd,Water Charges,2002295,201804,
Rother District Council,25/06/2018,091HOUSING,Housing and Community Services,20200,Housing Needs - HB (Housing Benefit),D2514,Accommodation Costs,98.00,Solutions Accommodation Providers Ltd,Accommodation Costs,2002280,201804,
Rother District Council,25/06/2018,091HOUSING,Housing and Community Services,20200,Housing Needs - HB (Housing Benefit),D2514,Accommodation Costs,392.00,Solutions Accommodation Providers Ltd,Accommodation Costs,2002280,201804,
Rother District Council,25/06/2018,091HOUSING,Housing and Community Services,20200,Housing Needs - HB (Housing Benefit),D2514,Accommodation Costs,98.00,Solutions Accommodation Providers Ltd,Accommodation Costs,2002281,201804,
Rother District Council,25/06/2018,091HOUSING,Housing and Community Services,20200,Housing Needs - HB (Housing Benefit),D2514,Accommodation Costs,392.00,Solutions Accommodation Providers Ltd,Accommodation Costs,2002281,201804,
Rother District Council,25/06/2018,091HOUSING,Housing and Community Services,20200,Housing Needs - HB (Housing Benefit),D2514,Accommodation Costs,105.00,Solutions Accommodation Providers Ltd,Accommodation Costs,2002279,201804,
Rother District Council,25/06/2018,091HOUSING,Housing and Community Services,20200,Housing Needs - HB (Housing Benefit),D2514,Accommodation Costs,420.00,Solutions Accommodation Providers Ltd,Accommodation Costs,2002279,201804,
Rother District Council,25/06/2018,091HOUSING,Housing and Community Services,20203,Housing Needs - Universal Credit,D2514,Accommodation Costs,84.00,Solutions Accommodation Providers Ltd,Accommodation Costs,2002283,201804,
Rother District Council,25/06/2018,091HOUSING,Housing and Community Services,20203,Housing Needs - Universal Credit,D2514,Accommodation Costs,336.00,Solutions Accommodation Providers Ltd,Accommodation Costs,2002283,201804,
Rother District Council,25/06/2018,091HOUSING,Housing and Community Services,20203,Housing Needs - Universal Credit,D2514,Accommodation Costs,98.00,Solutions Accommodation Providers Ltd,Accommodation Costs,2002284,201804,
Rother District Council,25/06/2018,091HOUSING,Housing and Community Services,20203,Housing Needs - Universal Credit,D2514,Accommodation Costs,392.00,Solutions Accommodation Providers Ltd,Accommodation Costs,2002284,201804,
Rother District Council,25/06/2018,091HOUSING,Housing and Community Services,20200,Housing Needs - HB (Housing Benefit),D2514,Accommodation Costs,84.00,Solutions Accommodation Providers Ltd,Accommodation Costs,2002286,201804,
Rother District Council,25/06/2018,091HOUSING,Housing and Community Services,20200,Housing Needs - HB (Housing Benefit),D2514,Accommodation Costs,336.00,Solutions Accommodation Providers Ltd,Accommodation Costs,2002286,201804,
Rother District Council,25/06/2018,091HOUSING,Housing and Community Services,20200,Housing Needs - HB (Housing Benefit),D2514,Accommodation Costs,84.00,Solutions Accommodation Providers Ltd,Accommodation Costs,2002282,201804,
Rother District Council,25/06/2018,091HOUSING,Housing and Community Services,20200,Housing Needs - HB (Housing Benefit),D2514,Accommodation Costs,336.00,Solutions Accommodation Providers Ltd,Accommodation Costs,2002282,201804,
Rother District Council,25/06/2018,091HOUSING,Housing and Community Services,20200,Housing Needs - HB (Housing Benefit),D2514,Accommodation Costs,84.00,Solutions Accommodation Providers Ltd,Accommodation Costs,2002285,201804,
Rother District Council,25/06/2018,091HOUSING,Housing and Community Services,20200,Housing Needs - HB (Housing Benefit),D2514,Accommodation Costs,336.00,Solutions Accommodation Providers Ltd,Accommodation Costs,2002285,201804,
Rother District Council,25/06/2018,031RESOURCES,Executive Directors & Corporate Core,20175,Administrative Offices - T.H. Annex (NOT CHP),B2201,Electricity,952.65,Laser Energy Buying Group (Kent County Council Commercial Services),Electricity,2002723,201804,
Rother District Council,25/06/2018,031RESOURCES,Executive Directors & Corporate Core,20176,Administrative Offices - Print Room,B2201,Electricity,418.15,Laser Energy Buying Group (Kent County Council Commercial Services),Electricity,2002723,201804,
Rother District Council,25/06/2018,031RESOURCES,Executive Directors & Corporate Core,20173,Administrative Offices - Town Hall,B2201,Electricity,"3,008.55",Laser Energy Buying Group (Kent County Council Commercial Services),Electricity,2002723,201804,
Rother District Council,25/06/2018,091HOUSING,Housing and Community Services,20128,Public Conveniences,B2201,Electricity,79.93,Laser Energy Buying Group (Kent County Council Commercial Services),Electricity,2002723,201804,
Rother District Council,25/06/2018,091HOUSING,Housing and Community Services,20128,Public Conveniences,B2201,Electricity,77.57,Laser Energy Buying Group (Kent County Council Commercial Services),Electricity,2002723,201804,
Rother District Council,25/06/2018,091HOUSING,Housing and Community Services,20108,Bexhill Promenade & Foreshore,B2201,Electricity,73.40,Laser Energy Buying Group (Kent County Council Commercial Services),Electricity,2002723,201804,
Rother District Council,25/06/2018,081ACQUISIT,"Acquisitions, Transformation and Regeneration",20154,Committee Property Account,B2201,Electricity,73.40,Laser Energy Buying Group (Kent County Council Commercial Services),Electricity,2002723,201804,
Rother District Council,25/06/2018,081ACQUISIT,"Acquisitions, Transformation and Regeneration",20154,Committee Property Account,B2201,Electricity,73.40,Laser Energy Buying Group (Kent County Council Commercial Services),Electricity,2002723,201804,
Rother District Council,25/06/2018,081ACQUISIT,"Acquisitions, Transformation and Regeneration",20154,Committee Property Account,B2201,Electricity,73.40,Laser Energy Buying Group (Kent County Council Commercial Services),Electricity,2002723,201804,
Rother District Council,25/06/2018,081ACQUISIT,"Acquisitions, Transformation and Regeneration",20154,Committee Property Account,B2201,Electricity,181.74,Laser Energy Buying Group (Kent County Council Commercial Services),Electricity,2002723,201804,
Rother District Council,25/06/2018,081ACQUISIT,"Acquisitions, Transformation and Regeneration",20154,Committee Property Account,B2201,Electricity,"-2,061.54",Laser Energy Buying Group (Kent County Council Commercial Services),Electricity,2002723,201804,
Rother District Council,25/06/2018,081ACQUISIT,"Acquisitions, Transformation and Regeneration",20154,Committee Property Account,B2201,Electricity,47.21,Laser Energy Buying Group (Kent County Council Commercial Services),Electricity,2002723,201804,
Rother District Council,25/06/2018,081ACQUISIT,"Acquisitions, Transformation and Regeneration",20154,Committee Property Account,B2201,Electricity,50.75,Laser Energy Buying Group (Kent County Council Commercial Services),Electricity,2002723,201804,
Rother District Council,25/06/2018,081ACQUISIT,"Acquisitions, Transformation and Regeneration",20154,Committee Property Account,B2201,Electricity,51.32,Laser Energy Buying Group (Kent County Council Commercial Services),Electricity,2002723,201804,
Rother District Council,25/06/2018,081ACQUISIT,"Acquisitions, Transformation and Regeneration",20154,Committee Property Account,B2201,Electricity,51.32,Laser Energy Buying Group (Kent County Council Commercial Services),Electricity,2002723,201804,
Rother District Council,25/06/2018,091HOUSING,Housing and Community Services,20125,Coast Protection,B2201,Electricity,443.55,Laser Energy Buying Group (Kent County Council Commercial Services),Electricity,2002723,201804,
Rother District Council,25/06/2018,091HOUSING,Housing and Community Services,20125,Coast Protection,B2201,Electricity,456.07,Laser Energy Buying Group (Kent County Council Commercial Services),Electricity,2002723,201804,
Rother District Council,25/06/2018,081ACQUISIT,"Acquisitions, Transformation and Regeneration",20154,Committee Property Account,B2201,Electricity,51.13,Laser Energy Buying Group (Kent County Council Commercial Services),Electricity,2002723,201804,
Rother District Council,25/06/2018,081ACQUISIT,"Acquisitions, Transformation and Regeneration",20154,Committee Property Account,B2201,Electricity,51.32,Laser Energy Buying Group (Kent County Council Commercial Services),Electricity,2002723,201804,
Rother District Council,25/06/2018,081ACQUISIT,"Acquisitions, Transformation and Regeneration",20154,Committee Property Account,B2201,Electricity,51.32,Laser Energy Buying Group (Kent County Council Commercial Services),Electricity,2002723,201804,
Rother District Council,25/06/2018,081ACQUISIT,"Acquisitions, Transformation and Regeneration",20154,Committee Property Account,B2201,Electricity,51.13,Laser Energy Buying Group (Kent County Council Commercial Services),Electricity,2002723,201804,
Rother District Council,25/06/2018,081ACQUISIT,"Acquisitions, Transformation and Regeneration",20154,Committee Property Account,B2201,Electricity,51.13,Laser Energy Buying Group (Kent County Council Commercial Services),Electricity,2002723,201804,
Rother District Council,25/06/2018,081ACQUISIT,"Acquisitions, Transformation and Regeneration",20154,Committee Property Account,B2201,Electricity,51.13,Laser Energy Buying Group (Kent County Council Commercial Services),Electricity,2002723,201804,
Rother District Council,25/06/2018,081ACQUISIT,"Acquisitions, Transformation and Regeneration",20154,Committee Property Account,B2201,Electricity,51.32,Laser Energy Buying Group (Kent County Council Commercial Services),Electricity,2002723,201804,
Rother District Council,25/06/2018,081ACQUISIT,"Acquisitions, Transformation and Regeneration",20154,Committee Property Account,B2201,Electricity,51.32,Laser Energy Buying Group (Kent County Council Commercial Services),Electricity,2002723,201804,
Rother District Council,25/06/2018,081ACQUISIT,"Acquisitions, Transformation and Regeneration",20154,Committee Property Account,B2201,Electricity,187.16,Laser Energy Buying Group (Kent County Council Commercial Services),Electricity,2002723,201804,
Rother District Council,25/06/2018,081ACQUISIT,"Acquisitions, Transformation and Regeneration",20154,Committee Property Account,B2201,Electricity,181.74,Laser Energy Buying Group (Kent County Council Commercial Services),Electricity,2002723,201804,
Rother District Council,25/06/2018,081ACQUISIT,"Acquisitions, Transformation and Regeneration",20154,Committee Property Account,B2201,Electricity,181.74,Laser Energy Buying Group (Kent County Council Commercial Services),Electricity,2002723,201804,
Rother District Council,25/06/2018,081ACQUISIT,"Acquisitions, Transformation and Regeneration",20154,Committee Property Account,B2201,Electricity,180.88,Laser Energy Buying Group (Kent County Council Commercial Services),Electricity,2002723,201804,
Rother District Council,25/06/2018,081ACQUISIT,"Acquisitions, Transformation and Regeneration",20154,Committee Property Account,B2201,Electricity,181.46,Laser Energy Buying Group (Kent County Council Commercial Services),Electricity,2002723,201804,
Rother District Council,25/06/2018,081ACQUISIT,"Acquisitions, Transformation and Regeneration",20154,Committee Property Account,B2201,Electricity,181.74,Laser Energy Buying Group (Kent County Council Commercial Services),Electricity,2002723,201804,
Rother District Council,25/06/2018,081ACQUISIT,"Acquisitions, Transformation and Regeneration",20154,Committee Property Account,B2201,Electricity,181.46,Laser Energy Buying Group (Kent County Council Commercial Services),Electricity,2002723,201804,
Rother District Council,25/06/2018,081ACQUISIT,"Acquisitions, Transformation and Regeneration",20153,"Elva Business Centre, Bexhill",B2201,Electricity,665.98,Laser Energy Buying Group (Kent County Council Commercial Services),Electricity,2002723,201804,
Rother District Council,25/06/2018,031RESOURCES,Executive Directors & Corporate Core,20173,Administrative Offices - Town Hall,B2202,Gas,287.02,Laser Energy Buying Group (Kent County Council Commercial Services),Gas,2002722,201804,
Rother District Council,25/06/2018,031RESOURCES,Executive Directors & Corporate Core,20175,Administrative Offices - T.H. Annex (NOT CHP),B2202,Gas,227.69,Laser Energy Buying Group (Kent County Council Commercial Services),Gas,2002722,201804,
Rother District Council,25/06/2018,031RESOURCES,Executive Directors & Corporate Core,20176,Administrative Offices - Print Room,B2202,Gas,38.70,Laser Energy Buying Group (Kent County Council Commercial Services),Gas,2002722,201804,
Rother District Council,25/06/2018,081ACQUISIT,"Acquisitions, Transformation and Regeneration",20154,Committee Property Account,B2202,Gas,4.34,Laser Energy Buying Group (Kent County Council Commercial Services),Gas,2002722,201804,
Rother District Council,26/06/2018,091HOUSING,Housing and Community Services,20114,Bexhill Parks & Open Spaces,D1201,Equipment & Materials,50.00,B.F.J. Engraving Ltd,Equipment & Materials - Maintenance of Seats/Plaques from Donations,2002292,201804,
Rother District Council,26/06/2018,091HOUSING,Housing and Community Services,20114,Bexhill Parks & Open Spaces,D1201,Equipment & Materials,215.00,B.F.J. Engraving Ltd,Equipment & Materials - Maintenance of Seats/Plaques from Donations,2002293,201804,
Rother District Council,26/06/2018,031RESOURCES,Executive Directors & Corporate Core,20159,Corporate Policy Making,D1201,Equipment & Materials,137.50,Ribbonworks Ltd,Equipment & Materials Access cards and systems,2003115,201805,
Rother District Council,26/06/2018,091HOUSING,Housing and Community Services,20145,Maintenance Services,D1201,Equipment & Materials,161.82,Jewson Limited,Equipment & Materials Purchase of Tools,2002577,201804,
Rother District Council,26/06/2018,041ENVIRON,Environmental Services,32134,EH Pollution R + W Partnership,D2513,Hired and Contracted services,"2,600.00",Hastings and Rother Mediation Service,Hired and contracted services Hastings + Rother CAB - Mediation S,2002316,201804,
Rother District Council,26/06/2018,101RESOURCES,Resources,20240,Printing Services,D2417,Photocopy Paper by external suppliers,219.70,Premier Paper Group Ltd,Photocopy Paper Colour Copy Paper SRA3,2002270,201804,
Rother District Council,26/06/2018,031RESOURCES,Executive Directors & Corporate Core,20171,Human Resources,A2202,Recruitment expenses,488.09,Johnston Publishing Ltd,Recruitment expenses Advertising Vacant Post,2002379,201804,
Rother District Council,26/06/2018,031RESOURCES,Executive Directors & Corporate Core,20171,Human Resources,A2202,Recruitment expenses,488.09,Johnston Publishing Ltd,Recruitment expenses Advertising Vacant Post,2002380,201804,
Rother District Council,26/06/2018,031RESOURCES,Executive Directors & Corporate Core,20171,Human Resources,A2202,Recruitment expenses,488.09,Johnston Publishing Ltd,Recruitment expenses Advertising Vacant Post,2002381,201804,
Rother District Council,26/06/2018,091HOUSING,Housing and Community Services,20137,Car Parks,B1100,Repairs to Premises,420.00,B and G Environmental Services Limited,Repairs to Premises Drainage Clearance,2002519,201804,
Rother District Council,26/06/2018,091HOUSING,Housing and Community Services,20128,Public Conveniences,B1100,Repairs to Premises,241.66,Graham,Repairs to Premises Purchase of Materials - Build Maint,2002579,201804,
Rother District Council,26/06/2018,091HOUSING,Housing and Community Services,20114,Bexhill Parks & Open Spaces,B1100,Repairs to Premises,25.10,Jewson Limited,Repairs to Premises Purchase of Materials - Build Maint,2002580,201804,
Rother District Council,26/06/2018,091HOUSING,Housing and Community Services,20108,Bexhill Promenade & Foreshore,B1100,Repairs to Premises,6.80,Parker Building Supplies Ltd,Repairs to Premises Purchase of Materials - Build Maint,2002911,201804,
Rother District Council,26/06/2018,091HOUSING,Housing and Community Services,20128,Public Conveniences,B1100,Repairs to Premises,93.11,Littlewood Fencing Ltd,Repairs to Premises Purchase of Materials - Build Maint,2002616,201804,
Rother District Council,26/06/2018,031RESOURCES,Executive Directors & Corporate Core,20175,Administrative Offices - T.H. Annex (NOT CHP),B1100,Repairs to Premises,67.50,Alfa Electric Ltd,Repairs to Premises Repairs - Electrical Works,2002544,201804,
Rother District Council,26/06/2018,031RESOURCES,Executive Directors & Corporate Core,20173,Administrative Offices - Town Hall,B1100,Repairs to Premises,137.50,Kerry SCS Ltd,Repairs to Premises Repairs - Electrical Works,2002312,201804,
Rother District Council,26/06/2018,071STRAT,Strategy and Planning,20259,Land Charges,D2922,Subscriptions,115.00,Local Land Charges Institute,Subscriptions Subscription to Organisations,2002463,201804,
Rother District Council,27/06/2018,091HOUSING,Housing and Community Services,20200,Housing Needs - HB (Housing Benefit),A1110,Agency Staff,937.50,Oyster Partnership,Agency Staff,2002408,201804,
Rother District Council,27/06/2018,091HOUSING,Housing and Community Services,20200,Housing Needs - HB (Housing Benefit),A1110,Agency Staff,900.00,Prentis Solutions Limited,Agency Staff,2002419,201804,
Rother District Council,27/06/2018,041ENVIRON,Environmental Services,32136,EH Pest Control R + W Partnership,D1202,Baits Poisons Etc,174.26,Killgerm Chemicals Ltd,Baits Poisons Etc EnvH- Pest Control Supplies,2002461,201804,
Rother District Council,27/06/2018,999NOREPORT,Environmental Services,70706,Capital - Disable Facilities Grant,N1012,Capital Advances,"3,000.00",Mr Mark Neale General Building and Plumbing Ltd,Capital Advances Disabled Facilities Grant,2002405,201804,
Rother District Council,27/06/2018,999NOREPORT,Environmental Services,70706,Capital - Disable Facilities Grant,N1012,Capital Advances,"5,000.00",Nutra Plumbing and Heating Ltd,Capital Advances Disabled Facilities Grant,2002413,201804,
Rother District Council,27/06/2018,101RESOURCES,Resources,20240,Printing Services,D1201,Equipment & Materials,118.00,The Warehouse.com Ltd,Equipment & Materials Platemaking Materials,2002417,201804,
Rother District Council,27/06/2018,091HOUSING,Housing and Community Services,20109,Sports Development,D2923,Grants made,380.00,East Sussex County Council,Grants made Sports Development Projects,2002267,201804,Yes
Rother District Council,27/06/2018,101RESOURCES,Resources,20216,Cost Of Collection,D2513,Hired and Contracted services,27.00,H M Land Registry,Hired and contracted services Council Tax-Land Registry Enquiries,2002907,201804,
Rother District Council,27/06/2018,031RESOURCES,Executive Directors & Corporate Core,20182,Legal Services,D2513,Hired and Contracted services,110.00,HMCTS,Hired and contracted services Issue Fee for Warrant of Execution,2002311,201804,
Rother District Council,27/06/2018,071STRAT,Strategy and Planning,20246,Planning Applications,D2513,Hired and Contracted services,27.00,H M Land Registry,Hired and contracted services Land Registry - Planning,2002907,201804,
Rother District Council,27/06/2018,091HOUSING,Housing and Community Services,20200,Housing Needs - HB (Housing Benefit),D2514,Accommodation Costs,920.00,Gordon-Harris Estates Ltd,Homelessness services Deposit for Landlords,2002318,201804,
Rother District Council,27/06/2018,091HOUSING,Housing and Community Services,20200,Housing Needs - HB (Housing Benefit),D2514,Accommodation Costs,540.00,Gordon-Harris Estates Ltd,Homelessness services Rent in Advance for Homeless,2002318,201804,
Rother District Council,27/06/2018,091HOUSING,Housing and Community Services,20114,Bexhill Parks & Open Spaces,B1100,Repairs to Premises,"2,650.00",Kernock Park Plants,Repairs to Premises Parks- Purchase of Plants,2002479,201804,
Rother District Council,27/06/2018,091HOUSING,Housing and Community Services,20128,Public Conveniences,B1100,Repairs to Premises,98.65,Graham,Repairs to Premises Purchase of Materials - Build Maint,2002578,201804,
Rother District Council,27/06/2018,081ACQUISIT,"Acquisitions, Transformation and Regeneration",20154,Committee Property Account,B1100,Repairs to Premises,78.20,Hastings Locksmiths and Key Service,Repairs to Premises Purchase of Materials - Build Maint,2002422,201804,
Rother District Council,27/06/2018,081ACQUISIT,"Acquisitions, Transformation and Regeneration",20153,"Elva Business Centre, Bexhill",B1100,Repairs to Premises,34.57,Hastings Locksmiths and Key Service,Repairs to Premises Purchase of Materials - Build Maint,2002422,201804,
Rother District Council,27/06/2018,091HOUSING,Housing and Community Services,20102,Rother Museum Services,B1100,Repairs to Premises,102.50,Alfa Electric Ltd,Repairs to Premises Repairs - Electrical Works,2002275,201804,
Rother District Council,27/06/2018,031RESOURCES,Executive Directors & Corporate Core,20175,Administrative Offices - T.H. Annex (NOT CHP),B1100,Repairs to Premises,45.00,Alfa Electric Ltd,Repairs to Premises Repairs - Electrical Works,2002545,201804,
Rother District Council,27/06/2018,031RESOURCES,Executive Directors & Corporate Core,20177,Administrative Offices - Rear Depot,B1100,Repairs to Premises,102.50,Alfa Electric Ltd,Repairs to Premises Repairs - Electrical Works,2002274,201804,
Rother District Council,27/06/2018,091HOUSING,Housing and Community Services,20115,Rye Area Parks & Gardens,B2422,Sewerage,131.65,Scottish Water Business Stream Limited,Sewage Charges,2002528,201804,
Rother District Council,27/06/2018,091HOUSING,Housing and Community Services,20206,Syrians,D2513,Hired and Contracted services,52.80,Vandu Language Services Ltd,Syrian - Hired and contracted services- Translation Services,2002304,201804,
Rother District Council,27/06/2018,101RESOURCES,Resources,20242,Communications-Phones,D2621,Telephones,271.12,BT British Telecommunications plc,Telephones BT-Rental-General,2002471,201804,
Rother District Council,27/06/2018,101RESOURCES,Resources,20239,Computer Services,D2621,Telephones,267.68,Easynet Ltd,Telephones Leased Line Rental,2002404,201804,
Rother District Council,27/06/2018,091HOUSING,Housing and Community Services,20115,Rye Area Parks & Gardens,B2421,Water,180.23,Scottish Water Business Stream Limited,Water Charges,2002528,201804,
Rother District Council,28/06/2018,101RESOURCES,Resources,20222,Accountancy,A1110,Agency Staff,942.02,Portfolio Payroll Limited,Agency Staff,2002271,201804,
Rother District Council,28/06/2018,031RESOURCES,Executive Directors & Corporate Core,20173,Administrative Offices - Town Hall,B2612,Cleaning materials,25.15,Wightman and Parrish Ltd,Cleaning materials Premises,2002317,201804,
Rother District Council,28/06/2018,091HOUSING,Housing and Community Services,20145,Maintenance Services,D2352,Clothing and Uniforms,39.99,Trade UK Account (Screwfix),Clothing and Uniforms Mens Protective-Other,2002594,201804,
Rother District Council,28/06/2018,091HOUSING,Housing and Community Services,20145,Maintenance Services,D2352,Clothing and Uniforms,80.78,Trade UK Account (Screwfix),Clothing and Uniforms Mens Protective-Other,2002594,201804,
Rother District Council,28/06/2018,101RESOURCES,Resources,20212,Risk Management/Insurance,D2520,Insurance,112.00,Zurich Insurance plc,Insurance Insurance - Fire/All Risks,2002966,201804,
Rother District Council,28/06/2018,091HOUSING,Housing and Community Services,20112,Bexhill Leisure Centre,B1100,Repairs to Premises,"1,812.09",Alfa Electric Ltd,Repairs to Premises Painting Works,2002390,201804,
Rother District Council,28/06/2018,091HOUSING,Housing and Community Services,20114,Bexhill Parks & Open Spaces,B1100,Repairs to Premises,"13,282.06",Hailsham Roadway Construction Ltd,Repairs to Premises Parks - Paths/Surface Repairs,2002276,201805,
Rother District Council,28/06/2018,091HOUSING,Housing and Community Services,20112,Bexhill Leisure Centre,B1100,Repairs to Premises,286.33,Alfa Electric Ltd,Repairs to Premises Purchase of Materials - Build Maint,2002501,201804,
Rother District Council,28/06/2018,091HOUSING,Housing and Community Services,20108,Bexhill Promenade & Foreshore,B1100,Repairs to Premises,36.60,Jewson Limited,Repairs to Premises Purchase of Materials - Build Maint,2002669,201804,
Rother District Council,28/06/2018,031RESOURCES,Executive Directors & Corporate Core,20175,Administrative Offices - T.H. Annex (NOT CHP),B1100,Repairs to Premises,"3,257.48",Alfa Electric Ltd,Repairs to Premises Repairs - Electrical Works,2002389,201804,
Rother District Council,28/06/2018,071STRAT,Strategy and Planning,20246,Planning Applications,D2519,Statutory Advertising,701.50,Johnston Publishing Ltd,Statutory Advertising Planadv - Rye + Battle Observer,2002384,201804,
Rother District Council,28/06/2018,091HOUSING,Housing and Community Services,20114,Bexhill Parks & Open Spaces,D2519,Statutory Advertising,244.00,Johnston Publishing Ltd,Statutory Advertising Public Notices in Newspaper,2002386,201804,
Rother District Council,28/06/2018,031RESOURCES,Executive Directors & Corporate Core,20185,Joint Waste procurement,D2513,Hired and Contracted services,"2,109.70",Bevan Brittan LLP,Hired and Contracted services,2002610,201804,
Rother District Council,29/06/2018,999NOREPORT,Environmental Services,70706,Capital - Disable Facilities Grant,N1012,Capital Advances,"5,000.00",Griffin and Son,Capital Advances Disabled Facilities Grant,2002407,201804,
Rother District Council,29/06/2018,999NOREPORT,Environmental Services,70706,Capital - Disable Facilities Grant,N1012,Capital Advances,"4,958.48",Alfa Electric Ltd,Capital Advances Disabled Facilities Grant,2002411,201804,
Rother District Council,29/06/2018,081ACQUISIT,"Acquisitions, Transformation and Regeneration",20153,"Elva Business Centre, Bexhill",B2612,Cleaning materials,1.78,Officemaid,Cleaning materials Premises,2002536,201804,
Rother District Council,29/06/2018,071STRAT,Strategy and Planning,20246,Planning Applications,D2509,Consultants and Other Services,250.00,Rural Planning Ltd,Consultants and other services Consultants Fees,2002287,201804,
Rother District Council,29/06/2018,101RESOURCES,Resources,20239,Computer Services,D2509,Consultants and Other Services,246.43,Northgate Public Services (UK) Ltd,Consultants and other services Consultants Fees,2002538,201804,
Rother District Council,29/06/2018,081ACQUISIT,"Acquisitions, Transformation and Regeneration",20153,"Elva Business Centre, Bexhill",B2611,Contract cleaning,157.50,Officemaid,Contract cleaning Office Cleaning,2002536,201804,
Rother District Council,29/06/2018,091HOUSING,Housing and Community Services,20128,Public Conveniences,B2611,Contract cleaning,394.45,Specialist Hygiene Services Ltd,Contract cleaning Public Conveniences Cleaning Servic,2002601,201804,
Rother District Council,29/06/2018,091HOUSING,Housing and Community Services,20137,Car Parks,D1201,Equipment & Materials,70.00,Signtek,Equipment & Materials Purchase of Signs,2002358,201804,
Rother District Council,29/06/2018,091HOUSING,Housing and Community Services,20107,Camber Beach & Foreshore,D1201,Equipment & Materials,95.00,Signtek,Equipment & Materials Purchase of Signs,2002357,201804,
Rother District Council,29/06/2018,031RESOURCES,Executive Directors & Corporate Core,20156,Representing Local Interest,D1201,Equipment & Materials,99.00,AJ Products (UK) Ltd,Equipment & Materials Purchase of Tools,2003947,201806,
Rother District Council,29/06/2018,101RESOURCES,Resources,20216,Cost Of Collection,D2513,Hired and Contracted services,18.00,H M Land Registry,Hired and contracted services Council Tax-Land Registry Enquiries,2002906,201805,
Rother District Council,29/06/2018,041ENVIRON,Environmental Services,32144,EH Environmental Services Admin R + W Partnership,D2513,Hired and Contracted services,12.00,H M Land Registry,Hired and contracted services Env H- Land Registry,2002906,201805,
Rother District Council,29/06/2018,071STRAT,Strategy and Planning,32145,Building Control Applications R+H Partnership,D2513,Hired and Contracted services,6.00,H M Land Registry,Hired and contracted services Env H- Land Registry,2002906,201805,
Rother District Council,29/06/2018,041ENVIRON,Environmental Services,32140,EN Wealden Training (WEALDEN ONLY) R + W Partnership,D2513,Hired and Contracted services,19.13,Uckfield Town Council,Hired and contracted services EnvH- Food Safety Contractor,2002533,201804,
Rother District Council,29/06/2018,071STRAT,Strategy and Planning,20246,Planning Applications,D2513,Hired and Contracted services,6.00,H M Land Registry,Hired and contracted services Land Registry - Planning,2002906,201805,
Rother District Council,29/06/2018,101RESOURCES,Resources,20217,Reliefs & Benefits-Council Tax Benefit,D2513,Hired and Contracted services,"4,767.82",Capita Business Services Ltd,Hired and contracted services Off-site resilience processing,2003235,201805,
Rother District Council,29/06/2018,031RESOURCES,Executive Directors & Corporate Core,20185,Joint Waste procurement,D2513,Hired and Contracted services,"12,110.00",Ricardo-AEA Ltd,Hired and contracted services Service fee paid,2002362,201804,
Rother District Council,29/06/2018,031RESOURCES,Executive Directors & Corporate Core,20185,Joint Waste procurement,D2513,Hired and Contracted services,"3,462.50",Ricardo-AEA Ltd,Hired and contracted services Service fee paid,2002359,201804,
Rother District Council,29/06/2018,031RESOURCES,Executive Directors & Corporate Core,32131,Sussex Training Partnership,D2513,Hired and Contracted services,200.00,Red Bullet Web Design Limited,Hired and contracted services -web site purchase,2002478,201804,
Rother District Council,29/06/2018,101RESOURCES,Resources,20207,Reliefs & Benefits-Housing Benefit,D2626,Postages,"1,822.70",Virtual Mail Room Ltd,Postages Postages - Virtual Mail Room,2002759,201804,
Rother District Council,29/06/2018,101RESOURCES,Resources,20216,Cost Of Collection,D2626,Postages,"1,822.70",Virtual Mail Room Ltd,Postages Postages - Virtual Mail Room,2002759,201804,
Rother District Council,29/06/2018,081ACQUISIT,"Acquisitions, Transformation and Regeneration",20151,Udimore Workshops,B2311,Rents and service charges,183.75,Mr & Mrs Walkling,Rents and service charges Rents - Rye,2004448,201806,
Rother District Council,29/06/2018,081ACQUISIT,"Acquisitions, Transformation and Regeneration",20151,Udimore Workshops,B2311,Rents and service charges,183.75,Mr & Mrs Walkling,Rents and service charges Rents - Rye,2002326,201804,
Rother District Council,29/06/2018,081ACQUISIT,"Acquisitions, Transformation and Regeneration",20151,Udimore Workshops,B2311,Rents and service charges,183.75,Mr & Mrs Walkling,Rents and service charges Rents - Rye,2002329,201804,
Rother District Council,29/06/2018,091HOUSING,Housing and Community Services,20234,Battle Community Help Point,B2311,Rents and service charges,"2,062.50",Tiger Tees Ltd,Rents and service charges Rents-CHP Battle,2002734,201804,
Rother District Council,29/06/2018,091HOUSING,Housing and Community Services,20138,Residual Highway Services,B1100,Repairs to Premises,380.00,Colin A May,Repairs to Premises Painting Works,2002348,201804,
Rother District Council,29/06/2018,091HOUSING,Housing and Community Services,20128,Public Conveniences,B1100,Repairs to Premises,280.00,Colin A May,Repairs to Premises Parks- Roofing Repairs,2002360,201804,
Rother District Council,29/06/2018,091HOUSING,Housing and Community Services,20128,Public Conveniences,B1100,Repairs to Premises,33.19,Parker Building Supplies Ltd,Repairs to Premises Purchase of Materials - Build Maint,2002269,201804,
Rother District Council,29/06/2018,091HOUSING,Housing and Community Services,20102,Rother Museum Services,B1100,Repairs to Premises,369.00,Alfa Electric Ltd,Repairs to Premises Repairs - Electrical Works,2002450,201804,
Rother District Council,29/06/2018,091HOUSING,Housing and Community Services,20102,Rother Museum Services,B1100,Repairs to Premises,307.50,Alfa Electric Ltd,Repairs to Premises Repairs - Electrical Works,2002451,201804,
Rother District Council,29/06/2018,091HOUSING,Housing and Community Services,20128,Public Conveniences,B1100,Repairs to Premises,296.33,Alfa Electric Ltd,Repairs to Premises Repairs - Electrical Works,2002503,201804,
Rother District Council,29/06/2018,091HOUSING,Housing and Community Services,20108,Bexhill Promenade & Foreshore,B1100,Repairs to Premises,"3,200.00",Colin A May,Repairs to Premises Repairs - Painting Works,2002361,201804,
Rother District Council,29/06/2018,091HOUSING,Housing and Community Services,20108,Bexhill Promenade & Foreshore,B1100,Repairs to Premises,590.00,Alfa Electric Ltd,Repairs to Premises Repairs/Maintenance - various,2002504,201804,
Rother District Council,29/06/2018,081ACQUISIT,"Acquisitions, Transformation and Regeneration",20154,Committee Property Account,B1100,Repairs to Premises,479.00,J H Payne and Sons Ltd,Repairs to Premises Specified Repairs and Works listed,2002406,201804,
Rother District Council,29/06/2018,031RESOURCES,Executive Directors & Corporate Core,32132,Joint Waste Contract Client Unit,E2302,Third party payment private contractors,"46,895.76",Kier Services - Environmental,Third party payment private contractors VARIABLE CORE Joint Waste Cost,2003188,201805,
Rother District Council,29/06/2018,091HOUSING,Housing and Community Services,20108,Bexhill Promenade & Foreshore,E2302,Third party payment private contractors,"1,158.41",The Fountain Workshop (Maintenance) Ltd,Third party payment private contractors Water Feature Maintenance,2004206,201806,
Rother District Council,29/06/2018,091HOUSING,Housing and Community Services,20108,Bexhill Promenade & Foreshore,E2302,Third party payment private contractors,54.95,The Fountain Workshop (Maintenance) Ltd,Third party payment private contractors Water Feature Maintenance,2003735,201806,
Rother District Council,29/06/2018,091HOUSING,Housing and Community Services,20200,Housing Needs - HB (Housing Benefit),D2514,Accommodation Costs,245.00,MB Hotels Ltd,Accommodation Costs,2002393,201804,
Rother District Council,29/06/2018,091HOUSING,Housing and Community Services,20200,Housing Needs - HB (Housing Benefit),D2514,Accommodation Costs,245.00,MB Hotels Ltd,Accommodation Costs,2002394,201804,
Rother District Council,29/06/2018,091HOUSING,Housing and Community Services,20200,Housing Needs - HB (Housing Benefit),D2514,Accommodation Costs,245.00,MB Hotels Ltd,Accommodation Costs,2002395,201804,
Rother District Council,30/06/2018,101RESOURCES,Resources,20209,Corporate management,D2513,Hired and Contracted services,40.00,Lloyds Bank,Bank Charges Bank Charges,2002936,201804,
Rother District Council,30/06/2018,101RESOURCES,Resources,20209,Corporate management,D2513,Hired and Contracted services,40.00,Lloyds Bank,Bank Charges Bank Charges,2002938,201804,
Rother District Council,30/06/2018,101RESOURCES,Resources,20209,Corporate management,D2513,Hired and Contracted services,40.00,Lloyds Bank,Bank Charges Bank Charges,2002939,201804,
Rother District Council,30/06/2018,101RESOURCES,Resources,20209,Corporate management,D2513,Hired and Contracted services,20.63,Lloyds Bank,Bank Charges Bank Charges,2002941,201804,
Rother District Council,30/06/2018,101RESOURCES,Resources,20209,Corporate management,D2513,Hired and Contracted services,413.79,Lloyds Bank,Bank Charges Bank Charges,2002942,201804,
Rother District Council,30/06/2018,101RESOURCES,Resources,20209,Corporate management,D2513,Hired and Contracted services,40.00,Lloyds Bank,Bank Charges Bank Charges,2002937,201804,
Rother District Council,30/06/2018,101RESOURCES,Resources,20209,Corporate management,D2513,Hired and Contracted services,40.00,Lloyds Bank,Bank Charges Bank Charges,2002940,201804,
Rother District Council,30/06/2018,101RESOURCES,Resources,20209,Corporate management,D2513,Hired and Contracted services,883.17,Lloyds Bank,Bank Charges Bank Charges,2002943,201804,
Rother District Council,30/06/2018,101RESOURCES,Resources,20209,Corporate management,D2513,Hired and Contracted services,"1,878.87",Lloyds Bank,Bank Charges Bank Charges,2002944,201804,
Rother District Council,30/06/2018,101RESOURCES,Resources,20209,Corporate management,D2513,Hired and Contracted services,20.07,Lloyds Bank,Bank Charges Bank Charges,2002945,201804,
Rother District Council,30/06/2018,999NOREPORT,Resources,90000,Balance sheet all accounts,P1099,Owed by - Colonnade Bexhill Ltd,20.00,Lloyds Bank,Colonnade Restaurant Bexhill Ltd - purchases,2002935,201804,
Rother District Council,30/06/2018,031RESOURCES,Executive Directors & Corporate Core,20162,Electoral Registration,D2635,Computer Licences,"1,250.00",Xpress Software Solutions Ltd (ERS Group),Computer Licences Election Management System,2002397,201804,
Rother District Council,30/06/2018,101RESOURCES,Resources,20239,Computer Services,D2509,Consultants and Other Services,115.88,Wilson�s Express Hastings Ltd,Consultants and other services Consultants Fees,2003087,201805,
Rother District Council,30/06/2018,091HOUSING,Housing and Community Services,20138,Residual Highway Services,B2611,Contract cleaning,353.10,Abacus Main Ltd,Contract cleaning Bus Shelter Cleaning Contract,2002534,201804,
Rother District Council,30/06/2018,091HOUSING,Housing and Community Services,20234,Battle Community Help Point,B2611,Contract cleaning,205.70,Abacus Main Ltd,Contract cleaning Office Cleaning,2002583,201804,
Rother District Council,30/06/2018,091HOUSING,Housing and Community Services,20108,Bexhill Promenade & Foreshore,B2611,Contract cleaning,126.00,Abacus Main Ltd,Contract cleaning Office Cleaning,2002584,201804,
Rother District Council,30/06/2018,091HOUSING,Housing and Community Services,20107,Camber Beach & Foreshore,C1104,Derv,1.90,Allstar Business Solutions,Derv Fuel Service fee payable on fuel cards,2003271,201805,
Rother District Council,30/06/2018,091HOUSING,Housing and Community Services,20145,Maintenance Services,C1104,Derv,1.90,Allstar Business Solutions,Derv Fuel Service fee payable on fuel cards,2003271,201805,
Rother District Council,30/06/2018,091HOUSING,Housing and Community Services,20137,Car Parks,D2513,Hired and Contracted services,877.00,PW Hire Ltd,Equipment & Materials - Car Parks Tickets,2002487,201804,
Rother District Council,30/06/2018,091HOUSING,Housing and Community Services,20137,Car Parks,D2513,Hired and Contracted services,38.00,PW Hire Ltd,Equipment & Materials - Car Parks Tickets,2002487,201804,
Rother District Council,30/06/2018,101RESOURCES,Resources,20240,Printing Services,D1201,Equipment & Materials,10.00,SBS Consumables,Equipment & Materials Carriage/Handling Charge,2002421,201804,
Rother District Council,30/06/2018,091HOUSING,Housing and Community Services,20114,Bexhill Parks & Open Spaces,B2731,Grounds maintenance routine,"72,908.97",Idverde Limited,Grounds Maintenance Contract Routine,2002711,201804,
Rother District Council,30/06/2018,101RESOURCES,Resources,20216,Cost Of Collection,D2513,Hired and Contracted services,50.75,allpay.net Ltd,Hired and contracted services Allpay Card/Rep/Let Chrg - Vatable,2003858,201806,
Rother District Council,30/06/2018,101RESOURCES,Resources,20216,Cost Of Collection,D2513,Hired and Contracted services,32.81,allpay.net Ltd,Hired and contracted services Allpay Card/Rep/Let Chrg - Vatable,2003859,201806,
Rother District Council,30/06/2018,101RESOURCES,Resources,20216,Cost Of Collection,D2513,Hired and Contracted services,87.05,allpay.net Ltd,Hired and contracted services Allpay Card/Rep/Let Chrg - Vatable,2003860,201806,
Rother District Council,30/06/2018,101RESOURCES,Resources,20216,Cost Of Collection,D2513,Hired and Contracted services,"2,246.18",allpay.net Ltd,Hired and contracted services Allpay Card/Rep/Let Chrg - Vatable,2003861,201806,
Rother District Council,30/06/2018,091HOUSING,Housing and Community Services,20137,Car Parks,D2513,Hired and Contracted services,"1,817.91",Cobalt Telephone Technologies Ltd,Hired and contracted services Car Parks - RingGo service charges,2002896,201804,
Rother District Council,30/06/2018,031RESOURCES,Executive Directors & Corporate Core,20173,Administrative Offices - Town Hall,D2513,Hired and Contracted services,95.20,Data Shredding Services Ltd,Hired and contracted services Charges - Confidential Office Waste,2002589,201804,
Rother District Council,30/06/2018,041ENVIRON,Environmental Services,32143,EH Licenses and Registration R + W Partnership,D2513,Hired and Contracted services,336.00,Blowey & Wood Veterinary Surgeons,Hired and contracted services EnvH-Veterinary Services for Licens,2002730,201804,
Rother District Council,30/06/2018,041ENVIRON,Environmental Services,32143,EH Licenses and Registration R + W Partnership,D2513,Hired and Contracted services,336.00,Blowey & Wood Veterinary Surgeons,Hired and contracted services EnvH-Veterinary Services for Licens,2002731,201804,
Rother District Council,30/06/2018,091HOUSING,Housing and Community Services,20145,Maintenance Services,B1100,Repairs to Premises,320.00,R French and  Son Ltd,Hired and contracted services Hire of Skip,2002402,201804,
Rother District Council,30/06/2018,091HOUSING,Housing and Community Services,20200,Housing Needs - HB (Housing Benefit),D2513,Hired and Contracted services,48.00,NowMedical,Hired and contracted services Medical Assessments,2002657,201804,
Rother District Council,30/06/2018,091HOUSING,Housing and Community Services,20200,Housing Needs - HB (Housing Benefit),D2513,Hired and Contracted services,155.00,NowMedical,Hired and contracted services Medical Assessments,2002658,201804,
Rother District Council,30/06/2018,091HOUSING,Housing and Community Services,20261,"41 Jameson Mews, Bexhill on Sea",D2513,Hired and Contracted services,25.00,Ophrah Oak Limited,Hired and contracted services Service fee paid,2002690,201804,
Rother District Council,30/06/2018,041ENVIRON,Environmental Services,32142,EH Taxi and Private Hire Licenses R + W Partnership,D2513,Hired and Contracted services,528.00,DBS The Disclosure and Barring Service,Hired and contracted services Service fee paid,2002537,201804,
Rother District Council,30/06/2018,091HOUSING,Housing and Community Services,20200,Housing Needs - HB (Housing Benefit),D2513,Hired and Contracted services,"2,625.00",LHS Locata (Housing Services) Ltd,Hired and contracted services Service fee paid,2002950,201805,
Rother District Council,30/06/2018,071STRAT,Strategy and Planning,20246,Planning Applications,D1204,Newspapers & Periodicals,15.75,Pipers News Ltd,Newspapers & Periodicals Newspapers,2002713,201804,
Rother District Council,30/06/2018,031RESOURCES,Executive Directors & Corporate Core,20159,Corporate Policy Making,D1204,Newspapers & Periodicals,15.75,Pipers News Ltd,Newspapers & Periodicals Newspapers,2002714,201804,
Rother District Council,30/06/2018,031RESOURCES,Executive Directors & Corporate Core,20156,Representing Local Interest,D1204,Newspapers & Periodicals,15.75,Pipers News Ltd,Newspapers & Periodicals Newspapers,2002715,201804,
Rother District Council,30/06/2018,031RESOURCES,Executive Directors & Corporate Core,20171,Human Resources,A2202,Recruitment expenses,"1,460.00",Haymarket Media Group Ltd,Recruitment expenses Advertising Vacant Post,2002448,201804,
Rother District Council,30/06/2018,091HOUSING,Housing and Community Services,20114,Bexhill Parks & Open Spaces,B1100,Repairs to Premises,"2,265.00",Gristwood and Toms Limited,Repairs to Premises Parks- Tree Works,2002483,201804,
Rother District Council,30/06/2018,091HOUSING,Housing and Community Services,20114,Bexhill Parks & Open Spaces,B1100,Repairs to Premises,"1,950.00",Gristwood and Toms Limited,Repairs to Premises Parks- Tree Works,2002485,201804,
Rother District Council,30/06/2018,081ACQUISIT,"Acquisitions, Transformation and Regeneration",20154,Committee Property Account,B1100,Repairs to Premises,43.09,C Brewer and Sons Ltd,Repairs to Premises Purchase of Materials - Build Maint,2002480,201804,
Rother District Council,30/06/2018,081ACQUISIT,"Acquisitions, Transformation and Regeneration",20154,Committee Property Account,B1100,Repairs to Premises,35.71,C Brewer and Sons Ltd,Repairs to Premises Purchase of Materials - Build Maint,2002481,201804,
Rother District Council,30/06/2018,081ACQUISIT,"Acquisitions, Transformation and Regeneration",20154,Committee Property Account,B1100,Repairs to Premises,25.30,C Brewer and Sons Ltd,Repairs to Premises Purchase of Materials - Build Maint,2002482,201804,
Rother District Council,30/06/2018,091HOUSING,Housing and Community Services,20113,Bexhill Leisure Pool,B1100,Repairs to Premises,"1,380.00",Ace Joinery Solutions South East Ltd,Repairs to Premises Purchase of Materials - Build Maint,2003249,201805,
Rother District Council,30/06/2018,091HOUSING,Housing and Community Services,20137,Car Parks,C2424,Car parking,58.70,Rye Hire Ltd,Repairs to Premises White Lining in Car Parks,2003496,201805,
Rother District Council,30/06/2018,091HOUSING,Housing and Community Services,20137,Car Parks,B1100,Repairs to Premises,450.00,John O� Conner (Grounds Maintenance) Ltd,Repairs to Premises White Lining in Car Parks,2002672,201804,
Rother District Council,30/06/2018,081ACQUISIT,"Acquisitions, Transformation and Regeneration",20148,Misc Land & Buildings,B2422,Sewerage,138.00,Cleansing Service Group Ltd,Sewerage Parks- Emptying of Cesspit,2002365,201804,
Rother District Council,30/06/2018,101RESOURCES,Resources,20241,Stationery,D2416,Stationery ordered internally (Print Room),17.08,SBS Consumables,Stationery (General office Supplies) (Stationery Services to buy ONLY),2002421,201804,
Rother District Council,30/06/2018,101RESOURCES,Resources,20241,Stationery,D2416,Stationery ordered internally (Print Room),54.00,The Roman Group,Stationery (General office Supplies) (Stationery Services to buy ONLY),2002324,201804,
Rother District Council,30/06/2018,071STRAT,Strategy and Planning,20246,Planning Applications,D2519,Statutory Advertising,247.20,Local World Ltd,Statutory Advertising Planadv- Kent + East Sussex Courier,2002347,201804,
Rother District Council,30/06/2018,091HOUSING,Housing and Community Services,20206,Syrians,D2513,Hired and Contracted services,112.50,Susanne Evershed,Syrian - Education - Exempt VAT,2002414,201804,
Rother District Council,30/06/2018,091HOUSING,Housing and Community Services,20133,Refuse Collection,E2302,Third party payment private contractors,"2,403.72",Virtual Mail Room Ltd,Third party payment private contractors Waste Collection Contract Variable cost to RDC,2003102,201805,
Rother District Council,30/06/2018,031RESOURCES,Executive Directors & Corporate Core,20176,Administrative Offices - Print Room,B2421,Water,154.78,South East Water Ltd,Water Charges,2003164,201805,
Rother District Council,30/06/2018,031RESOURCES,Executive Directors & Corporate Core,20173,Administrative Offices - Town Hall,B2421,Water,83.28,South East Water Ltd,Water Charges,2003167,201805,
Rother District Council,30/06/2018,031RESOURCES,Executive Directors & Corporate Core,20173,Administrative Offices - Town Hall,B2421,Water,98.97,South East Water Ltd,Water Charges,2003168,201805,
Rother District Council,30/06/2018,031RESOURCES,Executive Directors & Corporate Core,20175,Administrative Offices - T.H. Annex (NOT CHP),B2421,Water,166.94,South East Water Ltd,Water Charges,2002774,201804,
Rother District Council,30/06/2018,031RESOURCES,Executive Directors & Corporate Core,20173,Administrative Offices - Town Hall,B2421,Water,245.42,South East Water Ltd,Water Charges,2002769,201804,
Rother District Council,30/06/2018,091HOUSING,Housing and Community Services,20128,Public Conveniences,B2421,Water,132.09,South East Water Ltd,Water Charges,2003166,201805,
Rother District Council,30/06/2018,091HOUSING,Housing and Community Services,20102,Rother Museum Services,B2421,Water,33.03,South East Water Ltd,Water Charges,2003166,201805,
Rother District Council,30/06/2018,091HOUSING,Housing and Community Services,20105,Allotments- Bexhill,B2421,Water,118.92,South East Water Ltd,Water Charges,2003146,201805,
Rother District Council,30/06/2018,081ACQUISIT,"Acquisitions, Transformation and Regeneration",20155,Investment properties,B2421,Water,138.75,South East Water Ltd,Water Charges,2003146,201805,
Rother District Council,30/06/2018,081ACQUISIT,"Acquisitions, Transformation and Regeneration",20155,Investment properties,B2421,Water,19.82,South East Water Ltd,Water Charges,2003146,201805,
Rother District Council,30/06/2018,081ACQUISIT,"Acquisitions, Transformation and Regeneration",20154,Committee Property Account,B2421,Water,39.64,South East Water Ltd,Water Charges,2003146,201805,
Rother District Council,30/06/2018,081ACQUISIT,"Acquisitions, Transformation and Regeneration",20154,Committee Property Account,B2421,Water,59.46,South East Water Ltd,Water Charges,2003146,201805,
Rother District Council,30/06/2018,091HOUSING,Housing and Community Services,20114,Bexhill Parks & Open Spaces,B2421,Water,19.82,South East Water Ltd,Water Charges,2003146,201805,
Rother District Council,30/06/2018,081ACQUISIT,"Acquisitions, Transformation and Regeneration",20154,Committee Property Account,B2421,Water,10.55,South East Water Ltd,Water Charges,2003151,201805,
Rother District Council,30/06/2018,081ACQUISIT,"Acquisitions, Transformation and Regeneration",20154,Committee Property Account,B2421,Water,10.55,South East Water Ltd,Water Charges,2003153,201805,
Rother District Council,30/06/2018,081ACQUISIT,"Acquisitions, Transformation and Regeneration",20153,"Elva Business Centre, Bexhill",B2421,Water,286.50,South East Water Ltd,Water Charges,2003150,201805,
Rother District Council,30/06/2018,091HOUSING,Housing and Community Services,20114,Bexhill Parks & Open Spaces,B2421,Water,15.73,South East Water Ltd,Water Charges,2003141,201805,
Rother District Council,30/06/2018,091HOUSING,Housing and Community Services,20114,Bexhill Parks & Open Spaces,B2421,Water,13.98,South East Water Ltd,Water Charges,2003143,201805,
Rother District Council,30/06/2018,091HOUSING,Housing and Community Services,20114,Bexhill Parks & Open Spaces,B2421,Water,125.15,South East Water Ltd,Water Charges,2003154,201805,
Rother District Council,30/06/2018,091HOUSING,Housing and Community Services,20114,Bexhill Parks & Open Spaces,B2421,Water,6.91,South East Water Ltd,Water Charges,2003154,201805,
Rother District Council,30/06/2018,091HOUSING,Housing and Community Services,20114,Bexhill Parks & Open Spaces,B2421,Water,29.59,South East Water Ltd,Water Charges,2003170,201805,
Rother District Council,30/06/2018,091HOUSING,Housing and Community Services,20114,Bexhill Parks & Open Spaces,B2421,Water,88.30,South East Water Ltd,Water Charges,2003171,201805,
Rother District Council,30/06/2018,091HOUSING,Housing and Community Services,20114,Bexhill Parks & Open Spaces,B2421,Water,19.20,South East Water Ltd,Water Charges,2003173,201805,
Rother District Council,30/06/2018,091HOUSING,Housing and Community Services,20105,Allotments- Bexhill,B2421,Water,22.68,South East Water Ltd,Water Charges,2003180,201805,
Rother District Council,30/06/2018,091HOUSING,Housing and Community Services,20114,Bexhill Parks & Open Spaces,B2421,Water,30.90,South East Water Ltd,Water Charges,2003182,201805,
Rother District Council,30/06/2018,081ACQUISIT,"Acquisitions, Transformation and Regeneration",20155,Investment properties,B2421,Water,11.77,South East Water Ltd,Water Charges,2003163,201805,
Rother District Council,30/06/2018,091HOUSING,Housing and Community Services,20108,Bexhill Promenade & Foreshore,B2421,Water,391.08,South East Water Ltd,Water Charges,2003161,201805,
Rother District Council,30/06/2018,091HOUSING,Housing and Community Services,20108,Bexhill Promenade & Foreshore,B2421,Water,319.98,South East Water Ltd,Water Charges,2003161,201805,
Rother District Council,30/06/2018,091HOUSING,Housing and Community Services,20105,Allotments- Bexhill,B2421,Water,48.61,South East Water Ltd,Water Charges,2003156,201805,
Rother District Council,30/06/2018,091HOUSING,Housing and Community Services,20128,Public Conveniences,B2421,Water,140.83,South East Water Ltd,Water Charges,2003138,201805,
Rother District Council,30/06/2018,091HOUSING,Housing and Community Services,20128,Public Conveniences,B2421,Water,110.59,South East Water Ltd,Water Charges,2003140,201805,
Rother District Council,30/06/2018,091HOUSING,Housing and Community Services,20128,Public Conveniences,B2421,Water,300.32,South East Water Ltd,Water Charges,2003148,201805,
Rother District Council,30/06/2018,091HOUSING,Housing and Community Services,20128,Public Conveniences,B2421,Water,22.70,South East Water Ltd,Water Charges,2003165,201805,
Rother District Council,30/06/2018,091HOUSING,Housing and Community Services,20128,Public Conveniences,B2421,Water,16.95,South East Water Ltd,Water Charges,2003169,201805,
Rother District Council,30/06/2018,091HOUSING,Housing and Community Services,20114,Bexhill Parks & Open Spaces,B2421,Water,91.45,South East Water Ltd,Water Charges,2003165,201805,
Rother District Council,30/06/2018,091HOUSING,Housing and Community Services,20123,Cemeteries,B2421,Water,12.29,South East Water Ltd,Water Charges,2003140,201805,
Rother District Council,30/06/2018,091HOUSING,Housing and Community Services,20114,Bexhill Parks & Open Spaces,B2421,Water,31.97,South East Water Ltd,Water Charges,2003183,201805,
Rother District Council,30/06/2018,091HOUSING,Housing and Community Services,20128,Public Conveniences,B2421,Water,287.74,South East Water Ltd,Water Charges,2003183,201805,
Rother District Council,30/06/2018,091HOUSING,Housing and Community Services,20128,Public Conveniences,B2421,Water,75.69,South East Water Ltd,Water Charges,2002760,201804,
Rother District Council,30/06/2018,091HOUSING,Housing and Community Services,20128,Public Conveniences,B2421,Water,57.18,South East Water Ltd,Water Charges,2002762,201804,
Rother District Council,30/06/2018,091HOUSING,Housing and Community Services,20128,Public Conveniences,B2421,Water,44.77,South East Water Ltd,Water Charges,2002764,201804,
Rother District Council,30/06/2018,091HOUSING,Housing and Community Services,20128,Public Conveniences,B2421,Water,304.71,South East Water Ltd,Water Charges,2002765,201804,
Rother District Council,30/06/2018,091HOUSING,Housing and Community Services,20128,Public Conveniences,B2421,Water,370.98,South East Water Ltd,Water Charges,2002767,201804,
Rother District Council,30/06/2018,091HOUSING,Housing and Community Services,20128,Public Conveniences,B2421,Water,46.65,South East Water Ltd,Water Charges,2002770,201804,
Rother District Council,30/06/2018,091HOUSING,Housing and Community Services,20128,Public Conveniences,B2421,Water,19.12,South East Water Ltd,Water Charges,2002771,201804,
Rother District Council,30/06/2018,091HOUSING,Housing and Community Services,20128,Public Conveniences,B2421,Water,355.05,South East Water Ltd,Water Charges,2002761,201804,
Rother District Council,30/06/2018,091HOUSING,Housing and Community Services,20128,Public Conveniences,B2421,Water,143.55,South East Water Ltd,Water Charges,2002763,201804,
Rother District Council,30/06/2018,091HOUSING,Housing and Community Services,20128,Public Conveniences,B2421,Water,203.61,South East Water Ltd,Water Charges,2002766,201804,
Rother District Council,30/06/2018,091HOUSING,Housing and Community Services,20234,Battle Community Help Point,B2421,Water,22.54,South East Water Ltd,Water Charges,2002772,201804,
Rother District Council,30/06/2018,091HOUSING,Housing and Community Services,20200,Housing Needs - HB (Housing Benefit),D2514,Accommodation Costs,"1,470.00",LESSHOMELESS LTD,Accommodation Costs,2002352,201804,
Rother District Council,30/06/2018,091HOUSING,Housing and Community Services,20200,Housing Needs - HB (Housing Benefit),D2514,Accommodation Costs,855.00,LESSHOMELESS LTD,Accommodation Costs,2002352,201804,
Rother District Council,30/06/2018,091HOUSING,Housing and Community Services,20200,Housing Needs - HB (Housing Benefit),D2514,Accommodation Costs,"1,470.00",LESSHOMELESS LTD,Accommodation Costs,2002352,201804,
Rother District Council,30/06/2018,091HOUSING,Housing and Community Services,20200,Housing Needs - HB (Housing Benefit),D2514,Accommodation Costs,49.00,LESSHOMELESS LTD,Accommodation Costs,2002353,201804,
Rother District Council,30/06/2018,091HOUSING,Housing and Community Services,20200,Housing Needs - HB (Housing Benefit),D2514,Accommodation Costs,"1,260.00",LESSHOMELESS LTD,Accommodation Costs,2002353,201804,
Rother District Council,30/06/2018,091HOUSING,Housing and Community Services,20200,Housing Needs - HB (Housing Benefit),D2514,Accommodation Costs,"1,350.00",LESSHOMELESS LTD,Accommodation Costs,2002353,201804,
Rother District Council,30/06/2018,091HOUSING,Housing and Community Services,20200,Housing Needs - HB (Housing Benefit),D2514,Accommodation Costs,"1,350.00",LESSHOMELESS LTD,Accommodation Costs,2002353,201804,
Rother District Council,30/06/2018,091HOUSING,Housing and Community Services,20107,Camber Beach & Foreshore,C1104,Derv,29.38,Allstar Business Solutions,Derv,2003271,201805,
Rother District Council,30/06/2018,091HOUSING,Housing and Community Services,20145,Maintenance Services,C1104,Derv,73.48,Allstar Business Solutions,Derv,2003271,201805,
Rother District Council,30/06/2018,091HOUSING,Housing and Community Services,20145,Maintenance Services,C1104,Derv,80.00,Allstar Business Solutions,Derv,2003271,201805,
Rother District Council,01/07/2018,999NOREPORT,Resources,90000,Balance sheet all accounts,P1099,Owed by - Colonnade Bexhill Ltd,74.94,Merchant Rentals Ltd,Colonnade Restaurant Bexhill Ltd - purchases,2002841,201804,
Rother District Council,01/07/2018,101RESOURCES,Resources,20239,Computer Services,D2639,Departmental Systems,"1,741.69",Ocella Ltd,Departmental Systems Advance Pay OCELLA Maintenance,2002369,201804,
Rother District Council,01/07/2018,091HOUSING,Housing and Community Services,20109,Sports Development,D2923,Grants made,750.00,East Sussex County Council,Grants made Sports Development - Active Rother,2002627,201804,
Rother District Council,01/07/2018,091HOUSING,Housing and Community Services,20109,Sports Development,D2923,Grants made,60.00,Mastersport and  Play Community Interest Company,Grants made Sports Development Projects,2002440,201804,Yes
Rother District Council,01/07/2018,101RESOURCES,Resources,20209,Corporate management,D2513,Hired and Contracted services,35.55,Merchant Rentals Ltd,Hired and contracted services Streamline Machine-Rental,2002840,201804,
Rother District Council,01/07/2018,091HOUSING,Housing and Community Services,20108,Bexhill Promenade & Foreshore,D2623,Radios and licences,11.92,Radio Relay,Radios and licences Radio/Transmitter Licences,2002399,201804,
Rother District Council,01/07/2018,031RESOURCES,Executive Directors & Corporate Core,20175,Administrative Offices - T.H. Annex (NOT CHP),B1100,Repairs to Premises,413.93,ADT Fire and  Security Plc,Repairs to Premises Intruder Alarm System Monitor/Maint,2002492,201804,
Rother District Council,01/07/2018,091HOUSING,Housing and Community Services,20114,Bexhill Parks & Open Spaces,B2422,Sewerage,296.00,Xylem Water Solutions UK Ltd,Sewerage Parks- Emptying of Cesspit,2002378,201804,
Rother District Council,01/07/2018,101RESOURCES,Resources,20242,Communications-Phones,D2621,Telephones,13.00,KCOM Group Plc,Telephones KCOM Smartnumber Charges,2002661,201804,
Rother District Council,01/07/2018,101RESOURCES,Resources,20242,Communications-Phones,D2621,Telephones,588.00,KCOM Group Plc,Telephones KCOM Smartnumber Charges,2002663,201804,
Rother District Council,01/07/2018,101RESOURCES,Resources,20242,Communications-Phones,D2621,Telephones,"9,916.14",KCOM Group Plc,Telephones KCOM Smartnumber Charges,2002664,201804,
Rother District Council,01/07/2018,101RESOURCES,Resources,20239,Computer Services,D2621,Telephones,"2,250.20",Vodafone Ltd,Telephones Leased Line Rental,2002737,201804,
Rother District Council,01/07/2018,041ENVIRON,Environmental Services,32134,EH Pollution R + W Partnership,D2621,Telephones,13.99,Daisy Communications PLC,Telephones Telephone Call Costs + Line Rental,2002815,201804,
Rother District Council,01/07/2018,031RESOURCES,Executive Directors & Corporate Core,20180,Emergency Planning,D2621,Telephones,13.99,Daisy Communications PLC,Telephones Telephone Call Costs + Line Rental,2002815,201804,
Rother District Council,01/07/2018,091HOUSING,Housing and Community Services,20102,Rother Museum Services,D2621,Telephones,13.99,Daisy Communications PLC,Telephones Telephone Call Costs + Line Rental,2002815,201804,
Rother District Council,01/07/2018,091HOUSING,Housing and Community Services,20107,Camber Beach & Foreshore,D2621,Telephones,31.44,Daisy Communications PLC,Telephones Telephone Call Costs + Line Rental,2002815,201804,
Rother District Council,01/07/2018,101RESOURCES,Resources,20239,Computer Services,D2621,Telephones,27.98,Daisy Communications PLC,Telephones Telephone Call Costs + Line Rental,2002815,201804,
Rother District Council,01/07/2018,101RESOURCES,Resources,20242,Communications-Phones,D2621,Telephones,95.82,Daisy Communications PLC,Telephones Telephone Call Costs + Line Rental,2002815,201804,
Rother District Council,01/07/2018,091HOUSING,Housing and Community Services,20145,Maintenance Services,C1101,Vehicle Repairs & Servicing,522.00,Asset Monitoring Solutions Group (UK) Ltd,Vehicle Repairs & Servicing,2003676,201806,
Rother District Council,01/07/2018,091HOUSING,Housing and Community Services,20200,Housing Needs - HB (Housing Benefit),D2514,Accommodation Costs,"1,410.00",Specialist Care UK Group Ltd,Accommodation Costs,2002391,201804,
Rother District Council,01/07/2018,091HOUSING,Housing and Community Services,20203,Housing Needs - Universal Credit,D2514,Accommodation Costs,150.00,Specialist Care UK Group Ltd,Accommodation Costs,2002335,201804,
Rother District Council,01/07/2018,091HOUSING,Housing and Community Services,20200,Housing Needs - HB (Housing Benefit),D2514,Accommodation Costs,100.00,Specialist Care UK Group Ltd,Accommodation Costs,2002338,201804,
Rother District Council,01/07/2018,091HOUSING,Housing and Community Services,20200,Housing Needs - HB (Housing Benefit),D2514,Accommodation Costs,300.00,Specialist Care UK Group Ltd,Accommodation Costs,2002328,201804,
Rother District Council,01/07/2018,091HOUSING,Housing and Community Services,20200,Housing Needs - HB (Housing Benefit),D2514,Accommodation Costs,175.00,Specialist Care UK Group Ltd,Accommodation Costs,2002331,201804,
Rother District Council,01/07/2018,091HOUSING,Housing and Community Services,20200,Housing Needs - HB (Housing Benefit),D2514,Accommodation Costs,200.00,Specialist Care UK Group Ltd,Accommodation Costs,2002337,201804,
Rother District Council,01/07/2018,091HOUSING,Housing and Community Services,20203,Housing Needs - Universal Credit,D2514,Accommodation Costs,262.50,Specialist Care UK Group Ltd,Accommodation Costs,2002339,201804,
Rother District Council,01/07/2018,091HOUSING,Housing and Community Services,20203,Housing Needs - Universal Credit,D2514,Accommodation Costs,37.50,Specialist Care UK Group Ltd,Accommodation Costs,2002330,201804,
Rother District Council,01/07/2018,091HOUSING,Housing and Community Services,20200,Housing Needs - HB (Housing Benefit),D2514,Accommodation Costs,262.50,Specialist Care UK Group Ltd,Accommodation Costs,2002334,201804,
Rother District Council,01/07/2018,091HOUSING,Housing and Community Services,20203,Housing Needs - Universal Credit,D2514,Accommodation Costs,112.50,Specialist Care UK Group Ltd,Accommodation Costs,2002341,201804,
Rother District Council,01/07/2018,091HOUSING,Housing and Community Services,20200,Housing Needs - HB (Housing Benefit),D2514,Accommodation Costs,375.00,Specialist Care UK Group Ltd,Accommodation Costs,2002344,201804,
Rother District Council,01/07/2018,091HOUSING,Housing and Community Services,20200,Housing Needs - HB (Housing Benefit),D2514,Accommodation Costs,112.50,Specialist Care UK Group Ltd,Accommodation Costs,2002342,201804,
Rother District Council,01/07/2018,091HOUSING,Housing and Community Services,20200,Housing Needs - HB (Housing Benefit),D2514,Accommodation Costs,350.00,Specialist Care UK Group Ltd,Accommodation Costs,2002332,201804,
Rother District Council,01/07/2018,091HOUSING,Housing and Community Services,20200,Housing Needs - HB (Housing Benefit),D2514,Accommodation Costs,950.00,UK Room Imperial,Accommodation Costs,2002744,201804,
Rother District Council,01/07/2018,091HOUSING,Housing and Community Services,20200,Housing Needs - HB (Housing Benefit),D2514,Accommodation Costs,575.00,UK Room Imperial,Accommodation Costs,2002744,201804,
Rother District Council,01/07/2018,091HOUSING,Housing and Community Services,20200,Housing Needs - HB (Housing Benefit),D2514,Accommodation Costs,"1,725.00",UK Room Imperial,Accommodation Costs,2002744,201804,
Rother District Council,01/07/2018,091HOUSING,Housing and Community Services,20200,Housing Needs - HB (Housing Benefit),D2514,Accommodation Costs,"1,425.00",UK Room Imperial,Accommodation Costs,2002744,201804,
Rother District Council,01/07/2018,091HOUSING,Housing and Community Services,20200,Housing Needs - HB (Housing Benefit),D2514,Accommodation Costs,"2,025.00",UK Room Imperial,Accommodation Costs,2002744,201804,
Rother District Council,01/07/2018,091HOUSING,Housing and Community Services,20128,Public Conveniences,B2611,Contract cleaning,"16,293.46",Specialist Hygiene Services Ltd,Contract cleaning,2002587,201804,
Rother District Council,01/07/2018,091HOUSING,Housing and Community Services,20128,Public Conveniences,B2611,Contract cleaning,546.60,Specialist Hygiene Services Ltd,Contract cleaning,2002587,201804,
Rother District Council,02/07/2018,999NOREPORT,Environmental Services,70706,Capital - Disable Facilities Grant,N1012,Capital Advances,825.00,Peabody South East Ltd,Capital Advances Disabled Facilities Grant,2002459,201804,
Rother District Council,02/07/2018,999NOREPORT,Environmental Services,70706,Capital - Disable Facilities Grant,N1012,Capital Advances,"5,500.00",Dolphin Lifts Kent,Capital Advances Disabled Facilities Grant,2002458,201804,
Rother District Council,02/07/2018,031RESOURCES,Executive Directors & Corporate Core,20173,Administrative Offices - Town Hall,B2612,Cleaning materials,218.23,Wightman and Parrish Ltd,Cleaning materials Premises,2002366,201804,
Rother District Council,02/07/2018,091HOUSING,Housing and Community Services,20145,Maintenance Services,D2352,Clothing and Uniforms,42.99,Trade UK Account (Screwfix),Clothing and Uniforms Mens Protective-Footware,2002595,201804,
Rother District Council,02/07/2018,091HOUSING,Housing and Community Services,20145,Maintenance Services,D2352,Clothing and Uniforms,42.99,Trade UK Account (Screwfix),Clothing and Uniforms Mens Protective-Footware,2002596,201804,
Rother District Council,02/07/2018,091HOUSING,Housing and Community Services,20108,Bexhill Promenade & Foreshore,D2352,Clothing and Uniforms,-42.99,Trade UK Account (Screwfix),Clothing and Uniforms Mens Protective-Footware,2002590,201804,
Rother District Council,02/07/2018,091HOUSING,Housing and Community Services,20145,Maintenance Services,D2352,Clothing and Uniforms,19.98,Trade UK Account (Screwfix),Clothing and Uniforms Parks- Protective Clothing,2002595,201804,
Rother District Council,02/07/2018,091HOUSING,Housing and Community Services,20145,Maintenance Services,D1201,Equipment & Materials,139.99,Parker Building Supplies Ltd,Equipment & Materials Purchase of Tools,2002474,201804,
Rother District Council,02/07/2018,091HOUSING,Housing and Community Services,20109,Sports Development,D2923,Grants made,58.27,PPL PRS Ltd,Grants made Sports Development - Active Rother,2002719,201804,
Rother District Council,02/07/2018,091HOUSING,Housing and Community Services,20107,Camber Beach & Foreshore,D2312,Refreshments,49.27,Colemans A B C (Wholesale) Distributors Ltd,Refreshments Watercooler Service,2004442,201806,
Rother District Council,02/07/2018,031RESOURCES,Executive Directors & Corporate Core,20175,Administrative Offices - T.H. Annex (NOT CHP),B1100,Repairs to Premises,319.76,Howden Joinery Ltd,Repairs to Premises Purchase of Materials - Build Maint,2003329,201805,
Rother District Council,02/07/2018,031RESOURCES,Executive Directors & Corporate Core,20175,Administrative Offices - T.H. Annex (NOT CHP),B1100,Repairs to Premises,121.20,Howden Joinery Ltd,Repairs to Premises Purchase of Materials - Build Maint,2003330,201805,
Rother District Council,02/07/2018,031RESOURCES,Executive Directors & Corporate Core,20175,Administrative Offices - T.H. Annex (NOT CHP),B1100,Repairs to Premises,147.51,Graham,Repairs to Premises Purchase of Materials - Build Maint,2002670,201804,
Rother District Council,02/07/2018,031RESOURCES,Executive Directors & Corporate Core,20175,Administrative Offices - T.H. Annex (NOT CHP),B1100,Repairs to Premises,2.57,Parker Building Supplies Ltd,Repairs to Premises Purchase of Materials - Build Maint,2002475,201804,
Rother District Council,02/07/2018,081ACQUISIT,"Acquisitions, Transformation and Regeneration",20142,Performance Management,D2922,Subscriptions,400.00,Survey Mechanics Limited,Subscriptions Subscription to Organisations,2002388,201804,
Rother District Council,02/07/2018,101RESOURCES,Resources,20242,Communications-Phones,D2621,Telephones,62.28,TalkTalk Communications Ltd T/A TalkTalk Business,Telephones Telephone Call Costs + Line Rental,2002926,201804,
Rother District Council,02/07/2018,091HOUSING,Housing and Community Services,20200,Housing Needs - HB (Housing Benefit),D2514,Accommodation Costs,12.00,Solutions Accommodation Providers Ltd,Accommodation Costs,2002432,201804,
Rother District Council,02/07/2018,091HOUSING,Housing and Community Services,20200,Housing Needs - HB (Housing Benefit),D2514,Accommodation Costs,48.00,Solutions Accommodation Providers Ltd,Accommodation Costs,2002432,201804,
Rother District Council,02/07/2018,091HOUSING,Housing and Community Services,20200,Housing Needs - HB (Housing Benefit),D2514,Accommodation Costs,84.00,Solutions Accommodation Providers Ltd,Accommodation Costs,2002439,201804,
Rother District Council,02/07/2018,091HOUSING,Housing and Community Services,20200,Housing Needs - HB (Housing Benefit),D2514,Accommodation Costs,336.00,Solutions Accommodation Providers Ltd,Accommodation Costs,2002439,201804,
Rother District Council,02/07/2018,091HOUSING,Housing and Community Services,20200,Housing Needs - HB (Housing Benefit),D2514,Accommodation Costs,105.00,Solutions Accommodation Providers Ltd,Accommodation Costs,2002428,201804,
Rother District Council,02/07/2018,091HOUSING,Housing and Community Services,20200,Housing Needs - HB (Housing Benefit),D2514,Accommodation Costs,84.00,Solutions Accommodation Providers Ltd,Accommodation Costs,2002433,201804,
Rother District Council,02/07/2018,091HOUSING,Housing and Community Services,20200,Housing Needs - HB (Housing Benefit),D2514,Accommodation Costs,336.00,Solutions Accommodation Providers Ltd,Accommodation Costs,2002433,201804,
Rother District Council,02/07/2018,091HOUSING,Housing and Community Services,20200,Housing Needs - HB (Housing Benefit),D2514,Accommodation Costs,420.00,Solutions Accommodation Providers Ltd,Accommodation Costs,2002428,201804,
Rother District Council,02/07/2018,091HOUSING,Housing and Community Services,20203,Housing Needs - Universal Credit,D2514,Accommodation Costs,84.00,Solutions Accommodation Providers Ltd,Accommodation Costs,2002434,201804,
Rother District Council,02/07/2018,091HOUSING,Housing and Community Services,20203,Housing Needs - Universal Credit,D2514,Accommodation Costs,336.00,Solutions Accommodation Providers Ltd,Accommodation Costs,2002434,201804,
Rother District Council,02/07/2018,091HOUSING,Housing and Community Services,20203,Housing Needs - Universal Credit,D2514,Accommodation Costs,98.00,Solutions Accommodation Providers Ltd,Accommodation Costs,2002436,201804,
Rother District Council,02/07/2018,091HOUSING,Housing and Community Services,20203,Housing Needs - Universal Credit,D2514,Accommodation Costs,392.00,Solutions Accommodation Providers Ltd,Accommodation Costs,2002436,201804,
Rother District Council,02/07/2018,091HOUSING,Housing and Community Services,20200,Housing Needs - HB (Housing Benefit),D2514,Accommodation Costs,84.00,Solutions Accommodation Providers Ltd,Accommodation Costs,2002437,201804,
Rother District Council,02/07/2018,091HOUSING,Housing and Community Services,20200,Housing Needs - HB (Housing Benefit),D2514,Accommodation Costs,336.00,Solutions Accommodation Providers Ltd,Accommodation Costs,2002437,201804,
Rother District Council,02/07/2018,091HOUSING,Housing and Community Services,20200,Housing Needs - HB (Housing Benefit),D2514,Accommodation Costs,98.00,Solutions Accommodation Providers Ltd,Accommodation Costs,2002430,201804,
Rother District Council,02/07/2018,091HOUSING,Housing and Community Services,20200,Housing Needs - HB (Housing Benefit),D2514,Accommodation Costs,392.00,Solutions Accommodation Providers Ltd,Accommodation Costs,2002430,201804,
Rother District Council,02/07/2018,091HOUSING,Housing and Community Services,20200,Housing Needs - HB (Housing Benefit),D2514,Accommodation Costs,98.00,Solutions Accommodation Providers Ltd,Accommodation Costs,2002429,201804,
Rother District Council,02/07/2018,091HOUSING,Housing and Community Services,20200,Housing Needs - HB (Housing Benefit),D2514,Accommodation Costs,392.00,Solutions Accommodation Providers Ltd,Accommodation Costs,2002429,201804,
Rother District Council,02/07/2018,091HOUSING,Housing and Community Services,20203,Housing Needs - Universal Credit,D2514,Accommodation Costs,33.60,Saffron HMO Ltd,Accommodation Costs,2002350,201804,
Rother District Council,02/07/2018,091HOUSING,Housing and Community Services,20203,Housing Needs - Universal Credit,D2514,Accommodation Costs,134.40,Saffron HMO Ltd,Accommodation Costs,2002350,201804,
Rother District Council,02/07/2018,091HOUSING,Housing and Community Services,20200,Housing Needs - HB (Housing Benefit),D2514,Accommodation Costs,315.00,Saffron HMO Ltd,Accommodation Costs,2002351,201804,
Rother District Council,02/07/2018,091HOUSING,Housing and Community Services,20200,Housing Needs - HB (Housing Benefit),D2514,Accommodation Costs,63.00,Saffron HMO Ltd,Accommodation Costs,2002349,201804,
Rother District Council,02/07/2018,091HOUSING,Housing and Community Services,20200,Housing Needs - HB (Housing Benefit),D2514,Accommodation Costs,252.00,Saffron HMO Ltd,Accommodation Costs,2002349,201804,
Rother District Council,02/07/2018,091HOUSING,Housing and Community Services,20203,Housing Needs - Universal Credit,D2514,Accommodation Costs,794.85,Redmere Lodge,Accommodation Costs,2002423,201804,
Rother District Council,02/07/2018,091HOUSING,Housing and Community Services,20203,Housing Needs - Universal Credit,D2514,Accommodation Costs,145.60,The Clevedon Court Hotel,Accommodation Costs,2002356,201804,
Rother District Council,02/07/2018,091HOUSING,Housing and Community Services,20200,Housing Needs - HB (Housing Benefit),D2508,Removals and Storage,150.00,Chapmans of Hastings,Removals and Storage,2002500,201804,
Rother District Council,02/07/2018,091HOUSING,Housing and Community Services,20200,Housing Needs - HB (Housing Benefit),D2508,Removals and Storage,200.00,Chapmans of Hastings,Removals and Storage,2002515,201804,
Rother District Council,03/07/2018,041ENVIRON,Environmental Services,32136,EH Pest Control R + W Partnership,D1202,Baits Poisons Etc,29.50,Killgerm Chemicals Ltd,Baits Poisons Etc EnvH- Pest Control Supplies,2002520,201804,
Rother District Council,03/07/2018,999NOREPORT,Environmental Services,70706,Capital - Disable Facilities Grant,N1012,Capital Advances,"1,200.00",Peabody South East Ltd,Capital Advances Disabled Facilities Grant,2002460,201804,
Rother District Council,03/07/2018,031RESOURCES,Executive Directors & Corporate Core,20173,Administrative Offices - Town Hall,B2612,Cleaning materials,66.05,Wightman and Parrish Ltd,Cleaning materials Premises,2002392,201804,
Rother District Council,03/07/2018,091HOUSING,Housing and Community Services,20145,Maintenance Services,D2352,Clothing and Uniforms,9.99,Trade UK Account (Screwfix),Clothing and Uniforms Parks- Protective Clothing,2002592,201804,
Rother District Council,03/07/2018,091HOUSING,Housing and Community Services,20145,Maintenance Services,D2352,Clothing and Uniforms,218.79,SuperStitch 86,Clothing and Uniforms Parks- Protective Clothing,2002530,201804,
Rother District Council,03/07/2018,091HOUSING,Housing and Community Services,20145,Maintenance Services,D2352,Clothing and Uniforms,-9.99,Trade UK Account (Screwfix),Clothing and Uniforms Parks- Protective Clothing,2002593,201804,
Rother District Council,03/07/2018,091HOUSING,Housing and Community Services,20108,Bexhill Promenade & Foreshore,D2509,Consultants and Other Services,"2,150.00",John D Clarke Architects,Consultants and other services Consultants Fees,2002462,201804,
Rother District Council,03/07/2018,081ACQUISIT,"Acquisitions, Transformation and Regeneration",20153,"Elva Business Centre, Bexhill",B2611,Contract cleaning,146.80,J M Waste Management Limited,Contract cleaning Office Cleaning,2002682,201804,
Rother District Council,03/07/2018,081ACQUISIT,"Acquisitions, Transformation and Regeneration",20154,Committee Property Account,B2201,Electricity,61.07,British Gas Business (600 Accounts only),Electricity Charges,2002522,201804,
Rother District Council,03/07/2018,081ACQUISIT,"Acquisitions, Transformation and Regeneration",20154,Committee Property Account,B2201,Electricity,45.00,British Gas Business (600 Accounts only),Electricity Charges,2002522,201804,
Rother District Council,03/07/2018,091HOUSING,Housing and Community Services,20114,Bexhill Parks & Open Spaces,D1201,Equipment & Materials,118.72,Alfa Electric Ltd,Equipment & Materials - Maintenance of Seats/Plaques from Donations,2002506,201804,
Rother District Council,03/07/2018,031RESOURCES,Executive Directors & Corporate Core,20173,Administrative Offices - Town Hall,B1100,Repairs to Premises,290.88,Clearwater Technology Ltd,Hired & Contracted Serv- Legionella Sampling and Monitoring,2002591,201804,
Rother District Council,03/07/2018,041ENVIRON,Environmental Services,32144,EH Environmental Services Admin R + W Partnership,D2513,Hired and Contracted services,187.50,Rocksure Systems Ltd,Hired and contracted services AONB Management,2002598,201804,
Rother District Council,03/07/2018,101RESOURCES,Resources,20216,Cost Of Collection,D2513,Hired and Contracted services,645.00,Her Majestys Court Service,Hired and contracted services Court Costs/Fees,2002843,201804,
Rother District Council,03/07/2018,041ENVIRON,Environmental Services,32142,EH Taxi and Private Hire Licenses R + W Partnership,D2513,Hired and Contracted services,832.00,Gleampath Ltd T/A ABC Signs,Hired and contracted services RDC Taxi Licence Plates,2002425,201804,
Rother District Council,03/07/2018,041ENVIRON,Environmental Services,32142,EH Taxi and Private Hire Licenses R + W Partnership,D2513,Hired and Contracted services,"1,600.00",Gleampath Ltd T/A ABC Signs,Hired and contracted services WDC Taxi Licence Plates,2002426,201804,
Rother District Council,03/07/2018,041ENVIRON,Environmental Services,32136,EH Pest Control R + W Partnership,D2626,Postages,8.00,Killgerm Chemicals Ltd,Postages Carriage of Supplies,2002520,201804,
Rother District Council,03/07/2018,081ACQUISIT,"Acquisitions, Transformation and Regeneration",20154,Committee Property Account,B1100,Repairs to Premises,"3,212.10",Mr R J Sheppard T/A E A R Sheppard,Repairs to Premises - Colonnade - repairs and fit out,2002449,201804,
Rother District Council,03/07/2018,091HOUSING,Housing and Community Services,20128,Public Conveniences,B1100,Repairs to Premises,30.80,Sussex Turnery and Moulding Co Ltd,Repairs to Premises Purchase of Materials - Build Maint,2002454,201804,
Rother District Council,03/07/2018,081ACQUISIT,"Acquisitions, Transformation and Regeneration",20154,Committee Property Account,B1100,Repairs to Premises,440.00,Ace Joinery Solutions South East Ltd,Repairs to Premises Purchase of Materials - Build Maint,2002435,201804,
Rother District Council,03/07/2018,091HOUSING,Housing and Community Services,20128,Public Conveniences,B1100,Repairs to Premises,19.04,Sussex Turnery and Moulding Co Ltd,Repairs to Premises Purchase of Materials - Build Maint,2002427,201804,
Rother District Council,03/07/2018,091HOUSING,Housing and Community Services,20128,Public Conveniences,B1100,Repairs to Premises,37.95,Jewson Limited,Repairs to Premises Purchase of Materials - Build Maint,2002668,201804,
Rother District Council,03/07/2018,091HOUSING,Housing and Community Services,20128,Public Conveniences,B2422,Sewerage,276.33,Scottish Water Business Stream Limited,Sewage Charges,2002586,201804,
Rother District Council,03/07/2018,091HOUSING,Housing and Community Services,20128,Public Conveniences,B2422,Sewerage,110.29,Scottish Water Business Stream Limited,Sewage Charges,2002588,201804,
Rother District Council,03/07/2018,091HOUSING,Housing and Community Services,20114,Bexhill Parks & Open Spaces,B2422,Sewerage,30.70,Scottish Water Business Stream Limited,Sewage Charges,2002586,201804,
Rother District Council,03/07/2018,101RESOURCES,Resources,20241,Stationery,D2416,Stationery ordered internally (Print Room),55.92,Office Depot UK Ltd,Stationery (General office Supplies) (Stationery Services to buy ONLY),2002606,201804,
Rother District Council,03/07/2018,101RESOURCES,Resources,20242,Communications-Phones,D2621,Telephones,"2,103.43",KCOM Group Plc,Telephones KCOM Smartnumber Charges,2002662,201804,
Rother District Council,03/07/2018,031RESOURCES,Executive Directors & Corporate Core,20171,Human Resources,A2203,Training,331.50,Dods Parliamentary Communications Ltd,Training,2002472,201804,
Rother District Council,03/07/2018,091HOUSING,Housing and Community Services,20200,Housing Needs - HB (Housing Benefit),D2508,Removals and Storage,160.00,1066 Storage Services,Removals and Storage,2002431,201804,
Rother District Council,03/07/2018,091HOUSING,Housing and Community Services,20200,Housing Needs - HB (Housing Benefit),D2508,Removals and Storage,160.00,1066 Storage Services,Removals and Storage,2002441,201804,
Rother District Council,03/07/2018,091HOUSING,Housing and Community Services,20200,Housing Needs - HB (Housing Benefit),D2508,Removals and Storage,80.00,1066 Storage Services,Removals and Storage,2002442,201804,
Rother District Council,04/07/2018,091HOUSING,Housing and Community Services,20200,Housing Needs - HB (Housing Benefit),A1110,Agency Staff,900.00,Prentis Solutions Limited,Agency Staff,2002656,201804,
Rother District Council,04/07/2018,091HOUSING,Housing and Community Services,20200,Housing Needs - HB (Housing Benefit),A1110,Agency Staff,912.50,Oyster Partnership,Agency Staff,2002464,201804,
Rother District Council,04/07/2018,999NOREPORT,"Acquisitions, Transformation and Regeneration",70720,Capital - East Parade Project,N1004,Architects & Consultant Fees,"4,995.00",RX Architects Ltd,Architects & Consultant Fees Capital-Architect and Conslt Fees,2002452,201804,
Rother District Council,04/07/2018,999NOREPORT,Resources,90000,Balance sheet all accounts,R2353,Camber Float,"3,000.00",Jade Security Services Ltd (CLIENT ACCOUNT),CAMBER FLOAT,2002842,201804,
Rother District Council,04/07/2018,091HOUSING,Housing and Community Services,20145,Maintenance Services,D2352,Clothing and Uniforms,203.98,Greenham,Clothing and Uniforms Mens Protective-Other,2002674,201804,
Rother District Council,04/07/2018,091HOUSING,Housing and Community Services,20138,Residual Highway Services,B2201,Electricity,5.99,Npower Ltd,Electricity Charges,2002465,201804,
Rother District Council,04/07/2018,091HOUSING,Housing and Community Services,20138,Residual Highway Services,B2201,Electricity,0.89,Npower Ltd,Electricity Charges,2002466,201804,
Rother District Council,04/07/2018,091HOUSING,Housing and Community Services,20138,Residual Highway Services,B2201,Electricity,29.72,Npower Ltd,Electricity Charges,2002468,201804,
Rother District Council,04/07/2018,091HOUSING,Housing and Community Services,20138,Residual Highway Services,B2201,Electricity,3.83,Npower Ltd,Electricity Charges,2002469,201804,
Rother District Council,04/07/2018,091HOUSING,Housing and Community Services,20138,Residual Highway Services,B2201,Electricity,2.29,Npower Ltd,Electricity Charges,2002470,201804,
Rother District Council,04/07/2018,091HOUSING,Housing and Community Services,20137,Car Parks,B2201,Electricity,37.95,Npower Ltd,Electricity Charges,2002465,201804,
Rother District Council,04/07/2018,091HOUSING,Housing and Community Services,20137,Car Parks,B2201,Electricity,5.62,Npower Ltd,Electricity Charges,2002466,201804,
Rother District Council,04/07/2018,091HOUSING,Housing and Community Services,20137,Car Parks,B2201,Electricity,35.71,Npower Ltd,Electricity Charges,2002468,201804,
Rother District Council,04/07/2018,091HOUSING,Housing and Community Services,20137,Car Parks,B2201,Electricity,4.61,Npower Ltd,Electricity Charges,2002469,201804,
Rother District Council,04/07/2018,091HOUSING,Housing and Community Services,20137,Car Parks,B2201,Electricity,14.49,Npower Ltd,Electricity Charges,2002470,201804,
Rother District Council,04/07/2018,091HOUSING,Housing and Community Services,20108,Bexhill Promenade & Foreshore,B2201,Electricity,5.99,Npower Ltd,Electricity Charges,2002465,201804,
Rother District Council,04/07/2018,091HOUSING,Housing and Community Services,20108,Bexhill Promenade & Foreshore,B2201,Electricity,0.88,Npower Ltd,Electricity Charges,2002466,201804,
Rother District Council,04/07/2018,091HOUSING,Housing and Community Services,20114,Bexhill Parks & Open Spaces,B2201,Electricity,13.25,Npower Ltd,Electricity Charges,2002467,201804,
Rother District Council,04/07/2018,091HOUSING,Housing and Community Services,20108,Bexhill Promenade & Foreshore,B2201,Electricity,2.29,Npower Ltd,Electricity Charges,2002470,201804,
Rother District Council,04/07/2018,041ENVIRON,Environmental Services,20129,Community Safety,B2201,Electricity,267.71,Npower Ltd,Electricity Charges,2002468,201804,
Rother District Council,04/07/2018,041ENVIRON,Environmental Services,20129,Community Safety,B2201,Electricity,34.55,Npower Ltd,Electricity Charges,2002469,201804,
Rother District Council,04/07/2018,091HOUSING,Housing and Community Services,20114,Bexhill Parks & Open Spaces,D1201,Equipment & Materials,70.00,Good Directions Ltd,Equipment & Materials Carriage/Handling Charge,2002518,201804,
Rother District Council,04/07/2018,091HOUSING,Housing and Community Services,20114,Bexhill Parks & Open Spaces,D1201,Equipment & Materials,250.00,Good Directions Ltd,Equipment & Materials Parks Purchase of Seats/ Benches/Plaques,2002518,201804,
Rother District Council,04/07/2018,091HOUSING,Housing and Community Services,20145,Maintenance Services,D1201,Equipment & Materials,85.80,Trade UK Account (Screwfix),Equipment & Materials Purchase of Tools,2002681,201804,
Rother District Council,04/07/2018,091HOUSING,Housing and Community Services,20145,Maintenance Services,D1201,Equipment & Materials,5.60,Jewson Limited,Equipment & Materials Purchase of Tools,2002667,201804,
Rother District Council,04/07/2018,091HOUSING,Housing and Community Services,20145,Maintenance Services,D1201,Equipment & Materials,16.18,Jewson Limited,Equipment & Materials Purchase of Tools,2002666,201804,
Rother District Council,04/07/2018,041ENVIRON,Environmental Services,20129,Community Safety,D2513,Hired and Contracted services,784.08,The Police and Crime Commissioner for Sussex,Hired and contracted services CCTV System Maintenance,2003600,201806,
Rother District Council,04/07/2018,101RESOURCES,Resources,20216,Cost Of Collection,D2513,Hired and Contracted services,57.00,H M Land Registry,Hired and contracted services Council Tax-Land Registry Enquiries,2002917,201804,
Rother District Council,04/07/2018,041ENVIRON,Environmental Services,32144,EH Environmental Services Admin R + W Partnership,D2513,Hired and Contracted services,12.00,H M Land Registry,Hired and contracted services Env H- Land Registry,2002917,201804,
Rother District Council,04/07/2018,091HOUSING,Housing and Community Services,20132,Street & Beach Cleansing,D2513,Hired and Contracted services,60.00,East Sussex and Romney Marsh Hunt,Hired and contracted services Incineration of dead animals,2002660,201804,
Rother District Council,04/07/2018,071STRAT,Strategy and Planning,20246,Planning Applications,D2513,Hired and Contracted services,24.00,H M Land Registry,Hired and contracted services Land Registry - Planning,2002917,201804,
Rother District Council,04/07/2018,101RESOURCES,Resources,20240,Printing Services,D2417,Photocopy Paper by external suppliers,175.76,Premier Paper Group Ltd,Photocopy Paper Colour Copy Paper SRA3,2002443,201804,
Rother District Council,04/07/2018,101RESOURCES,Resources,20240,Printing Services,D2417,Photocopy Paper by external suppliers,82.10,Premier Paper Group Ltd,Photocopy Paper NCR Precollated 2 Part,2002443,201804,
Rother District Council,04/07/2018,101RESOURCES,Resources,20240,Printing Services,D2417,Photocopy Paper by external suppliers,628.38,Canon (UK) Ltd,Photocopy Paper Wide Format Consumables,2002607,201804,
Rother District Council,04/07/2018,081ACQUISIT,"Acquisitions, Transformation and Regeneration",20143,Community Strategy,D2312,Refreshments,195.00,Bexhill Farm Kitchen,Refreshments Catering by Bexhill Farm Kitchen,2002535,201804,
Rother District Council,04/07/2018,091HOUSING,Housing and Community Services,20114,Bexhill Parks & Open Spaces,B1100,Repairs to Premises,"1,110.00",Bexhill Electrical Ltd,Repairs to Premises Parks- Electrical Works,2002981,201804,
Rother District Council,04/07/2018,091HOUSING,Housing and Community Services,20114,Bexhill Parks & Open Spaces,B1100,Repairs to Premises,82.50,Kernock Park Plants,Repairs to Premises Parks- Purchase of Plants,2002484,201804,
Rother District Council,04/07/2018,031RESOURCES,Executive Directors & Corporate Core,20175,Administrative Offices - T.H. Annex (NOT CHP),B1100,Repairs to Premises,155.17,Graham,Repairs to Premises Purchase of Materials - Build Maint,2002635,201804,
Rother District Council,04/07/2018,031RESOURCES,Executive Directors & Corporate Core,20173,Administrative Offices - Town Hall,B2422,Sewerage,290.40,Scottish Water Business Stream Limited,Sewage Charges,2002665,201804,
Rother District Council,04/07/2018,031RESOURCES,Executive Directors & Corporate Core,20173,Administrative Offices - Town Hall,B2422,Sewerage,750.95,Scottish Water Business Stream Limited,Sewage Charges,2002529,201804,
Rother District Council,04/07/2018,091HOUSING,Housing and Community Services,20128,Public Conveniences,B2422,Sewerage,330.00,CountyClean Environmental Services Ltd,Sewerage - Sewage/Cesspool Emptying,2002873,201804,
Rother District Council,04/07/2018,101RESOURCES,Resources,20241,Stationery,D2416,Stationery ordered internally (Print Room),31.10,Office Depot UK Ltd,Stationery (General office Supplies) (Stationery Services to buy ONLY),2002605,201804,
Rother District Council,04/07/2018,999NOREPORT,Resources,90000,Balance sheet all accounts,R2335,Cycle Scheme,539.99,Wheelies Direct Cycle Solutions Ltd,Cycle Scheme,2002516,201804,
Rother District Council,05/07/2018,101RESOURCES,Resources,20222,Accountancy,A1110,Agency Staff,381.90,Portfolio Payroll Limited,Agency Staff,2002444,201804,
